Workbook

Sheet Title
B2: File Name | C2: : | D2: DDR4_Power_Calc.XLSM
B3: Revision | C3: : | D3: 5
B4: Date | C4: : | D4: 2023-01-11
B5: Document ID | C5: : | D5: CCM005-1406124318-10456
B6: Company | C6: : | D6: Micron Technology, Inc.
B8: Description | C8: : | D8: Calculates the power consumed by a DDR4 SDRAM based on system use parameters and the device data sheet.
B10: Limitations | C10: : | D10: This calculator does not apply for 3DS DDR4 devices.
B12: Notes | C12: : | D12: For x16, use equivalent speed grade noted in DDR4 Spec page.
B14: Disclaimer | C14: : | D14: This spreadsheet is for estimating purposes only and does not estimate power for every mode of operation described in the data sheet. Any information provided herein is provided "as is" and without warranties of any kind. Micron warrants only that its’ products comply with Micron's specification sheet for the product at the time of delivery, provided that deviations from specifications which do not materially affect form, fit or function of such product in the system and configuration in or for which it is initially installed or qualified by customer shall not be deemed to constitute failure to comply with such specifications.
D15: See Micron's standard terms and conditions of sale for complete warranty details.
D17: Copyright © 2019 Micron Technology, Inc.
D18: All rights reserved.

Sheet Rev History
A1: Date | B1: Notes
A2: 2016-06-27 | B2: Initial Revision
A3: 2019-07-09 | B3: Updated for Module Calculation
A4: 2023-01-11 | B4: Instructions tab, clarify C16 that Density configuration refers to die density, not package DDR4 Config tab, changed label in C7 to DRAM Die Density Module Calc tab, changed D7 calculation to correctly identify package density based on die density and SDP/DDP. Error in DDP calculations fixed.

Sheet Instructions
A4: Instructions for Use
B5: DDR4 Spec tab (ALL MUST BE VERIFIED FOR A SPECIFIC DRAM DATA SHEET)
C6: Inputs are required for all densities and speed grades that may be chosen. Densities/speed grades that are not desired may be left blank.
C7: Enter VDD tolerance range in rows 7-8.
C8: Enter VPP tolerance range in rows 9-10.
C9: Enter IDD values for the speed grade under investigation in rows 13-51. If a specific configuration is not desired, the IDD values can be left blank.
C10: If x4 and x8 IDDs are listed in the datasheet together, use the same value in each table entry.
C11: Use IPP3N for either IPP4R or IPP4W if they don’t exist: if IPP4R or IPP4W is less than IPP3N then use IPP3N
C12: Timing restrictions in rows 53-65 are entered from the data sheet. These determine the test conditions for the IDD values and restrictions of normal device operation.
C13: If any MR options such as Additive latency, ODT, CA Latency, CA Parity, DBI, CRC, or Fine granularity refresh (FGRM) are desired, adjust the DDR4 Spec accordingly per the %derating values defined in the component data sheet IDD tables.
B15: DDR4 Config tab (ALL MUST BE ENTERED TO IDENTIFY DRAM TO BE USED FOR POWER CALCULATION)
C16: Row 7 selects which DRAM die density.
C17: Row 8 selects the number of DQ's
C18: Row 9 selects the starting speed grade
C19: Row 10 selects whether DBI Mode is enabled or not
C20: Row 11 selects the package type. Note - this is ONLY required if module power calculation is desired, which is why DDP1R (x16) is not listed. Otherwise, this cell is a don’t-care.
B22: System Config Usage Conditions tab (ALL MUST BE ENTERED FOR SPECIFIC SYSTEM)
C23: Row 7 is the actual VDD the system is operating at. It is usually set to nominal conditions.
C24: Row 8 is the actual VPP the system is operating at. It is usually set to nominal conditions.
C25: Row 9 is the clock rate the DRAM is operating at. This is one half of the data rate. Calculator inserts clock rate selected, maybe over written; if done, spare formula to the left may be pasted
C26: Row 10 is the burst length programmed in the mode register. (The model does not calculate power if burst interrupt is utilized.)
C27: Row 12* is the amount of power that is drawn per output while driving read data from itself.
C28: Row 13* is the amount of power that is drawn per output while terminating write data to itself.
C29: Row 14* is the amount of power that is drawn per DQ while terminating read data at different DRAM Rank (two or more loads).
C30: Row 15* is the amount of power that is drawn per DQ while terminating write data at different DRAM Rank (two or more loads).
C31: *These are system-dependent and must be calculated. The value may be approximated with a DC calculation (calculator provided) or more accurately determined using SPICE models.
C33: For Rows 17-27, the user must select either a pre-defined set of values OR a "user defined" option from the drop-down menu. If the "user-defined" option is selected, the user must populate column J with values. The google stress values defined are for 1DPC loading only.
C34: Row 17 (BNK_PRE%) is the time when all banks are in a precharged state. This is the amount of time when no bank has been activated.
C35: Row 18 (CKE_LO_PRE%) is the percentage of time that all that banks are precharged when the device is in power-down state. This is the percentage of time when the DRAM is using IDD2P vs. IDD2N.
C36: Row 19 (CKE_LO_ACT%) is the percentage of DRAM active time when CKE is LOW and the device is in the power-down state. This is the percentage of active time when the DRAM is using IDD3P current vs. IDD3N.
C37: Row 20 (PH%) is the page hit rate. 0% means there are no page hits (i.e., one read/write per each activate).
C38: Row 21 (RDsch%) is the percentage of clocks that data is read from the DRAM. This would be equal to the average read bandwidth divided by peak read bandwidth. This parameter must be defined PER-RANK.
C39: Row 22 (RD Data %low) is the percentage of bits to toggle low each Read strobe edge. This is used to adjust I/O power accordingly.
C40: Row 23 (WRsch%) is the percentage of clocks that data is written to the DRAM. This would be equal to the average read bandwidth divided by peak read bandwidth. This parameter must be defined PER-RANK.
C41: Row 24 (WR Data %low) is the percentage of bits to toggle low each Write strobe edge. This is used to adjust I/O power accordingly.
C42: Row 25 (termRDsch%) is the percentage of clock cycles the DRAM under investigation is terminating read data from another device. It does not include time when a different DRAM on the bus may be terminating data.
C43: Row 26 (termWRsch%) is the percentage of clock cycles the DRAM under investigation is terminating write data from another device. It does not include time when a different DRAM on the bus may be terminating data.
C44: Row 27 (Actual System tRC) is the tRC used by the system. This is needed because ACT+PRE power is calculated based on spec min tRC (IDD0), and if the system is using a longer tRC then derating this ACT+PRE power over the actual tRC window is required.
C45: Row 28 (tRRDsch) is the average time between ACT commands to the DRAM. Under IDD0 this would be equal to tRC. If the DRAM is in interleaving bursts, it may be less than tRC. This value is now calculated off of page hit rate. Entering a number here will override the automatic calculation.
C46: On right side of page, input drivers' Zo, RTTs, and series resistors (module) values in dark green shaded areas. Default populated values are typical.
B48: Power Calcs tab
C49: No inputs are required for this tab. It contains some of the detail calculations that provide information into the Summary tab. It can be used as a reference for further understanding the calculator, or you may jump straight to the Summary page for the final answer.
B51: Summary tab
C52: No inputs are required for this tab. It contains a summary of the power used by the DRAM. The power is broken out between: — Power to read/write data to and from the DRAM — Power to activate the rows — Background power for standby modes and refresh
B54: Module Calc Tab
C55: This tab will calculate DIMM power based on the "Summary" tab and user-inputs for DIMM configuration *. User must select number of ranks, the DIMM type, and whether the DIMM has ECC (some UDIMM's/SODIMM's may or may not have ECC, while all RDIMMS/LRDIMMS do). If calculating a module using DDP components, make sure this is selected in "DDR4 Config", otherwise the calculation will be incorrect.
C56: * Note that not all DIMM configurations will be valid, and an warning message for invalid combinations may not be given. It is up to the user to make sure that these options are selected correctly for the DIMM they are interested in.

Sheet DDR4 Spec
E4: 4Gb | F4: 4Gb | G4: 4Gb | H4: 4Gb | I4: 4Gb | J4: 4Gb | K4: 4Gb | L4: 4Gb | M4: 4Gb | N4: 4Gb | P4: 8Gb | Q4: 8Gb | R4: 8Gb | S4: 8Gb | T4: 8Gb | U4: 8Gb | V4: 8Gb | W4: 8Gb | X4: 8Gb | Y4: 8Gb | AA4: 16Gb | AB4: 16Gb | AC4: 16Gb | AD4: 16Gb | AE4: 16Gb | AF4: 16Gb | AG4: 16Gb | AH4: 16Gb | AI4: 16Gb | AJ4: 16Gb
E5: 1866 | F5: 2133 | G5: 2133 | H5: 2400 | I5: 2400 | J5: 2666 | K5: 2666 | L5: 2933 | M5: 2933 | N5: 3200 | P5: 1866 | Q5: 2133 | R5: 2133 | S5: 2400 | T5: 2400 | U5: 2666 | V5: 2666 | W5: 2933 | X5: 2933 | Y5: 3200 | AA5: 1866 | AB5: 2133 | AC5: 2133 | AD5: 2400 | AE5: 2400 | AF5: 2666 | AG5: 2666 | AH5: 2933 | AI5: 2933 | AJ5: 3200
B6: Parameter | C6: Condition | E6: -107E | F6: -093 | G6: -093E | H6: -083 | I6: -083E | J6: -075 | K6: -075E | L6: -068 | M6: -068E | N6: -062E | P6: -107E | Q6: -093 | R6: -093E | S6: -083 | T6: -083E | U6: -075 | V6: -075E | W6: -068 | X6: -068E | Y6: -062E | AA6: -107E | AB6: -093 | AC6: -093E | AD6: -083 | AE6: -083E | AF6: -075 | AG6: -075E | AH6: -068 | AI6: -068E | AJ6: -062E
B7: VDD,max | C7: Maximum VDD | E7: 1.26 | F7: 1.26 | G7: 1.26 | H7: 1.26 | I7: 1.26 | J7: 1.26 | K7: 1.26 | L7: 1.26 | M7: 1.26 | N7: 1.26 | P7: 1.26 | Q7: 1.26 | R7: 1.26 | S7: 1.26 | T7: 1.26 | U7: 1.26 | V7: 1.26 | W7: 1.26 | X7: 1.26 | Y7: 1.26 | AA7: 1.26 | AB7: 1.26 | AC7: 1.26 | AD7: 1.26 | AE7: 1.26 | AF7: 1.26 | AG7: 1.26 | AH7: 1.26 | AI7: 1.26 | AJ7: 1.26 | AK7: V
B8: VDD,min | C8: Minimum VDD | E8: 1.14 | F8: 1.14 | G8: 1.14 | H8: 1.14 | I8: 1.14 | J8: 1.14 | K8: 1.14 | L8: 1.14 | M8: 1.14 | N8: 1.14 | P8: 1.14 | Q8: 1.14 | R8: 1.14 | S8: 1.14 | T8: 1.14 | U8: 1.14 | V8: 1.14 | W8: 1.14 | X8: 1.14 | Y8: 1.14 | AA8: 1.14 | AB8: 1.14 | AC8: 1.14 | AD8: 1.14 | AE8: 1.14 | AF8: 1.14 | AG8: 1.14 | AH8: 1.14 | AI8: 1.14 | AJ8: 1.14 | AK8: V
B9: VPP,max | C9: Maximum VPP | E9: 2.75 | F9: 2.75 | G9: 2.75 | H9: 2.75 | I9: 2.75 | J9: 2.75 | K9: 2.75 | L9: 2.75 | M9: 2.75 | N9: 2.75 | P9: 2.75 | Q9: 2.75 | R9: 2.75 | S9: 2.75 | T9: 2.75 | U9: 2.75 | V9: 2.75 | W9: 2.75 | X9: 2.75 | Y9: 2.75 | AA9: 2.75 | AB9: 2.75 | AC9: 2.75 | AD9: 2.75 | AE9: 2.75 | AF9: 2.75 | AG9: 2.75 | AH9: 2.75 | AI9: 2.75 | AJ9: 2.75 | AK9: V
B10: VPP,min | C10: Minimum VPP | E10: 2.375 | F10: 2.375 | G10: 2.375 | H10: 2.375 | I10: 2.375 | J10: 2.375 | K10: 2.375 | L10: 2.375 | M10: 2.375 | N10: 2.375 | P10: 2.375 | Q10: 2.375 | R10: 2.375 | S10: 2.375 | T10: 2.375 | U10: 2.375 | V10: 2.375 | W10: 2.375 | X10: 2.375 | Y10: 2.375 | AA10: 2.375 | AB10: 2.375 | AC10: 2.375 | AD10: 2.375 | AE10: 2.375 | AF10: 2.375 | AG10: 2.375 | AH10: 2.375 | AI10: 2.375 | AJ10: 2.375 | AK10: V
O11: IDD5R/IPP5R
O12: IDD5B/IPP5B
B13: IDD0 | C13: Active Bank Precharge Current | D13: x4 | AK13: mA
D14: x8 | AK14: mA
D15: x16 | AK15: mA
B16: IPP0 | C16: Word Line Boost Current | D16: x4 | AK16: mA
D17: x8 | AK17: mA
D18: x16 | AK18: mA
B19: IDD2P | C19: Maximum precharge power-down standby current | D19: x4 | AK19: mA
D20: x8 | AK20: mA
D21: x16 | AK21: mA
B22: IDD2N | C22: Maximum precharge standby current | D22: x4 | AK22: mA
D23: x8 | AK23: mA
D24: x16 | AK24: mA
B25: IDD3P | C25: Maximum active power-down standby current | D25: x4 | AK25: mA
D26: x8 | AK26: mA
D27: x16 | AK27: mA
B28: IDD3N | C28: Maximum active standby current | D28: x4 | AK28: mA
D29: x8 | AK29: mA
D30: x16 | AK30: mA
B31: IPP3N | C31: Maximum standby Ipp current | D31: x4 | AK31: mA
D32: x8 | AK32: mA
D33: x16 | AK33: mA
B34: IDD4R | C34: Maximum read burst current | D34: x4 | AK34: mA
D35: x8 | AK35: mA
D36: x16 | AK36: mA
B37: IPP4R | C37: Maximum read burst current | D37: x4 | AK37: mA
D38: x8 | AK38: mA
D39: x16 | AK39: mA
B40: IDD4W | C40: Maximum write burst current | D40: x4 | AK40: mA
D41: x8 | AK41: mA
D42: x16 | AK42: mA
B43: IPP4W | C43: Maximum write burst current | D43: x4 | AK43: mA
D44: x8 | AK44: mA
D45: x16 | AK45: mA
B46: IDD5R | C46: Maximum distriuted refresh current | D46: x4 | AK46: mA
D47: x8 | AK47: mA
D48: x16 | AK48: mA
B49: IPP5R | C49: Maximum distriuted refresh current | D49: x4 | AK49: mA
D50: x8 | AK50: mA
D51: x16 | AK51: mA
C53: tCK used for current measurements (see current notes) | E53: =2000/E5-0.001 -> 1.070811361 | F53: =2000/F5-0.001 -> 0.9366465073 | G53: =2000/G5-0.001 -> 0.9366465073 | H53: =2000/H5 -> 0.8333333333 | I53: 0.8333333333 | J53: 0.7501875469 | K53: 0.7501875469 | L53: 0.68189567 | M53: 0.68189567 | N53: 0.625 | P53: =2000/P5-0.001 -> 1.070811361 | Q53: =2000/Q5-0.001 -> 0.9366465073 | R53: =2000/R5-0.001 -> 0.9366465073 | S53: =2000/S5 -> 0.8333333333 | T53: =2000/T5 -> 0.8333333333 | U53: 0.7501875469 | V53: 0.7501875469 | W53: =2000/W5 -> 0.68189567 | X53: =2000/X5 -> 0.68189567 | Y53: =2000/Y5 -> 0.625 | AA53: =2000/AA5-0.001 -> 1.070811361 | AB53: =2000/AB5-0.001 -> 0.9366465073 | AC53: =2000/AC5-0.001 -> 0.9366465073 | AD53: =2000/AD5 -> 0.8333333333 | AE53: 0.8333333333 | AF53: 0.7501875469 | AG53: 0.7501875469 | AH53: 0.68189567 | AI53: 0.68189567 | AJ53: 0.625 | AK53: ns
B54: tRRD_s | C54: Minimum activate-to-activate timing (different bank, different BG) | D54: x4 | E54: 4.2 | F54: 3.7 | G54: 3.7 | H54: 3.3 | I54: 3.3 | J54: 3 | K54: 3 | L54: 2.7 | M54: 2.7 | N54: 2.5 | P54: 4.2 | Q54: 3.7 | R54: 3.7 | S54: 3.3 | T54: 3.3 | U54: 3 | V54: 3 | W54: 2.7 | X54: 2.7 | Y54: 2.5 | AA54: 4.2 | AB54: 3.7 | AC54: 3.7 | AD54: 3.3 | AE54: 3.3 | AF54: 3 | AG54: 3 | AH54: 2.7 | AI54: 2.7 | AJ54: 2.5 | AK54: ns
D55: x8 | E55: 4.2 | F55: 3.7 | G55: 3.7 | H55: 3.3 | I55: 3.3 | J55: 3 | K55: 3 | L55: 2.7 | M55: 2.7 | N55: 2.5 | P55: 4.2 | Q55: 3.7 | R55: 3.7 | S55: 3.3 | T55: 3.3 | U55: 3 | V55: 3 | W55: 2.7 | X55: 2.7 | Y55: 2.5 | AA55: 4.2 | AB55: 3.7 | AC55: 3.7 | AD55: 3.3 | AE55: 3.3 | AF55: 3 | AG55: 3 | AH55: 2.7 | AI55: 2.7 | AJ55: 2.5 | AK55: ns
D56: x16 | E56: 5.3 | F56: 5.3 | G56: 5.3 | H56: 5.3 | I56: 5.3 | J56: 5.3 | K56: 5.3 | L56: 5.3 | M56: 5.3 | N56: 5.3 | P56: 5.3 | Q56: 5.3 | R56: 5.3 | S56: 5.3 | T56: 5.3 | U56: 5.3 | V56: 5.3 | W56: 5.3 | X56: 5.3 | Y56: 5.3 | AA56: 5.3 | AB56: 5.3 | AC56: 5.3 | AD56: 5.3 | AE56: 5.3 | AF56: 5.3 | AG56: 5.3 | AH56: 5.3 | AI56: 5.3 | AJ56: 5.3 | AK56: ns
B57: tRRD_L | C57: Minimum activate-to-activate timing (different bank, same BG) | D57: x4 | E57: 5.3 | F57: 5.3 | G57: 5.3 | H57: 4.9 | I57: 4.9 | J57: 4.9 | K57: 4.9 | L57: 4.9 | M57: 4.9 | N57: 4.9 | P57: 5.3 | Q57: 5.3 | R57: 5.3 | S57: 4.9 | T57: 4.9 | U57: 4.9 | V57: 4.9 | W57: 4.9 | X57: 4.9 | Y57: 4.9 | AA57: 5.3 | AB57: 5.3 | AC57: 5.3 | AD57: 4.9 | AE57: 4.9 | AF57: 4.9 | AG57: 4.9 | AH57: 4.9 | AI57: 4.9 | AJ57: 4.9 | AK57: ns
D58: x8 | E58: 5.3 | F58: 5.3 | G58: 5.3 | H58: 4.9 | I58: 4.9 | J58: 4.9 | K58: 4.9 | L58: 4.9 | M58: 4.9 | N58: 4.9 | P58: 5.3 | Q58: 5.3 | R58: 5.3 | S58: 4.9 | T58: 4.9 | U58: 4.9 | V58: 4.9 | W58: 4.9 | X58: 4.9 | Y58: 4.9 | AA58: 5.3 | AB58: 5.3 | AC58: 5.3 | AD58: 4.9 | AE58: 4.9 | AF58: 4.9 | AG58: 4.9 | AH58: 4.9 | AI58: 4.9 | AJ58: 4.9 | AK58: ns
D59: x16 | E59: 6.4 | F59: 6.4 | G59: 6.4 | H59: 6.4 | I59: 6.4 | J59: 6.4 | K59: 6.4 | L59: 6.4 | M59: 6.4 | N59: 6.4 | P59: 6.4 | Q59: 6.4 | R59: 6.4 | S59: 6.4 | T59: 6.4 | U59: 6.4 | V59: 6.4 | W59: 6.4 | X59: 6.4 | Y59: 6.4 | AA59: 6.4 | AB59: 6.4 | AC59: 6.4 | AD59: 6.4 | AE59: 6.4 | AF59: 6.4 | AG59: 6.4 | AH59: 6.4 | AI59: 6.4 | AJ59: 6.4 | AK59: ns
B60: tRC | C60: Minimum activate-to-activate timing (same bank) | E60: 47.9 | F60: 48 | G60: 47.06 | H60: 46.16 | I60: 45.32 | J60: 46.16 | K60: 45.5 | L60: 46.32 | M60: 45.64 | N60: 45.75 | P60: 47.9 | Q60: 48 | R60: 47.06 | S60: 46.16 | T60: 45.32 | U60: 46.25 | V60: 46.16 | W60: 46.32 | X60: 45.64 | Y60: 45.75 | AA60: 47.9 | AB60: 48 | AC60: 47.06 | AD60: 46.16 | AE60: 45.32 | AF60: 46.16 | AG60: 45.5 | AH60: 46.32 | AI60: 45.64 | AJ60: 45.75 | AK60: ns
B61: tRAS | C61: tRAS used for IDD0 calculation | E61: 34 | F61: 33 | G61: 33 | H61: 32 | I61: 32 | J61: 32 | K61: 32 | L61: 32 | M61: 32 | N61: 32 | P61: 34 | Q61: 33 | R61: 33 | S61: 32 | T61: 32 | U61: 32 | V61: 32 | W61: 32 | X61: 32 | Y61: 32 | AA61: 34 | AB61: 33 | AC61: 33 | AD61: 32 | AE61: 32 | AF61: 32 | AG61: 32 | AH61: 32 | AI61: 32 | AJ61: 32 | AK61: ns
B62: tRFC (MIN) | C62: Minimum refresh-to-refresh cycle time | E62: 260 | F62: 260 | G62: 260 | H62: 260 | I62: 260 | J62: 260 | K62: 260 | L62: 260 | M62: 260 | N62: 260 | P62: 350 | Q62: 350 | R62: 350 | S62: 350 | T62: 350 | U62: 350 | V62: 350 | W62: 350 | X62: 350 | Y62: 350 | AA62: 350 | AB62: 350 | AC62: 350 | AD62: 350 | AE62: 350 | AF62: 350 | AG62: 350 | AH62: 350 | AI62: 350 | AJ62: 350 | AK62: ns
B63: tREFI | C63: Average periodic refresh cycle time | E63: 7.8 | F63: 7.8 | G63: 7.8 | H63: 7.8 | I63: 7.8 | J63: 7.8 | K63: 7.8 | L63: 7.8 | M63: 7.8 | N63: 7.8 | P63: 7.8 | Q63: 7.8 | R63: 7.8 | S63: 7.8 | T63: 7.8 | U63: 7.8 | V63: 7.8 | W63: 7.8 | X63: 7.8 | Y63: 7.8 | AA63: 7.8 | AB63: 7.8 | AC63: 7.8 | AD63: 7.8 | AE63: 7.8 | AF63: 7.8 | AG63: 7.8 | AH63: 7.8 | AI63: 7.8 | AJ63: 7.8 | AK63: µs
B64: tCK (MIN) | C64: Minimum tCK cycle rate | E64: =E53 -> 1.070811361 | F64: 0.9366465073 | G64: 0.9366465073 | H64: 0.8333333333 | I64: 0.8333333333 | J64: 0.7501875469 | K64: 0.7501875469 | L64: 0.68189567 | M64: 0.68189567 | N64: 0.625 | P64: =P53 -> 1.070811361 | Q64: =Q53 -> 0.9366465073 | R64: =R53 -> 0.9366465073 | S64: =S53 -> 0.8333333333 | T64: =T53 -> 0.8333333333 | U64: 0.7501875469 | V64: 0.7501875469 | W64: =W53 -> 0.68189567 | X64: =X53 -> 0.68189567 | Y64: =Y53 -> 0.625 | AA64: =AA53 -> 1.070811361 | AB64: 0.9366465073 | AC64: 0.9366465073 | AD64: 0.8333333333 | AE64: 0.8333333333 | AF64: 0.7501875469 | AG64: 0.7501875469 | AH64: 0.68189567 | AI64: 0.68189567 | AJ64: 0.625 | AK64: ns
B65: tCK (MAX) | C65: Maximum tCK cycle rate | E65: 1.9 | F65: 1.9 | G65: 1.9 | H65: 1.9 | I65: 1.9 | J65: 1.9 | K65: 1.9 | L65: 1.9 | M65: 1.9 | N65: 1.9 | P65: 1.9 | Q65: 1.9 | R65: 1.9 | S65: 1.9 | T65: 1.9 | U65: 1.9 | V65: 1.9 | W65: 1.9 | X65: 1.9 | Y65: 1.9 | AA65: 1.9 | AB65: 1.9 | AC65: 1.9 | AD65: 1.9 | AE65: 1.9 | AF65: 1.9 | AG65: 1.9 | AH65: 1.9 | AI65: 1.9 | AJ65: 1.9 | AK65: ns
B68: Do Not Go Below This Box Do Not Go Below This Box Do Not Go Below This Box Do Not Go Below This Box Do Not Go Below This Box Do Not Go Below This Box Do Not Go Below This Box Do Not Go Below This Box
E69: =IF('DDR4 Config'!$O$1=1,'DDR4 Spec'!E6,IF('DDR4 Config'!$O$1=2,'DDR4 Spec'!P6,IF('DDR4 Config'!$O$1=3,'DDR4 Spec'!AA6,'DDR4 Spec'!#REF!))) -> -107E | F69: =IF('DDR4 Config'!$O$1=1,'DDR4 Spec'!F6,IF('DDR4 Config'!$O$1=2,'DDR4 Spec'!Q6,IF('DDR4 Config'!$O$1=3,'DDR4 Spec'!AB6,'DDR4 Spec'!#REF!))) -> -093 | G69: =IF('DDR4 Config'!$O$1=1,'DDR4 Spec'!G6,IF('DDR4 Config'!$O$1=2,'DDR4 Spec'!R6,IF('DDR4 Config'!$O$1=3,'DDR4 Spec'!AC6,'DDR4 Spec'!#REF!))) -> -093E | H69: =IF('DDR4 Config'!$O$1=1,'DDR4 Spec'!H6,IF('DDR4 Config'!$O$1=2,'DDR4 Spec'!S6,IF('DDR4 Config'!$O$1=3,'DDR4 Spec'!AD6,'DDR4 Spec'!#REF!))) -> -083 | I69: =IF('DDR4 Config'!$O$1=1,'DDR4 Spec'!I6,IF('DDR4 Config'!$O$1=2,'DDR4 Spec'!T6,IF('DDR4 Config'!$O$1=3,'DDR4 Spec'!AE6,'DDR4 Spec'!#REF!))) -> -083E | J69: =IF('DDR4 Config'!$O$1=1,'DDR4 Spec'!J6,IF('DDR4 Config'!$O$1=2,'DDR4 Spec'!U6,IF('DDR4 Config'!$O$1=3,'DDR4 Spec'!AF6,'DDR4 Spec'!#REF!))) -> -075 | K69: =IF('DDR4 Config'!$O$1=1,'DDR4 Spec'!K6,IF('DDR4 Config'!$O$1=2,'DDR4 Spec'!V6,IF('DDR4 Config'!$O$1=3,'DDR4 Spec'!AG6,'DDR4 Spec'!#REF!))) -> -075E | L69: =IF('DDR4 Config'!$O$1=1,'DDR4 Spec'!L6,IF('DDR4 Config'!$O$1=2,'DDR4 Spec'!W6,IF('DDR4 Config'!$O$1=3,'DDR4 Spec'!AH6,'DDR4 Spec'!#REF!))) -> -068 | M69: =IF('DDR4 Config'!$O$1=1,'DDR4 Spec'!M6,IF('DDR4 Config'!$O$1=2,'DDR4 Spec'!X6,IF('DDR4 Config'!$O$1=3,'DDR4 Spec'!AI6,'DDR4 Spec'!#REF!))) -> -068E | N69: =IF('DDR4 Config'!$O$1=1,'DDR4 Spec'!N6,IF('DDR4 Config'!$O$1=2,'DDR4 Spec'!Y6,IF('DDR4 Config'!$O$1=3,'DDR4 Spec'!AJ6,'DDR4 Spec'!#REF!))) -> -062E | O69: ='DDR4 Config'!D9 -> -062E
E70: 1 | F70: 2 | G70: 3 | H70: 4 | I70: 5 | J70: 6 | K70: 7 | L70: 8 | M70: 9 | N70: 10 | O70: ='DDR4 Config'!P1 -> 10
E71: =IF('DDR4 Config'!$O$1=1,'DDR4 Spec'!E7,IF('DDR4 Config'!$O$1=2,'DDR4 Spec'!P7,IF('DDR4 Config'!$O$1=3,'DDR4 Spec'!AA7,'DDR4 Spec'!#REF!))) -> 1.26 | F71: =IF('DDR4 Config'!$O$1=1,'DDR4 Spec'!F7,IF('DDR4 Config'!$O$1=2,'DDR4 Spec'!Q7,IF('DDR4 Config'!$O$1=3,'DDR4 Spec'!AB7,'DDR4 Spec'!AK7))) -> 1.26 | G71: =IF('DDR4 Config'!$O$1=1,'DDR4 Spec'!G7,IF('DDR4 Config'!$O$1=2,'DDR4 Spec'!R7,IF('DDR4 Config'!$O$1=3,'DDR4 Spec'!AC7,'DDR4 Spec'!#REF!))) -> 1.26 | H71: =IF('DDR4 Config'!$O$1=1,'DDR4 Spec'!H7,IF('DDR4 Config'!$O$1=2,'DDR4 Spec'!S7,IF('DDR4 Config'!$O$1=3,'DDR4 Spec'!AD7,'DDR4 Spec'!#REF!))) -> 1.26 | I71: =IF('DDR4 Config'!$O$1=1,'DDR4 Spec'!I7,IF('DDR4 Config'!$O$1=2,'DDR4 Spec'!T7,IF('DDR4 Config'!$O$1=3,'DDR4 Spec'!AE7,'DDR4 Spec'!#REF!))) -> 1.26 | J71: =IF('DDR4 Config'!$O$1=1,'DDR4 Spec'!J7,IF('DDR4 Config'!$O$1=2,'DDR4 Spec'!U7,IF('DDR4 Config'!$O$1=3,'DDR4 Spec'!AF7,'DDR4 Spec'!#REF!))) -> 1.26 | K71: =IF('DDR4 Config'!$O$1=1,'DDR4 Spec'!K7,IF('DDR4 Config'!$O$1=2,'DDR4 Spec'!V7,IF('DDR4 Config'!$O$1=3,'DDR4 Spec'!AG7,'DDR4 Spec'!#REF!))) -> 1.26 | L71: =IF('DDR4 Config'!$O$1=1,'DDR4 Spec'!L7,IF('DDR4 Config'!$O$1=2,'DDR4 Spec'!W7,IF('DDR4 Config'!$O$1=3,'DDR4 Spec'!AH7,'DDR4 Spec'!#REF!))) -> 1.26 | M71: =IF('DDR4 Config'!$O$1=1,'DDR4 Spec'!M7,IF('DDR4 Config'!$O$1=2,'DDR4 Spec'!X7,IF('DDR4 Config'!$O$1=3,'DDR4 Spec'!AI7,'DDR4 Spec'!#REF!))) -> 1.26 | N71: =IF('DDR4 Config'!$O$1=1,'DDR4 Spec'!N7,IF('DDR4 Config'!$O$1=2,'DDR4 Spec'!Y7,IF('DDR4 Config'!$O$1=3,'DDR4 Spec'!AJ7,'DDR4 Spec'!#REF!))) -> 1.26 | O71: =HLOOKUP($O$70,$E$70:$N$129,2) -> 1.26
E72: =IF('DDR4 Config'!$O$1=1,'DDR4 Spec'!E8,IF('DDR4 Config'!$O$1=2,'DDR4 Spec'!P8,IF('DDR4 Config'!$O$1=3,'DDR4 Spec'!AA8,'DDR4 Spec'!#REF!))) -> 1.14 | F72: =IF('DDR4 Config'!$O$1=1,'DDR4 Spec'!F8,IF('DDR4 Config'!$O$1=2,'DDR4 Spec'!Q8,IF('DDR4 Config'!$O$1=3,'DDR4 Spec'!AB8,'DDR4 Spec'!AK8))) -> 1.14 | G72: =IF('DDR4 Config'!$O$1=1,'DDR4 Spec'!G8,IF('DDR4 Config'!$O$1=2,'DDR4 Spec'!R8,IF('DDR4 Config'!$O$1=3,'DDR4 Spec'!AC8,'DDR4 Spec'!#REF!))) -> 1.14 | H72: =IF('DDR4 Config'!$O$1=1,'DDR4 Spec'!H8,IF('DDR4 Config'!$O$1=2,'DDR4 Spec'!S8,IF('DDR4 Config'!$O$1=3,'DDR4 Spec'!AD8,'DDR4 Spec'!#REF!))) -> 1.14 | I72: =IF('DDR4 Config'!$O$1=1,'DDR4 Spec'!I8,IF('DDR4 Config'!$O$1=2,'DDR4 Spec'!T8,IF('DDR4 Config'!$O$1=3,'DDR4 Spec'!AE8,'DDR4 Spec'!#REF!))) -> 1.14 | J72: =IF('DDR4 Config'!$O$1=1,'DDR4 Spec'!J8,IF('DDR4 Config'!$O$1=2,'DDR4 Spec'!U8,IF('DDR4 Config'!$O$1=3,'DDR4 Spec'!AF8,'DDR4 Spec'!#REF!))) -> 1.14 | K72: =IF('DDR4 Config'!$O$1=1,'DDR4 Spec'!K8,IF('DDR4 Config'!$O$1=2,'DDR4 Spec'!V8,IF('DDR4 Config'!$O$1=3,'DDR4 Spec'!AG8,'DDR4 Spec'!#REF!))) -> 1.14 | L72: =IF('DDR4 Config'!$O$1=1,'DDR4 Spec'!L8,IF('DDR4 Config'!$O$1=2,'DDR4 Spec'!W8,IF('DDR4 Config'!$O$1=3,'DDR4 Spec'!AH8,'DDR4 Spec'!#REF!))) -> 1.14 | M72: =IF('DDR4 Config'!$O$1=1,'DDR4 Spec'!M8,IF('DDR4 Config'!$O$1=2,'DDR4 Spec'!X8,IF('DDR4 Config'!$O$1=3,'DDR4 Spec'!AI8,'DDR4 Spec'!#REF!))) -> 1.14 | N72: =IF('DDR4 Config'!$O$1=1,'DDR4 Spec'!N8,IF('DDR4 Config'!$O$1=2,'DDR4 Spec'!Y8,IF('DDR4 Config'!$O$1=3,'DDR4 Spec'!AJ8,'DDR4 Spec'!#REF!))) -> 1.14 | O72: =HLOOKUP($O$70,$E$70:$N$129,3) -> 1.14
E73: =IF('DDR4 Config'!$O$1=1,'DDR4 Spec'!E9,IF('DDR4 Config'!$O$1=2,'DDR4 Spec'!P9,IF('DDR4 Config'!$O$1=3,'DDR4 Spec'!AA9,'DDR4 Spec'!#REF!))) -> 2.75 | F73: =IF('DDR4 Config'!$O$1=1,'DDR4 Spec'!F9,IF('DDR4 Config'!$O$1=2,'DDR4 Spec'!Q9,IF('DDR4 Config'!$O$1=3,'DDR4 Spec'!AB9,'DDR4 Spec'!AK9))) -> 2.75 | G73: =IF('DDR4 Config'!$O$1=1,'DDR4 Spec'!G9,IF('DDR4 Config'!$O$1=2,'DDR4 Spec'!R9,IF('DDR4 Config'!$O$1=3,'DDR4 Spec'!AC9,'DDR4 Spec'!#REF!))) -> 2.75 | H73: =IF('DDR4 Config'!$O$1=1,'DDR4 Spec'!H9,IF('DDR4 Config'!$O$1=2,'DDR4 Spec'!S9,IF('DDR4 Config'!$O$1=3,'DDR4 Spec'!AD9,'DDR4 Spec'!#REF!))) -> 2.75 | I73: =IF('DDR4 Config'!$O$1=1,'DDR4 Spec'!I9,IF('DDR4 Config'!$O$1=2,'DDR4 Spec'!T9,IF('DDR4 Config'!$O$1=3,'DDR4 Spec'!AE9,'DDR4 Spec'!#REF!))) -> 2.75 | J73: =IF('DDR4 Config'!$O$1=1,'DDR4 Spec'!J9,IF('DDR4 Config'!$O$1=2,'DDR4 Spec'!U9,IF('DDR4 Config'!$O$1=3,'DDR4 Spec'!AF9,'DDR4 Spec'!#REF!))) -> 2.75 | K73: =IF('DDR4 Config'!$O$1=1,'DDR4 Spec'!K9,IF('DDR4 Config'!$O$1=2,'DDR4 Spec'!V9,IF('DDR4 Config'!$O$1=3,'DDR4 Spec'!AG9,'DDR4 Spec'!#REF!))) -> 2.75 | L73: =IF('DDR4 Config'!$O$1=1,'DDR4 Spec'!L9,IF('DDR4 Config'!$O$1=2,'DDR4 Spec'!W9,IF('DDR4 Config'!$O$1=3,'DDR4 Spec'!AH9,'DDR4 Spec'!#REF!))) -> 2.75 | M73: =IF('DDR4 Config'!$O$1=1,'DDR4 Spec'!M9,IF('DDR4 Config'!$O$1=2,'DDR4 Spec'!X9,IF('DDR4 Config'!$O$1=3,'DDR4 Spec'!AI9,'DDR4 Spec'!#REF!))) -> 2.75 | N73: =IF('DDR4 Config'!$O$1=1,'DDR4 Spec'!N9,IF('DDR4 Config'!$O$1=2,'DDR4 Spec'!Y9,IF('DDR4 Config'!$O$1=3,'DDR4 Spec'!AJ9,'DDR4 Spec'!#REF!))) -> 2.75 | O73: =HLOOKUP($O$70,$E$70:$N$129,4) -> 2.75
E74: =IF('DDR4 Config'!$O$1=1,'DDR4 Spec'!E10,IF('DDR4 Config'!$O$1=2,'DDR4 Spec'!P10,IF('DDR4 Config'!$O$1=3,'DDR4 Spec'!AA10,'DDR4 Spec'!#REF!))) -> 2.375 | F74: =IF('DDR4 Config'!$O$1=1,'DDR4 Spec'!F10,IF('DDR4 Config'!$O$1=2,'DDR4 Spec'!Q10,IF('DDR4 Config'!$O$1=3,'DDR4 Spec'!AB10,'DDR4 Spec'!AK10))) -> 2.375 | G74: =IF('DDR4 Config'!$O$1=1,'DDR4 Spec'!G10,IF('DDR4 Config'!$O$1=2,'DDR4 Spec'!R10,IF('DDR4 Config'!$O$1=3,'DDR4 Spec'!AC10,'DDR4 Spec'!#REF!))) -> 2.375 | H74: =IF('DDR4 Config'!$O$1=1,'DDR4 Spec'!H10,IF('DDR4 Config'!$O$1=2,'DDR4 Spec'!S10,IF('DDR4 Config'!$O$1=3,'DDR4 Spec'!AD10,'DDR4 Spec'!#REF!))) -> 2.375 | I74: =IF('DDR4 Config'!$O$1=1,'DDR4 Spec'!I10,IF('DDR4 Config'!$O$1=2,'DDR4 Spec'!T10,IF('DDR4 Config'!$O$1=3,'DDR4 Spec'!AE10,'DDR4 Spec'!#REF!))) -> 2.375 | J74: =IF('DDR4 Config'!$O$1=1,'DDR4 Spec'!J10,IF('DDR4 Config'!$O$1=2,'DDR4 Spec'!U10,IF('DDR4 Config'!$O$1=3,'DDR4 Spec'!AF10,'DDR4 Spec'!#REF!))) -> 2.375 | K74: =IF('DDR4 Config'!$O$1=1,'DDR4 Spec'!K10,IF('DDR4 Config'!$O$1=2,'DDR4 Spec'!V10,IF('DDR4 Config'!$O$1=3,'DDR4 Spec'!AG10,'DDR4 Spec'!#REF!))) -> 2.375 | L74: =IF('DDR4 Config'!$O$1=1,'DDR4 Spec'!L10,IF('DDR4 Config'!$O$1=2,'DDR4 Spec'!W10,IF('DDR4 Config'!$O$1=3,'DDR4 Spec'!AH10,'DDR4 Spec'!#REF!))) -> 2.375 | M74: =IF('DDR4 Config'!$O$1=1,'DDR4 Spec'!M10,IF('DDR4 Config'!$O$1=2,'DDR4 Spec'!X10,IF('DDR4 Config'!$O$1=3,'DDR4 Spec'!AI10,'DDR4 Spec'!#REF!))) -> 2.375 | N74: =IF('DDR4 Config'!$O$1=1,'DDR4 Spec'!N10,IF('DDR4 Config'!$O$1=2,'DDR4 Spec'!Y10,IF('DDR4 Config'!$O$1=3,'DDR4 Spec'!AJ10,'DDR4 Spec'!#REF!))) -> 2.375 | O74: =HLOOKUP($O$70,$E$70:$N$129,5) -> 2.375
C76: 69 | D76: IDD0 | E76: =IF('DDR4 Config'!$O$1=1,'DDR4 Spec'!E13,IF('DDR4 Config'!$O$1=2,'DDR4 Spec'!P13,IF('DDR4 Config'!$O$1=3,'DDR4 Spec'!AA13,'DDR4 Spec'!#REF!))) -> 0 | F76: =IF('DDR4 Config'!$O$1=1,'DDR4 Spec'!F13,IF('DDR4 Config'!$O$1=2,'DDR4 Spec'!Q13,IF('DDR4 Config'!$O$1=3,'DDR4 Spec'!AB13,'DDR4 Spec'!#REF!))) -> 0 | G76: =IF('DDR4 Config'!$O$1=1,'DDR4 Spec'!G13,IF('DDR4 Config'!$O$1=2,'DDR4 Spec'!R13,IF('DDR4 Config'!$O$1=3,'DDR4 Spec'!AC13,'DDR4 Spec'!#REF!))) -> 0 | H76: =IF('DDR4 Config'!$O$1=1,'DDR4 Spec'!H13,IF('DDR4 Config'!$O$1=2,'DDR4 Spec'!S13,IF('DDR4 Config'!$O$1=3,'DDR4 Spec'!AD13,'DDR4 Spec'!#REF!))) -> 0 | I76: =IF('DDR4 Config'!$O$1=1,'DDR4 Spec'!I13,IF('DDR4 Config'!$O$1=2,'DDR4 Spec'!T13,IF('DDR4 Config'!$O$1=3,'DDR4 Spec'!AE13,'DDR4 Spec'!#REF!))) -> 0 | J76: =IF('DDR4 Config'!$O$1=1,'DDR4 Spec'!J13,IF('DDR4 Config'!$O$1=2,'DDR4 Spec'!U13,IF('DDR4 Config'!$O$1=3,'DDR4 Spec'!AF13,'DDR4 Spec'!#REF!))) -> 0 | K76: =IF('DDR4 Config'!$O$1=1,'DDR4 Spec'!K13,IF('DDR4 Config'!$O$1=2,'DDR4 Spec'!V13,IF('DDR4 Config'!$O$1=3,'DDR4 Spec'!AG13,'DDR4 Spec'!#REF!))) -> 0 | L76: =IF('DDR4 Config'!$O$1=1,'DDR4 Spec'!L13,IF('DDR4 Config'!$O$1=2,'DDR4 Spec'!W13,IF('DDR4 Config'!$O$1=3,'DDR4 Spec'!AH13,'DDR4 Spec'!#REF!))) -> 0 | M76: =IF('DDR4 Config'!$O$1=1,'DDR4 Spec'!M13,IF('DDR4 Config'!$O$1=2,'DDR4 Spec'!X13,IF('DDR4 Config'!$O$1=3,'DDR4 Spec'!AI13,'DDR4 Spec'!#REF!))) -> 0 | N76: =IF('DDR4 Config'!$O$1=1,'DDR4 Spec'!N13,IF('DDR4 Config'!$O$1=2,'DDR4 Spec'!Y13,IF('DDR4 Config'!$O$1=3,'DDR4 Spec'!AJ13,'DDR4 Spec'!#REF!))) -> 0 | O76: =HLOOKUP($O$70,$E$70:$N$129,7) -> 0
C77: =C76+1 -> 70 | E77: =IF('DDR4 Config'!$O$1=1,'DDR4 Spec'!E14,IF('DDR4 Config'!$O$1=2,'DDR4 Spec'!P14,IF('DDR4 Config'!$O$1=3,'DDR4 Spec'!AA14,'DDR4 Spec'!#REF!))) -> 0 | F77: =IF('DDR4 Config'!$O$1=1,'DDR4 Spec'!F14,IF('DDR4 Config'!$O$1=2,'DDR4 Spec'!Q14,IF('DDR4 Config'!$O$1=3,'DDR4 Spec'!AB14,'DDR4 Spec'!#REF!))) -> 0 | G77: =IF('DDR4 Config'!$O$1=1,'DDR4 Spec'!G14,IF('DDR4 Config'!$O$1=2,'DDR4 Spec'!R14,IF('DDR4 Config'!$O$1=3,'DDR4 Spec'!AC14,'DDR4 Spec'!#REF!))) -> 0 | H77: =IF('DDR4 Config'!$O$1=1,'DDR4 Spec'!H14,IF('DDR4 Config'!$O$1=2,'DDR4 Spec'!S14,IF('DDR4 Config'!$O$1=3,'DDR4 Spec'!AD14,'DDR4 Spec'!#REF!))) -> 0 | I77: =IF('DDR4 Config'!$O$1=1,'DDR4 Spec'!I14,IF('DDR4 Config'!$O$1=2,'DDR4 Spec'!T14,IF('DDR4 Config'!$O$1=3,'DDR4 Spec'!AE14,'DDR4 Spec'!#REF!))) -> 0 | J77: =IF('DDR4 Config'!$O$1=1,'DDR4 Spec'!J14,IF('DDR4 Config'!$O$1=2,'DDR4 Spec'!U14,IF('DDR4 Config'!$O$1=3,'DDR4 Spec'!AF14,'DDR4 Spec'!#REF!))) -> 0 | K77: =IF('DDR4 Config'!$O$1=1,'DDR4 Spec'!K14,IF('DDR4 Config'!$O$1=2,'DDR4 Spec'!V14,IF('DDR4 Config'!$O$1=3,'DDR4 Spec'!AG14,'DDR4 Spec'!#REF!))) -> 0 | L77: =IF('DDR4 Config'!$O$1=1,'DDR4 Spec'!L14,IF('DDR4 Config'!$O$1=2,'DDR4 Spec'!W14,IF('DDR4 Config'!$O$1=3,'DDR4 Spec'!AH14,'DDR4 Spec'!#REF!))) -> 0 | M77: =IF('DDR4 Config'!$O$1=1,'DDR4 Spec'!M14,IF('DDR4 Config'!$O$1=2,'DDR4 Spec'!X14,IF('DDR4 Config'!$O$1=3,'DDR4 Spec'!AI14,'DDR4 Spec'!#REF!))) -> 0 | N77: =IF('DDR4 Config'!$O$1=1,'DDR4 Spec'!N14,IF('DDR4 Config'!$O$1=2,'DDR4 Spec'!Y14,IF('DDR4 Config'!$O$1=3,'DDR4 Spec'!AJ14,'DDR4 Spec'!#REF!))) -> 0 | O77: =HLOOKUP($O$70,$E$70:$N$129,8) -> 0
C78: =C77+1 -> 71 | E78: =IF('DDR4 Config'!$O$1=1,'DDR4 Spec'!E15,IF('DDR4 Config'!$O$1=2,'DDR4 Spec'!P15,IF('DDR4 Config'!$O$1=3,'DDR4 Spec'!AA15,'DDR4 Spec'!#REF!))) -> 0 | F78: =IF('DDR4 Config'!$O$1=1,'DDR4 Spec'!F15,IF('DDR4 Config'!$O$1=2,'DDR4 Spec'!Q15,IF('DDR4 Config'!$O$1=3,'DDR4 Spec'!AB15,'DDR4 Spec'!#REF!))) -> 0 | G78: =IF('DDR4 Config'!$O$1=1,'DDR4 Spec'!G15,IF('DDR4 Config'!$O$1=2,'DDR4 Spec'!R15,IF('DDR4 Config'!$O$1=3,'DDR4 Spec'!AC15,'DDR4 Spec'!#REF!))) -> 0 | H78: =IF('DDR4 Config'!$O$1=1,'DDR4 Spec'!H15,IF('DDR4 Config'!$O$1=2,'DDR4 Spec'!S15,IF('DDR4 Config'!$O$1=3,'DDR4 Spec'!AD15,'DDR4 Spec'!#REF!))) -> 0 | I78: =IF('DDR4 Config'!$O$1=1,'DDR4 Spec'!I15,IF('DDR4 Config'!$O$1=2,'DDR4 Spec'!T15,IF('DDR4 Config'!$O$1=3,'DDR4 Spec'!AE15,'DDR4 Spec'!#REF!))) -> 0 | J78: =IF('DDR4 Config'!$O$1=1,'DDR4 Spec'!J15,IF('DDR4 Config'!$O$1=2,'DDR4 Spec'!U15,IF('DDR4 Config'!$O$1=3,'DDR4 Spec'!AF15,'DDR4 Spec'!#REF!))) -> 0 | K78: =IF('DDR4 Config'!$O$1=1,'DDR4 Spec'!K15,IF('DDR4 Config'!$O$1=2,'DDR4 Spec'!V15,IF('DDR4 Config'!$O$1=3,'DDR4 Spec'!AG15,'DDR4 Spec'!#REF!))) -> 0 | L78: =IF('DDR4 Config'!$O$1=1,'DDR4 Spec'!L15,IF('DDR4 Config'!$O$1=2,'DDR4 Spec'!W15,IF('DDR4 Config'!$O$1=3,'DDR4 Spec'!AH15,'DDR4 Spec'!#REF!))) -> 0 | M78: =IF('DDR4 Config'!$O$1=1,'DDR4 Spec'!M15,IF('DDR4 Config'!$O$1=2,'DDR4 Spec'!X15,IF('DDR4 Config'!$O$1=3,'DDR4 Spec'!AI15,'DDR4 Spec'!#REF!))) -> 0 | N78: =IF('DDR4 Config'!$O$1=1,'DDR4 Spec'!N15,IF('DDR4 Config'!$O$1=2,'DDR4 Spec'!Y15,IF('DDR4 Config'!$O$1=3,'DDR4 Spec'!AJ15,'DDR4 Spec'!#REF!))) -> 0 | O78: =HLOOKUP($O$70,$E$70:$N$129,9) -> 0
C79: 72 | D79: IPP0 | E79: =IF('DDR4 Config'!$O$1=1,'DDR4 Spec'!E16,IF('DDR4 Config'!$O$1=2,'DDR4 Spec'!P16,IF('DDR4 Config'!$O$1=3,'DDR4 Spec'!AA16,'DDR4 Spec'!#REF!))) -> 0 | F79: =IF('DDR4 Config'!$O$1=1,'DDR4 Spec'!F16,IF('DDR4 Config'!$O$1=2,'DDR4 Spec'!Q16,IF('DDR4 Config'!$O$1=3,'DDR4 Spec'!AB16,'DDR4 Spec'!#REF!))) -> 0 | G79: =IF('DDR4 Config'!$O$1=1,'DDR4 Spec'!G16,IF('DDR4 Config'!$O$1=2,'DDR4 Spec'!R16,IF('DDR4 Config'!$O$1=3,'DDR4 Spec'!AC16,'DDR4 Spec'!#REF!))) -> 0 | H79: =IF('DDR4 Config'!$O$1=1,'DDR4 Spec'!H16,IF('DDR4 Config'!$O$1=2,'DDR4 Spec'!S16,IF('DDR4 Config'!$O$1=3,'DDR4 Spec'!AD16,'DDR4 Spec'!#REF!))) -> 0 | I79: =IF('DDR4 Config'!$O$1=1,'DDR4 Spec'!I16,IF('DDR4 Config'!$O$1=2,'DDR4 Spec'!T16,IF('DDR4 Config'!$O$1=3,'DDR4 Spec'!AE16,'DDR4 Spec'!#REF!))) -> 0 | J79: =IF('DDR4 Config'!$O$1=1,'DDR4 Spec'!J16,IF('DDR4 Config'!$O$1=2,'DDR4 Spec'!U16,IF('DDR4 Config'!$O$1=3,'DDR4 Spec'!AF16,'DDR4 Spec'!#REF!))) -> 0 | K79: =IF('DDR4 Config'!$O$1=1,'DDR4 Spec'!K16,IF('DDR4 Config'!$O$1=2,'DDR4 Spec'!V16,IF('DDR4 Config'!$O$1=3,'DDR4 Spec'!AG16,'DDR4 Spec'!#REF!))) -> 0 | L79: =IF('DDR4 Config'!$O$1=1,'DDR4 Spec'!L16,IF('DDR4 Config'!$O$1=2,'DDR4 Spec'!W16,IF('DDR4 Config'!$O$1=3,'DDR4 Spec'!AH16,'DDR4 Spec'!#REF!))) -> 0 | M79: =IF('DDR4 Config'!$O$1=1,'DDR4 Spec'!M16,IF('DDR4 Config'!$O$1=2,'DDR4 Spec'!X16,IF('DDR4 Config'!$O$1=3,'DDR4 Spec'!AI16,'DDR4 Spec'!#REF!))) -> 0 | N79: =IF('DDR4 Config'!$O$1=1,'DDR4 Spec'!N16,IF('DDR4 Config'!$O$1=2,'DDR4 Spec'!Y16,IF('DDR4 Config'!$O$1=3,'DDR4 Spec'!AJ16,'DDR4 Spec'!#REF!))) -> 0 | O79: =HLOOKUP($O$70,$E$70:$N$129,10) -> 0
C80: 73 | E80: =IF('DDR4 Config'!$O$1=1,'DDR4 Spec'!E17,IF('DDR4 Config'!$O$1=2,'DDR4 Spec'!P17,IF('DDR4 Config'!$O$1=3,'DDR4 Spec'!AA17,'DDR4 Spec'!#REF!))) -> 0 | F80: =IF('DDR4 Config'!$O$1=1,'DDR4 Spec'!F17,IF('DDR4 Config'!$O$1=2,'DDR4 Spec'!Q17,IF('DDR4 Config'!$O$1=3,'DDR4 Spec'!AB17,'DDR4 Spec'!#REF!))) -> 0 | G80: =IF('DDR4 Config'!$O$1=1,'DDR4 Spec'!G17,IF('DDR4 Config'!$O$1=2,'DDR4 Spec'!R17,IF('DDR4 Config'!$O$1=3,'DDR4 Spec'!AC17,'DDR4 Spec'!#REF!))) -> 0 | H80: =IF('DDR4 Config'!$O$1=1,'DDR4 Spec'!H17,IF('DDR4 Config'!$O$1=2,'DDR4 Spec'!S17,IF('DDR4 Config'!$O$1=3,'DDR4 Spec'!AD17,'DDR4 Spec'!#REF!))) -> 0 | I80: =IF('DDR4 Config'!$O$1=1,'DDR4 Spec'!I17,IF('DDR4 Config'!$O$1=2,'DDR4 Spec'!T17,IF('DDR4 Config'!$O$1=3,'DDR4 Spec'!AE17,'DDR4 Spec'!#REF!))) -> 0 | J80: =IF('DDR4 Config'!$O$1=1,'DDR4 Spec'!J17,IF('DDR4 Config'!$O$1=2,'DDR4 Spec'!U17,IF('DDR4 Config'!$O$1=3,'DDR4 Spec'!AF17,'DDR4 Spec'!#REF!))) -> 0 | K80: =IF('DDR4 Config'!$O$1=1,'DDR4 Spec'!K17,IF('DDR4 Config'!$O$1=2,'DDR4 Spec'!V17,IF('DDR4 Config'!$O$1=3,'DDR4 Spec'!AG17,'DDR4 Spec'!#REF!))) -> 0 | L80: =IF('DDR4 Config'!$O$1=1,'DDR4 Spec'!L17,IF('DDR4 Config'!$O$1=2,'DDR4 Spec'!W17,IF('DDR4 Config'!$O$1=3,'DDR4 Spec'!AH17,'DDR4 Spec'!#REF!))) -> 0 | M80: =IF('DDR4 Config'!$O$1=1,'DDR4 Spec'!M17,IF('DDR4 Config'!$O$1=2,'DDR4 Spec'!X17,IF('DDR4 Config'!$O$1=3,'DDR4 Spec'!AI17,'DDR4 Spec'!#REF!))) -> 0 | N80: =IF('DDR4 Config'!$O$1=1,'DDR4 Spec'!N17,IF('DDR4 Config'!$O$1=2,'DDR4 Spec'!Y17,IF('DDR4 Config'!$O$1=3,'DDR4 Spec'!AJ17,'DDR4 Spec'!#REF!))) -> 0 | O80: =HLOOKUP($O$70,$E$70:$N$129,11) -> 0
C81: 74 | E81: =IF('DDR4 Config'!$O$1=1,'DDR4 Spec'!E18,IF('DDR4 Config'!$O$1=2,'DDR4 Spec'!P18,IF('DDR4 Config'!$O$1=3,'DDR4 Spec'!AA18,'DDR4 Spec'!#REF!))) -> 0 | F81: =IF('DDR4 Config'!$O$1=1,'DDR4 Spec'!F18,IF('DDR4 Config'!$O$1=2,'DDR4 Spec'!Q18,IF('DDR4 Config'!$O$1=3,'DDR4 Spec'!AB18,'DDR4 Spec'!#REF!))) -> 0 | G81: =IF('DDR4 Config'!$O$1=1,'DDR4 Spec'!G18,IF('DDR4 Config'!$O$1=2,'DDR4 Spec'!R18,IF('DDR4 Config'!$O$1=3,'DDR4 Spec'!AC18,'DDR4 Spec'!#REF!))) -> 0 | H81: =IF('DDR4 Config'!$O$1=1,'DDR4 Spec'!H18,IF('DDR4 Config'!$O$1=2,'DDR4 Spec'!S18,IF('DDR4 Config'!$O$1=3,'DDR4 Spec'!AD18,'DDR4 Spec'!#REF!))) -> 0 | I81: =IF('DDR4 Config'!$O$1=1,'DDR4 Spec'!I18,IF('DDR4 Config'!$O$1=2,'DDR4 Spec'!T18,IF('DDR4 Config'!$O$1=3,'DDR4 Spec'!AE18,'DDR4 Spec'!#REF!))) -> 0 | J81: =IF('DDR4 Config'!$O$1=1,'DDR4 Spec'!J18,IF('DDR4 Config'!$O$1=2,'DDR4 Spec'!U18,IF('DDR4 Config'!$O$1=3,'DDR4 Spec'!AF18,'DDR4 Spec'!#REF!))) -> 0 | K81: =IF('DDR4 Config'!$O$1=1,'DDR4 Spec'!K18,IF('DDR4 Config'!$O$1=2,'DDR4 Spec'!V18,IF('DDR4 Config'!$O$1=3,'DDR4 Spec'!AG18,'DDR4 Spec'!#REF!))) -> 0 | L81: =IF('DDR4 Config'!$O$1=1,'DDR4 Spec'!L18,IF('DDR4 Config'!$O$1=2,'DDR4 Spec'!W18,IF('DDR4 Config'!$O$1=3,'DDR4 Spec'!AH18,'DDR4 Spec'!#REF!))) -> 0 | M81: =IF('DDR4 Config'!$O$1=1,'DDR4 Spec'!M18,IF('DDR4 Config'!$O$1=2,'DDR4 Spec'!X18,IF('DDR4 Config'!$O$1=3,'DDR4 Spec'!AI18,'DDR4 Spec'!#REF!))) -> 0 | N81: =IF('DDR4 Config'!$O$1=1,'DDR4 Spec'!N18,IF('DDR4 Config'!$O$1=2,'DDR4 Spec'!Y18,IF('DDR4 Config'!$O$1=3,'DDR4 Spec'!AJ18,'DDR4 Spec'!#REF!))) -> 0 | O81: =HLOOKUP($O$70,$E$70:$N$129,12) -> 0
C82: 75 | D82: IDD2P | E82: =IF('DDR4 Config'!$O$1=1,'DDR4 Spec'!E19,IF('DDR4 Config'!$O$1=2,'DDR4 Spec'!P19,IF('DDR4 Config'!$O$1=3,'DDR4 Spec'!AA19,'DDR4 Spec'!#REF!))) -> 0 | F82: =IF('DDR4 Config'!$O$1=1,'DDR4 Spec'!F19,IF('DDR4 Config'!$O$1=2,'DDR4 Spec'!Q19,IF('DDR4 Config'!$O$1=3,'DDR4 Spec'!AB19,'DDR4 Spec'!#REF!))) -> 0 | G82: =IF('DDR4 Config'!$O$1=1,'DDR4 Spec'!G19,IF('DDR4 Config'!$O$1=2,'DDR4 Spec'!R19,IF('DDR4 Config'!$O$1=3,'DDR4 Spec'!AC19,'DDR4 Spec'!#REF!))) -> 0 | H82: =IF('DDR4 Config'!$O$1=1,'DDR4 Spec'!H19,IF('DDR4 Config'!$O$1=2,'DDR4 Spec'!S19,IF('DDR4 Config'!$O$1=3,'DDR4 Spec'!AD19,'DDR4 Spec'!#REF!))) -> 0 | I82: =IF('DDR4 Config'!$O$1=1,'DDR4 Spec'!I19,IF('DDR4 Config'!$O$1=2,'DDR4 Spec'!T19,IF('DDR4 Config'!$O$1=3,'DDR4 Spec'!AE19,'DDR4 Spec'!#REF!))) -> 0 | J82: =IF('DDR4 Config'!$O$1=1,'DDR4 Spec'!J19,IF('DDR4 Config'!$O$1=2,'DDR4 Spec'!U19,IF('DDR4 Config'!$O$1=3,'DDR4 Spec'!AF19,'DDR4 Spec'!#REF!))) -> 0 | K82: =IF('DDR4 Config'!$O$1=1,'DDR4 Spec'!K19,IF('DDR4 Config'!$O$1=2,'DDR4 Spec'!V19,IF('DDR4 Config'!$O$1=3,'DDR4 Spec'!AG19,'DDR4 Spec'!#REF!))) -> 0 | L82: =IF('DDR4 Config'!$O$1=1,'DDR4 Spec'!L19,IF('DDR4 Config'!$O$1=2,'DDR4 Spec'!W19,IF('DDR4 Config'!$O$1=3,'DDR4 Spec'!AH19,'DDR4 Spec'!#REF!))) -> 0 | M82: =IF('DDR4 Config'!$O$1=1,'DDR4 Spec'!M19,IF('DDR4 Config'!$O$1=2,'DDR4 Spec'!X19,IF('DDR4 Config'!$O$1=3,'DDR4 Spec'!AI19,'DDR4 Spec'!#REF!))) -> 0 | N82: =IF('DDR4 Config'!$O$1=1,'DDR4 Spec'!N19,IF('DDR4 Config'!$O$1=2,'DDR4 Spec'!Y19,IF('DDR4 Config'!$O$1=3,'DDR4 Spec'!AJ19,'DDR4 Spec'!#REF!))) -> 0 | O82: =HLOOKUP($O$70,$E$70:$N$129,13) -> 0
C83: 76 | E83: =IF('DDR4 Config'!$O$1=1,'DDR4 Spec'!E20,IF('DDR4 Config'!$O$1=2,'DDR4 Spec'!P20,IF('DDR4 Config'!$O$1=3,'DDR4 Spec'!AA20,'DDR4 Spec'!#REF!))) -> 0 | F83: =IF('DDR4 Config'!$O$1=1,'DDR4 Spec'!F20,IF('DDR4 Config'!$O$1=2,'DDR4 Spec'!Q20,IF('DDR4 Config'!$O$1=3,'DDR4 Spec'!AB20,'DDR4 Spec'!#REF!))) -> 0 | G83: =IF('DDR4 Config'!$O$1=1,'DDR4 Spec'!G20,IF('DDR4 Config'!$O$1=2,'DDR4 Spec'!R20,IF('DDR4 Config'!$O$1=3,'DDR4 Spec'!AC20,'DDR4 Spec'!#REF!))) -> 0 | H83: =IF('DDR4 Config'!$O$1=1,'DDR4 Spec'!H20,IF('DDR4 Config'!$O$1=2,'DDR4 Spec'!S20,IF('DDR4 Config'!$O$1=3,'DDR4 Spec'!AD20,'DDR4 Spec'!#REF!))) -> 0 | I83: =IF('DDR4 Config'!$O$1=1,'DDR4 Spec'!I20,IF('DDR4 Config'!$O$1=2,'DDR4 Spec'!T20,IF('DDR4 Config'!$O$1=3,'DDR4 Spec'!AE20,'DDR4 Spec'!#REF!))) -> 0 | J83: =IF('DDR4 Config'!$O$1=1,'DDR4 Spec'!J20,IF('DDR4 Config'!$O$1=2,'DDR4 Spec'!U20,IF('DDR4 Config'!$O$1=3,'DDR4 Spec'!AF20,'DDR4 Spec'!#REF!))) -> 0 | K83: =IF('DDR4 Config'!$O$1=1,'DDR4 Spec'!K20,IF('DDR4 Config'!$O$1=2,'DDR4 Spec'!V20,IF('DDR4 Config'!$O$1=3,'DDR4 Spec'!AG20,'DDR4 Spec'!#REF!))) -> 0 | L83: =IF('DDR4 Config'!$O$1=1,'DDR4 Spec'!L20,IF('DDR4 Config'!$O$1=2,'DDR4 Spec'!W20,IF('DDR4 Config'!$O$1=3,'DDR4 Spec'!AH20,'DDR4 Spec'!#REF!))) -> 0 | M83: =IF('DDR4 Config'!$O$1=1,'DDR4 Spec'!M20,IF('DDR4 Config'!$O$1=2,'DDR4 Spec'!X20,IF('DDR4 Config'!$O$1=3,'DDR4 Spec'!AI20,'DDR4 Spec'!#REF!))) -> 0 | N83: =IF('DDR4 Config'!$O$1=1,'DDR4 Spec'!N20,IF('DDR4 Config'!$O$1=2,'DDR4 Spec'!Y20,IF('DDR4 Config'!$O$1=3,'DDR4 Spec'!AJ20,'DDR4 Spec'!#REF!))) -> 0 | O83: =HLOOKUP($O$70,$E$70:$N$129,14) -> 0
C84: 77 | E84: =IF('DDR4 Config'!$O$1=1,'DDR4 Spec'!E21,IF('DDR4 Config'!$O$1=2,'DDR4 Spec'!P21,IF('DDR4 Config'!$O$1=3,'DDR4 Spec'!AA21,'DDR4 Spec'!#REF!))) -> 0 | F84: =IF('DDR4 Config'!$O$1=1,'DDR4 Spec'!F21,IF('DDR4 Config'!$O$1=2,'DDR4 Spec'!Q21,IF('DDR4 Config'!$O$1=3,'DDR4 Spec'!AB21,'DDR4 Spec'!#REF!))) -> 0 | G84: =IF('DDR4 Config'!$O$1=1,'DDR4 Spec'!G21,IF('DDR4 Config'!$O$1=2,'DDR4 Spec'!R21,IF('DDR4 Config'!$O$1=3,'DDR4 Spec'!AC21,'DDR4 Spec'!#REF!))) -> 0 | H84: =IF('DDR4 Config'!$O$1=1,'DDR4 Spec'!H21,IF('DDR4 Config'!$O$1=2,'DDR4 Spec'!S21,IF('DDR4 Config'!$O$1=3,'DDR4 Spec'!AD21,'DDR4 Spec'!#REF!))) -> 0 | I84: =IF('DDR4 Config'!$O$1=1,'DDR4 Spec'!I21,IF('DDR4 Config'!$O$1=2,'DDR4 Spec'!T21,IF('DDR4 Config'!$O$1=3,'DDR4 Spec'!AE21,'DDR4 Spec'!#REF!))) -> 0 | J84: =IF('DDR4 Config'!$O$1=1,'DDR4 Spec'!J21,IF('DDR4 Config'!$O$1=2,'DDR4 Spec'!U21,IF('DDR4 Config'!$O$1=3,'DDR4 Spec'!AF21,'DDR4 Spec'!#REF!))) -> 0 | K84: =IF('DDR4 Config'!$O$1=1,'DDR4 Spec'!K21,IF('DDR4 Config'!$O$1=2,'DDR4 Spec'!V21,IF('DDR4 Config'!$O$1=3,'DDR4 Spec'!AG21,'DDR4 Spec'!#REF!))) -> 0 | L84: =IF('DDR4 Config'!$O$1=1,'DDR4 Spec'!L21,IF('DDR4 Config'!$O$1=2,'DDR4 Spec'!W21,IF('DDR4 Config'!$O$1=3,'DDR4 Spec'!AH21,'DDR4 Spec'!#REF!))) -> 0 | M84: =IF('DDR4 Config'!$O$1=1,'DDR4 Spec'!M21,IF('DDR4 Config'!$O$1=2,'DDR4 Spec'!X21,IF('DDR4 Config'!$O$1=3,'DDR4 Spec'!AI21,'DDR4 Spec'!#REF!))) -> 0 | N84: =IF('DDR4 Config'!$O$1=1,'DDR4 Spec'!N21,IF('DDR4 Config'!$O$1=2,'DDR4 Spec'!Y21,IF('DDR4 Config'!$O$1=3,'DDR4 Spec'!AJ21,'DDR4 Spec'!#REF!))) -> 0 | O84: =HLOOKUP($O$70,$E$70:$N$129,15) -> 0
C85: 78 | D85: IDD2N | E85: =IF('DDR4 Config'!$O$1=1,'DDR4 Spec'!E22,IF('DDR4 Config'!$O$1=2,'DDR4 Spec'!P22,IF('DDR4 Config'!$O$1=3,'DDR4 Spec'!AA22,'DDR4 Spec'!#REF!))) -> 0 | F85: =IF('DDR4 Config'!$O$1=1,'DDR4 Spec'!F22,IF('DDR4 Config'!$O$1=2,'DDR4 Spec'!Q22,IF('DDR4 Config'!$O$1=3,'DDR4 Spec'!AB22,'DDR4 Spec'!#REF!))) -> 0 | G85: =IF('DDR4 Config'!$O$1=1,'DDR4 Spec'!G22,IF('DDR4 Config'!$O$1=2,'DDR4 Spec'!R22,IF('DDR4 Config'!$O$1=3,'DDR4 Spec'!AC22,'DDR4 Spec'!#REF!))) -> 0 | H85: =IF('DDR4 Config'!$O$1=1,'DDR4 Spec'!H22,IF('DDR4 Config'!$O$1=2,'DDR4 Spec'!S22,IF('DDR4 Config'!$O$1=3,'DDR4 Spec'!AD22,'DDR4 Spec'!#REF!))) -> 0 | I85: =IF('DDR4 Config'!$O$1=1,'DDR4 Spec'!I22,IF('DDR4 Config'!$O$1=2,'DDR4 Spec'!T22,IF('DDR4 Config'!$O$1=3,'DDR4 Spec'!AE22,'DDR4 Spec'!#REF!))) -> 0 | J85: =IF('DDR4 Config'!$O$1=1,'DDR4 Spec'!J22,IF('DDR4 Config'!$O$1=2,'DDR4 Spec'!U22,IF('DDR4 Config'!$O$1=3,'DDR4 Spec'!AF22,'DDR4 Spec'!#REF!))) -> 0 | K85: =IF('DDR4 Config'!$O$1=1,'DDR4 Spec'!K22,IF('DDR4 Config'!$O$1=2,'DDR4 Spec'!V22,IF('DDR4 Config'!$O$1=3,'DDR4 Spec'!AG22,'DDR4 Spec'!#REF!))) -> 0 | L85: =IF('DDR4 Config'!$O$1=1,'DDR4 Spec'!L22,IF('DDR4 Config'!$O$1=2,'DDR4 Spec'!W22,IF('DDR4 Config'!$O$1=3,'DDR4 Spec'!AH22,'DDR4 Spec'!#REF!))) -> 0 | M85: =IF('DDR4 Config'!$O$1=1,'DDR4 Spec'!M22,IF('DDR4 Config'!$O$1=2,'DDR4 Spec'!X22,IF('DDR4 Config'!$O$1=3,'DDR4 Spec'!AI22,'DDR4 Spec'!#REF!))) -> 0 | N85: =IF('DDR4 Config'!$O$1=1,'DDR4 Spec'!N22,IF('DDR4 Config'!$O$1=2,'DDR4 Spec'!Y22,IF('DDR4 Config'!$O$1=3,'DDR4 Spec'!AJ22,'DDR4 Spec'!#REF!))) -> 0 | O85: =HLOOKUP($O$70,$E$70:$N$129,16) -> 0
C86: 79 | E86: =IF('DDR4 Config'!$O$1=1,'DDR4 Spec'!E23,IF('DDR4 Config'!$O$1=2,'DDR4 Spec'!P23,IF('DDR4 Config'!$O$1=3,'DDR4 Spec'!AA23,'DDR4 Spec'!#REF!))) -> 0 | F86: =IF('DDR4 Config'!$O$1=1,'DDR4 Spec'!F23,IF('DDR4 Config'!$O$1=2,'DDR4 Spec'!Q23,IF('DDR4 Config'!$O$1=3,'DDR4 Spec'!AB23,'DDR4 Spec'!#REF!))) -> 0 | G86: =IF('DDR4 Config'!$O$1=1,'DDR4 Spec'!G23,IF('DDR4 Config'!$O$1=2,'DDR4 Spec'!R23,IF('DDR4 Config'!$O$1=3,'DDR4 Spec'!AC23,'DDR4 Spec'!#REF!))) -> 0 | H86: =IF('DDR4 Config'!$O$1=1,'DDR4 Spec'!H23,IF('DDR4 Config'!$O$1=2,'DDR4 Spec'!S23,IF('DDR4 Config'!$O$1=3,'DDR4 Spec'!AD23,'DDR4 Spec'!#REF!))) -> 0 | I86: =IF('DDR4 Config'!$O$1=1,'DDR4 Spec'!I23,IF('DDR4 Config'!$O$1=2,'DDR4 Spec'!T23,IF('DDR4 Config'!$O$1=3,'DDR4 Spec'!AE23,'DDR4 Spec'!#REF!))) -> 0 | J86: =IF('DDR4 Config'!$O$1=1,'DDR4 Spec'!J23,IF('DDR4 Config'!$O$1=2,'DDR4 Spec'!U23,IF('DDR4 Config'!$O$1=3,'DDR4 Spec'!AF23,'DDR4 Spec'!#REF!))) -> 0 | K86: =IF('DDR4 Config'!$O$1=1,'DDR4 Spec'!K23,IF('DDR4 Config'!$O$1=2,'DDR4 Spec'!V23,IF('DDR4 Config'!$O$1=3,'DDR4 Spec'!AG23,'DDR4 Spec'!#REF!))) -> 0 | L86: =IF('DDR4 Config'!$O$1=1,'DDR4 Spec'!L23,IF('DDR4 Config'!$O$1=2,'DDR4 Spec'!W23,IF('DDR4 Config'!$O$1=3,'DDR4 Spec'!AH23,'DDR4 Spec'!#REF!))) -> 0 | M86: =IF('DDR4 Config'!$O$1=1,'DDR4 Spec'!M23,IF('DDR4 Config'!$O$1=2,'DDR4 Spec'!X23,IF('DDR4 Config'!$O$1=3,'DDR4 Spec'!AI23,'DDR4 Spec'!#REF!))) -> 0 | N86: =IF('DDR4 Config'!$O$1=1,'DDR4 Spec'!N23,IF('DDR4 Config'!$O$1=2,'DDR4 Spec'!Y23,IF('DDR4 Config'!$O$1=3,'DDR4 Spec'!AJ23,'DDR4 Spec'!#REF!))) -> 0 | O86: =HLOOKUP($O$70,$E$70:$N$129,17) -> 0
C87: 80 | E87: =IF('DDR4 Config'!$O$1=1,'DDR4 Spec'!E24,IF('DDR4 Config'!$O$1=2,'DDR4 Spec'!P24,IF('DDR4 Config'!$O$1=3,'DDR4 Spec'!AA24,'DDR4 Spec'!#REF!))) -> 0 | F87: =IF('DDR4 Config'!$O$1=1,'DDR4 Spec'!F24,IF('DDR4 Config'!$O$1=2,'DDR4 Spec'!Q24,IF('DDR4 Config'!$O$1=3,'DDR4 Spec'!AB24,'DDR4 Spec'!#REF!))) -> 0 | G87: =IF('DDR4 Config'!$O$1=1,'DDR4 Spec'!G24,IF('DDR4 Config'!$O$1=2,'DDR4 Spec'!R24,IF('DDR4 Config'!$O$1=3,'DDR4 Spec'!AC24,'DDR4 Spec'!#REF!))) -> 0 | H87: =IF('DDR4 Config'!$O$1=1,'DDR4 Spec'!H24,IF('DDR4 Config'!$O$1=2,'DDR4 Spec'!S24,IF('DDR4 Config'!$O$1=3,'DDR4 Spec'!AD24,'DDR4 Spec'!#REF!))) -> 0 | I87: =IF('DDR4 Config'!$O$1=1,'DDR4 Spec'!I24,IF('DDR4 Config'!$O$1=2,'DDR4 Spec'!T24,IF('DDR4 Config'!$O$1=3,'DDR4 Spec'!AE24,'DDR4 Spec'!#REF!))) -> 0 | J87: =IF('DDR4 Config'!$O$1=1,'DDR4 Spec'!J24,IF('DDR4 Config'!$O$1=2,'DDR4 Spec'!U24,IF('DDR4 Config'!$O$1=3,'DDR4 Spec'!AF24,'DDR4 Spec'!#REF!))) -> 0 | K87: =IF('DDR4 Config'!$O$1=1,'DDR4 Spec'!K24,IF('DDR4 Config'!$O$1=2,'DDR4 Spec'!V24,IF('DDR4 Config'!$O$1=3,'DDR4 Spec'!AG24,'DDR4 Spec'!#REF!))) -> 0 | L87: =IF('DDR4 Config'!$O$1=1,'DDR4 Spec'!L24,IF('DDR4 Config'!$O$1=2,'DDR4 Spec'!W24,IF('DDR4 Config'!$O$1=3,'DDR4 Spec'!AH24,'DDR4 Spec'!#REF!))) -> 0 | M87: =IF('DDR4 Config'!$O$1=1,'DDR4 Spec'!M24,IF('DDR4 Config'!$O$1=2,'DDR4 Spec'!X24,IF('DDR4 Config'!$O$1=3,'DDR4 Spec'!AI24,'DDR4 Spec'!#REF!))) -> 0 | N87: =IF('DDR4 Config'!$O$1=1,'DDR4 Spec'!N24,IF('DDR4 Config'!$O$1=2,'DDR4 Spec'!Y24,IF('DDR4 Config'!$O$1=3,'DDR4 Spec'!AJ24,'DDR4 Spec'!#REF!))) -> 0 | O87: =HLOOKUP($O$70,$E$70:$N$129,18) -> 0
C88: 81 | D88: IDD3P | E88: =IF('DDR4 Config'!$O$1=1,'DDR4 Spec'!E25,IF('DDR4 Config'!$O$1=2,'DDR4 Spec'!P25,IF('DDR4 Config'!$O$1=3,'DDR4 Spec'!AA25,'DDR4 Spec'!#REF!))) -> 0 | F88: =IF('DDR4 Config'!$O$1=1,'DDR4 Spec'!F25,IF('DDR4 Config'!$O$1=2,'DDR4 Spec'!Q25,IF('DDR4 Config'!$O$1=3,'DDR4 Spec'!AB25,'DDR4 Spec'!#REF!))) -> 0 | G88: =IF('DDR4 Config'!$O$1=1,'DDR4 Spec'!G25,IF('DDR4 Config'!$O$1=2,'DDR4 Spec'!R25,IF('DDR4 Config'!$O$1=3,'DDR4 Spec'!AC25,'DDR4 Spec'!#REF!))) -> 0 | H88: =IF('DDR4 Config'!$O$1=1,'DDR4 Spec'!H25,IF('DDR4 Config'!$O$1=2,'DDR4 Spec'!S25,IF('DDR4 Config'!$O$1=3,'DDR4 Spec'!AD25,'DDR4 Spec'!#REF!))) -> 0 | I88: =IF('DDR4 Config'!$O$1=1,'DDR4 Spec'!I25,IF('DDR4 Config'!$O$1=2,'DDR4 Spec'!T25,IF('DDR4 Config'!$O$1=3,'DDR4 Spec'!AE25,'DDR4 Spec'!#REF!))) -> 0 | J88: =IF('DDR4 Config'!$O$1=1,'DDR4 Spec'!J25,IF('DDR4 Config'!$O$1=2,'DDR4 Spec'!U25,IF('DDR4 Config'!$O$1=3,'DDR4 Spec'!AF25,'DDR4 Spec'!#REF!))) -> 0 | K88: =IF('DDR4 Config'!$O$1=1,'DDR4 Spec'!K25,IF('DDR4 Config'!$O$1=2,'DDR4 Spec'!V25,IF('DDR4 Config'!$O$1=3,'DDR4 Spec'!AG25,'DDR4 Spec'!#REF!))) -> 0 | L88: =IF('DDR4 Config'!$O$1=1,'DDR4 Spec'!L25,IF('DDR4 Config'!$O$1=2,'DDR4 Spec'!W25,IF('DDR4 Config'!$O$1=3,'DDR4 Spec'!AH25,'DDR4 Spec'!#REF!))) -> 0 | M88: =IF('DDR4 Config'!$O$1=1,'DDR4 Spec'!M25,IF('DDR4 Config'!$O$1=2,'DDR4 Spec'!X25,IF('DDR4 Config'!$O$1=3,'DDR4 Spec'!AI25,'DDR4 Spec'!#REF!))) -> 0 | N88: =IF('DDR4 Config'!$O$1=1,'DDR4 Spec'!N25,IF('DDR4 Config'!$O$1=2,'DDR4 Spec'!Y25,IF('DDR4 Config'!$O$1=3,'DDR4 Spec'!AJ25,'DDR4 Spec'!#REF!))) -> 0 | O88: =HLOOKUP($O$70,$E$70:$N$129,19) -> 0
C89: 82 | E89: =IF('DDR4 Config'!$O$1=1,'DDR4 Spec'!E26,IF('DDR4 Config'!$O$1=2,'DDR4 Spec'!P26,IF('DDR4 Config'!$O$1=3,'DDR4 Spec'!AA26,'DDR4 Spec'!#REF!))) -> 0 | F89: =IF('DDR4 Config'!$O$1=1,'DDR4 Spec'!F26,IF('DDR4 Config'!$O$1=2,'DDR4 Spec'!Q26,IF('DDR4 Config'!$O$1=3,'DDR4 Spec'!AB26,'DDR4 Spec'!#REF!))) -> 0 | G89: =IF('DDR4 Config'!$O$1=1,'DDR4 Spec'!G26,IF('DDR4 Config'!$O$1=2,'DDR4 Spec'!R26,IF('DDR4 Config'!$O$1=3,'DDR4 Spec'!AC26,'DDR4 Spec'!#REF!))) -> 0 | H89: =IF('DDR4 Config'!$O$1=1,'DDR4 Spec'!H26,IF('DDR4 Config'!$O$1=2,'DDR4 Spec'!S26,IF('DDR4 Config'!$O$1=3,'DDR4 Spec'!AD26,'DDR4 Spec'!#REF!))) -> 0 | I89: =IF('DDR4 Config'!$O$1=1,'DDR4 Spec'!I26,IF('DDR4 Config'!$O$1=2,'DDR4 Spec'!T26,IF('DDR4 Config'!$O$1=3,'DDR4 Spec'!AE26,'DDR4 Spec'!#REF!))) -> 0 | J89: =IF('DDR4 Config'!$O$1=1,'DDR4 Spec'!J26,IF('DDR4 Config'!$O$1=2,'DDR4 Spec'!U26,IF('DDR4 Config'!$O$1=3,'DDR4 Spec'!AF26,'DDR4 Spec'!#REF!))) -> 0 | K89: =IF('DDR4 Config'!$O$1=1,'DDR4 Spec'!K26,IF('DDR4 Config'!$O$1=2,'DDR4 Spec'!V26,IF('DDR4 Config'!$O$1=3,'DDR4 Spec'!AG26,'DDR4 Spec'!#REF!))) -> 0 | L89: =IF('DDR4 Config'!$O$1=1,'DDR4 Spec'!L26,IF('DDR4 Config'!$O$1=2,'DDR4 Spec'!W26,IF('DDR4 Config'!$O$1=3,'DDR4 Spec'!AH26,'DDR4 Spec'!#REF!))) -> 0 | M89: =IF('DDR4 Config'!$O$1=1,'DDR4 Spec'!M26,IF('DDR4 Config'!$O$1=2,'DDR4 Spec'!X26,IF('DDR4 Config'!$O$1=3,'DDR4 Spec'!AI26,'DDR4 Spec'!#REF!))) -> 0 | N89: =IF('DDR4 Config'!$O$1=1,'DDR4 Spec'!N26,IF('DDR4 Config'!$O$1=2,'DDR4 Spec'!Y26,IF('DDR4 Config'!$O$1=3,'DDR4 Spec'!AJ26,'DDR4 Spec'!#REF!))) -> 0 | O89: =HLOOKUP($O$70,$E$70:$N$129,20) -> 0
C90: 83 | E90: =IF('DDR4 Config'!$O$1=1,'DDR4 Spec'!E27,IF('DDR4 Config'!$O$1=2,'DDR4 Spec'!P27,IF('DDR4 Config'!$O$1=3,'DDR4 Spec'!AA27,'DDR4 Spec'!#REF!))) -> 0 | F90: =IF('DDR4 Config'!$O$1=1,'DDR4 Spec'!F27,IF('DDR4 Config'!$O$1=2,'DDR4 Spec'!Q27,IF('DDR4 Config'!$O$1=3,'DDR4 Spec'!AB27,'DDR4 Spec'!#REF!))) -> 0 | G90: =IF('DDR4 Config'!$O$1=1,'DDR4 Spec'!G27,IF('DDR4 Config'!$O$1=2,'DDR4 Spec'!R27,IF('DDR4 Config'!$O$1=3,'DDR4 Spec'!AC27,'DDR4 Spec'!#REF!))) -> 0 | H90: =IF('DDR4 Config'!$O$1=1,'DDR4 Spec'!H27,IF('DDR4 Config'!$O$1=2,'DDR4 Spec'!S27,IF('DDR4 Config'!$O$1=3,'DDR4 Spec'!AD27,'DDR4 Spec'!#REF!))) -> 0 | I90: =IF('DDR4 Config'!$O$1=1,'DDR4 Spec'!I27,IF('DDR4 Config'!$O$1=2,'DDR4 Spec'!T27,IF('DDR4 Config'!$O$1=3,'DDR4 Spec'!AE27,'DDR4 Spec'!#REF!))) -> 0 | J90: =IF('DDR4 Config'!$O$1=1,'DDR4 Spec'!J27,IF('DDR4 Config'!$O$1=2,'DDR4 Spec'!U27,IF('DDR4 Config'!$O$1=3,'DDR4 Spec'!AF27,'DDR4 Spec'!#REF!))) -> 0 | K90: =IF('DDR4 Config'!$O$1=1,'DDR4 Spec'!K27,IF('DDR4 Config'!$O$1=2,'DDR4 Spec'!V27,IF('DDR4 Config'!$O$1=3,'DDR4 Spec'!AG27,'DDR4 Spec'!#REF!))) -> 0 | L90: =IF('DDR4 Config'!$O$1=1,'DDR4 Spec'!L27,IF('DDR4 Config'!$O$1=2,'DDR4 Spec'!W27,IF('DDR4 Config'!$O$1=3,'DDR4 Spec'!AH27,'DDR4 Spec'!#REF!))) -> 0 | M90: =IF('DDR4 Config'!$O$1=1,'DDR4 Spec'!M27,IF('DDR4 Config'!$O$1=2,'DDR4 Spec'!X27,IF('DDR4 Config'!$O$1=3,'DDR4 Spec'!AI27,'DDR4 Spec'!#REF!))) -> 0 | N90: =IF('DDR4 Config'!$O$1=1,'DDR4 Spec'!N27,IF('DDR4 Config'!$O$1=2,'DDR4 Spec'!Y27,IF('DDR4 Config'!$O$1=3,'DDR4 Spec'!AJ27,'DDR4 Spec'!#REF!))) -> 0 | O90: =HLOOKUP($O$70,$E$70:$N$129,21) -> 0
C91: 84 | D91: IDD3N | E91: =IF('DDR4 Config'!$O$1=1,'DDR4 Spec'!E28,IF('DDR4 Config'!$O$1=2,'DDR4 Spec'!P28,IF('DDR4 Config'!$O$1=3,'DDR4 Spec'!AA28,'DDR4 Spec'!#REF!))) -> 0 | F91: =IF('DDR4 Config'!$O$1=1,'DDR4 Spec'!F28,IF('DDR4 Config'!$O$1=2,'DDR4 Spec'!Q28,IF('DDR4 Config'!$O$1=3,'DDR4 Spec'!AB28,'DDR4 Spec'!#REF!))) -> 0 | G91: =IF('DDR4 Config'!$O$1=1,'DDR4 Spec'!G28,IF('DDR4 Config'!$O$1=2,'DDR4 Spec'!R28,IF('DDR4 Config'!$O$1=3,'DDR4 Spec'!AC28,'DDR4 Spec'!#REF!))) -> 0 | H91: =IF('DDR4 Config'!$O$1=1,'DDR4 Spec'!H28,IF('DDR4 Config'!$O$1=2,'DDR4 Spec'!S28,IF('DDR4 Config'!$O$1=3,'DDR4 Spec'!AD28,'DDR4 Spec'!#REF!))) -> 0 | I91: =IF('DDR4 Config'!$O$1=1,'DDR4 Spec'!I28,IF('DDR4 Config'!$O$1=2,'DDR4 Spec'!T28,IF('DDR4 Config'!$O$1=3,'DDR4 Spec'!AE28,'DDR4 Spec'!#REF!))) -> 0 | J91: =IF('DDR4 Config'!$O$1=1,'DDR4 Spec'!J28,IF('DDR4 Config'!$O$1=2,'DDR4 Spec'!U28,IF('DDR4 Config'!$O$1=3,'DDR4 Spec'!AF28,'DDR4 Spec'!#REF!))) -> 0 | K91: =IF('DDR4 Config'!$O$1=1,'DDR4 Spec'!K28,IF('DDR4 Config'!$O$1=2,'DDR4 Spec'!V28,IF('DDR4 Config'!$O$1=3,'DDR4 Spec'!AG28,'DDR4 Spec'!#REF!))) -> 0 | L91: =IF('DDR4 Config'!$O$1=1,'DDR4 Spec'!L28,IF('DDR4 Config'!$O$1=2,'DDR4 Spec'!W28,IF('DDR4 Config'!$O$1=3,'DDR4 Spec'!AH28,'DDR4 Spec'!#REF!))) -> 0 | M91: =IF('DDR4 Config'!$O$1=1,'DDR4 Spec'!M28,IF('DDR4 Config'!$O$1=2,'DDR4 Spec'!X28,IF('DDR4 Config'!$O$1=3,'DDR4 Spec'!AI28,'DDR4 Spec'!#REF!))) -> 0 | N91: =IF('DDR4 Config'!$O$1=1,'DDR4 Spec'!N28,IF('DDR4 Config'!$O$1=2,'DDR4 Spec'!Y28,IF('DDR4 Config'!$O$1=3,'DDR4 Spec'!AJ28,'DDR4 Spec'!#REF!))) -> 0 | O91: =HLOOKUP($O$70,$E$70:$N$129,22) -> 0
C92: 85 | E92: =IF('DDR4 Config'!$O$1=1,'DDR4 Spec'!E29,IF('DDR4 Config'!$O$1=2,'DDR4 Spec'!P29,IF('DDR4 Config'!$O$1=3,'DDR4 Spec'!AA29,'DDR4 Spec'!#REF!))) -> 0 | F92: =IF('DDR4 Config'!$O$1=1,'DDR4 Spec'!F29,IF('DDR4 Config'!$O$1=2,'DDR4 Spec'!Q29,IF('DDR4 Config'!$O$1=3,'DDR4 Spec'!AB29,'DDR4 Spec'!#REF!))) -> 0 | G92: =IF('DDR4 Config'!$O$1=1,'DDR4 Spec'!G29,IF('DDR4 Config'!$O$1=2,'DDR4 Spec'!R29,IF('DDR4 Config'!$O$1=3,'DDR4 Spec'!AC29,'DDR4 Spec'!#REF!))) -> 0 | H92: =IF('DDR4 Config'!$O$1=1,'DDR4 Spec'!H29,IF('DDR4 Config'!$O$1=2,'DDR4 Spec'!S29,IF('DDR4 Config'!$O$1=3,'DDR4 Spec'!AD29,'DDR4 Spec'!#REF!))) -> 0 | I92: =IF('DDR4 Config'!$O$1=1,'DDR4 Spec'!I29,IF('DDR4 Config'!$O$1=2,'DDR4 Spec'!T29,IF('DDR4 Config'!$O$1=3,'DDR4 Spec'!AE29,'DDR4 Spec'!#REF!))) -> 0 | J92: =IF('DDR4 Config'!$O$1=1,'DDR4 Spec'!J29,IF('DDR4 Config'!$O$1=2,'DDR4 Spec'!U29,IF('DDR4 Config'!$O$1=3,'DDR4 Spec'!AF29,'DDR4 Spec'!#REF!))) -> 0 | K92: =IF('DDR4 Config'!$O$1=1,'DDR4 Spec'!K29,IF('DDR4 Config'!$O$1=2,'DDR4 Spec'!V29,IF('DDR4 Config'!$O$1=3,'DDR4 Spec'!AG29,'DDR4 Spec'!#REF!))) -> 0 | L92: =IF('DDR4 Config'!$O$1=1,'DDR4 Spec'!L29,IF('DDR4 Config'!$O$1=2,'DDR4 Spec'!W29,IF('DDR4 Config'!$O$1=3,'DDR4 Spec'!AH29,'DDR4 Spec'!#REF!))) -> 0 | M92: =IF('DDR4 Config'!$O$1=1,'DDR4 Spec'!M29,IF('DDR4 Config'!$O$1=2,'DDR4 Spec'!X29,IF('DDR4 Config'!$O$1=3,'DDR4 Spec'!AI29,'DDR4 Spec'!#REF!))) -> 0 | N92: =IF('DDR4 Config'!$O$1=1,'DDR4 Spec'!N29,IF('DDR4 Config'!$O$1=2,'DDR4 Spec'!Y29,IF('DDR4 Config'!$O$1=3,'DDR4 Spec'!AJ29,'DDR4 Spec'!#REF!))) -> 0 | O92: =HLOOKUP($O$70,$E$70:$N$129,23) -> 0
C93: 86 | E93: =IF('DDR4 Config'!$O$1=1,'DDR4 Spec'!E30,IF('DDR4 Config'!$O$1=2,'DDR4 Spec'!P30,IF('DDR4 Config'!$O$1=3,'DDR4 Spec'!AA30,'DDR4 Spec'!#REF!))) -> 0 | F93: =IF('DDR4 Config'!$O$1=1,'DDR4 Spec'!F30,IF('DDR4 Config'!$O$1=2,'DDR4 Spec'!Q30,IF('DDR4 Config'!$O$1=3,'DDR4 Spec'!AB30,'DDR4 Spec'!#REF!))) -> 0 | G93: =IF('DDR4 Config'!$O$1=1,'DDR4 Spec'!G30,IF('DDR4 Config'!$O$1=2,'DDR4 Spec'!R30,IF('DDR4 Config'!$O$1=3,'DDR4 Spec'!AC30,'DDR4 Spec'!#REF!))) -> 0 | H93: =IF('DDR4 Config'!$O$1=1,'DDR4 Spec'!H30,IF('DDR4 Config'!$O$1=2,'DDR4 Spec'!S30,IF('DDR4 Config'!$O$1=3,'DDR4 Spec'!AD30,'DDR4 Spec'!#REF!))) -> 0 | I93: =IF('DDR4 Config'!$O$1=1,'DDR4 Spec'!I30,IF('DDR4 Config'!$O$1=2,'DDR4 Spec'!T30,IF('DDR4 Config'!$O$1=3,'DDR4 Spec'!AE30,'DDR4 Spec'!#REF!))) -> 0 | J93: =IF('DDR4 Config'!$O$1=1,'DDR4 Spec'!J30,IF('DDR4 Config'!$O$1=2,'DDR4 Spec'!U30,IF('DDR4 Config'!$O$1=3,'DDR4 Spec'!AF30,'DDR4 Spec'!#REF!))) -> 0 | K93: =IF('DDR4 Config'!$O$1=1,'DDR4 Spec'!K30,IF('DDR4 Config'!$O$1=2,'DDR4 Spec'!V30,IF('DDR4 Config'!$O$1=3,'DDR4 Spec'!AG30,'DDR4 Spec'!#REF!))) -> 0 | L93: =IF('DDR4 Config'!$O$1=1,'DDR4 Spec'!L30,IF('DDR4 Config'!$O$1=2,'DDR4 Spec'!W30,IF('DDR4 Config'!$O$1=3,'DDR4 Spec'!AH30,'DDR4 Spec'!#REF!))) -> 0 | M93: =IF('DDR4 Config'!$O$1=1,'DDR4 Spec'!M30,IF('DDR4 Config'!$O$1=2,'DDR4 Spec'!X30,IF('DDR4 Config'!$O$1=3,'DDR4 Spec'!AI30,'DDR4 Spec'!#REF!))) -> 0 | N93: =IF('DDR4 Config'!$O$1=1,'DDR4 Spec'!N30,IF('DDR4 Config'!$O$1=2,'DDR4 Spec'!Y30,IF('DDR4 Config'!$O$1=3,'DDR4 Spec'!AJ30,'DDR4 Spec'!#REF!))) -> 0 | O93: =HLOOKUP($O$70,$E$70:$N$129,24) -> 0
C94: 87 | D94: IPPSB | E94: =IF('DDR4 Config'!$O$1=1,'DDR4 Spec'!E31,IF('DDR4 Config'!$O$1=2,'DDR4 Spec'!P31,IF('DDR4 Config'!$O$1=3,'DDR4 Spec'!AA31,'DDR4 Spec'!#REF!))) -> 0 | F94: =IF('DDR4 Config'!$O$1=1,'DDR4 Spec'!F31,IF('DDR4 Config'!$O$1=2,'DDR4 Spec'!Q31,IF('DDR4 Config'!$O$1=3,'DDR4 Spec'!AB31,'DDR4 Spec'!#REF!))) -> 0 | G94: =IF('DDR4 Config'!$O$1=1,'DDR4 Spec'!G31,IF('DDR4 Config'!$O$1=2,'DDR4 Spec'!R31,IF('DDR4 Config'!$O$1=3,'DDR4 Spec'!AC31,'DDR4 Spec'!#REF!))) -> 0 | H94: =IF('DDR4 Config'!$O$1=1,'DDR4 Spec'!H31,IF('DDR4 Config'!$O$1=2,'DDR4 Spec'!S31,IF('DDR4 Config'!$O$1=3,'DDR4 Spec'!AD31,'DDR4 Spec'!#REF!))) -> 0 | I94: =IF('DDR4 Config'!$O$1=1,'DDR4 Spec'!I31,IF('DDR4 Config'!$O$1=2,'DDR4 Spec'!T31,IF('DDR4 Config'!$O$1=3,'DDR4 Spec'!AE31,'DDR4 Spec'!#REF!))) -> 0 | J94: =IF('DDR4 Config'!$O$1=1,'DDR4 Spec'!J31,IF('DDR4 Config'!$O$1=2,'DDR4 Spec'!U31,IF('DDR4 Config'!$O$1=3,'DDR4 Spec'!AF31,'DDR4 Spec'!#REF!))) -> 0 | K94: =IF('DDR4 Config'!$O$1=1,'DDR4 Spec'!K31,IF('DDR4 Config'!$O$1=2,'DDR4 Spec'!V31,IF('DDR4 Config'!$O$1=3,'DDR4 Spec'!AG31,'DDR4 Spec'!#REF!))) -> 0 | L94: =IF('DDR4 Config'!$O$1=1,'DDR4 Spec'!L31,IF('DDR4 Config'!$O$1=2,'DDR4 Spec'!W31,IF('DDR4 Config'!$O$1=3,'DDR4 Spec'!AH31,'DDR4 Spec'!#REF!))) -> 0 | M94: =IF('DDR4 Config'!$O$1=1,'DDR4 Spec'!M31,IF('DDR4 Config'!$O$1=2,'DDR4 Spec'!X31,IF('DDR4 Config'!$O$1=3,'DDR4 Spec'!AI31,'DDR4 Spec'!#REF!))) -> 0 | N94: =IF('DDR4 Config'!$O$1=1,'DDR4 Spec'!N31,IF('DDR4 Config'!$O$1=2,'DDR4 Spec'!Y31,IF('DDR4 Config'!$O$1=3,'DDR4 Spec'!AJ31,'DDR4 Spec'!#REF!))) -> 0 | O94: =HLOOKUP($O$70,$E$70:$N$129,25) -> 0
C95: 88 | E95: =IF('DDR4 Config'!$O$1=1,'DDR4 Spec'!E32,IF('DDR4 Config'!$O$1=2,'DDR4 Spec'!P32,IF('DDR4 Config'!$O$1=3,'DDR4 Spec'!AA32,'DDR4 Spec'!#REF!))) -> 0 | F95: =IF('DDR4 Config'!$O$1=1,'DDR4 Spec'!F32,IF('DDR4 Config'!$O$1=2,'DDR4 Spec'!Q32,IF('DDR4 Config'!$O$1=3,'DDR4 Spec'!AB32,'DDR4 Spec'!#REF!))) -> 0 | G95: =IF('DDR4 Config'!$O$1=1,'DDR4 Spec'!G32,IF('DDR4 Config'!$O$1=2,'DDR4 Spec'!R32,IF('DDR4 Config'!$O$1=3,'DDR4 Spec'!AC32,'DDR4 Spec'!#REF!))) -> 0 | H95: =IF('DDR4 Config'!$O$1=1,'DDR4 Spec'!H32,IF('DDR4 Config'!$O$1=2,'DDR4 Spec'!S32,IF('DDR4 Config'!$O$1=3,'DDR4 Spec'!AD32,'DDR4 Spec'!#REF!))) -> 0 | I95: =IF('DDR4 Config'!$O$1=1,'DDR4 Spec'!I32,IF('DDR4 Config'!$O$1=2,'DDR4 Spec'!T32,IF('DDR4 Config'!$O$1=3,'DDR4 Spec'!AE32,'DDR4 Spec'!#REF!))) -> 0 | J95: =IF('DDR4 Config'!$O$1=1,'DDR4 Spec'!J32,IF('DDR4 Config'!$O$1=2,'DDR4 Spec'!U32,IF('DDR4 Config'!$O$1=3,'DDR4 Spec'!AF32,'DDR4 Spec'!#REF!))) -> 0 | K95: =IF('DDR4 Config'!$O$1=1,'DDR4 Spec'!K32,IF('DDR4 Config'!$O$1=2,'DDR4 Spec'!V32,IF('DDR4 Config'!$O$1=3,'DDR4 Spec'!AG32,'DDR4 Spec'!#REF!))) -> 0 | L95: =IF('DDR4 Config'!$O$1=1,'DDR4 Spec'!L32,IF('DDR4 Config'!$O$1=2,'DDR4 Spec'!W32,IF('DDR4 Config'!$O$1=3,'DDR4 Spec'!AH32,'DDR4 Spec'!#REF!))) -> 0 | M95: =IF('DDR4 Config'!$O$1=1,'DDR4 Spec'!M32,IF('DDR4 Config'!$O$1=2,'DDR4 Spec'!X32,IF('DDR4 Config'!$O$1=3,'DDR4 Spec'!AI32,'DDR4 Spec'!#REF!))) -> 0 | N95: =IF('DDR4 Config'!$O$1=1,'DDR4 Spec'!N32,IF('DDR4 Config'!$O$1=2,'DDR4 Spec'!Y32,IF('DDR4 Config'!$O$1=3,'DDR4 Spec'!AJ32,'DDR4 Spec'!#REF!))) -> 0 | O95: =HLOOKUP($O$70,$E$70:$N$129,26) -> 0
C96: 89 | E96: =IF('DDR4 Config'!$O$1=1,'DDR4 Spec'!E33,IF('DDR4 Config'!$O$1=2,'DDR4 Spec'!P33,IF('DDR4 Config'!$O$1=3,'DDR4 Spec'!AA33,'DDR4 Spec'!#REF!))) -> 0 | F96: =IF('DDR4 Config'!$O$1=1,'DDR4 Spec'!F33,IF('DDR4 Config'!$O$1=2,'DDR4 Spec'!Q33,IF('DDR4 Config'!$O$1=3,'DDR4 Spec'!AB33,'DDR4 Spec'!#REF!))) -> 0 | G96: =IF('DDR4 Config'!$O$1=1,'DDR4 Spec'!G33,IF('DDR4 Config'!$O$1=2,'DDR4 Spec'!R33,IF('DDR4 Config'!$O$1=3,'DDR4 Spec'!AC33,'DDR4 Spec'!#REF!))) -> 0 | H96: =IF('DDR4 Config'!$O$1=1,'DDR4 Spec'!H33,IF('DDR4 Config'!$O$1=2,'DDR4 Spec'!S33,IF('DDR4 Config'!$O$1=3,'DDR4 Spec'!AD33,'DDR4 Spec'!#REF!))) -> 0 | I96: =IF('DDR4 Config'!$O$1=1,'DDR4 Spec'!I33,IF('DDR4 Config'!$O$1=2,'DDR4 Spec'!T33,IF('DDR4 Config'!$O$1=3,'DDR4 Spec'!AE33,'DDR4 Spec'!#REF!))) -> 0 | J96: =IF('DDR4 Config'!$O$1=1,'DDR4 Spec'!J33,IF('DDR4 Config'!$O$1=2,'DDR4 Spec'!U33,IF('DDR4 Config'!$O$1=3,'DDR4 Spec'!AF33,'DDR4 Spec'!#REF!))) -> 0 | K96: =IF('DDR4 Config'!$O$1=1,'DDR4 Spec'!K33,IF('DDR4 Config'!$O$1=2,'DDR4 Spec'!V33,IF('DDR4 Config'!$O$1=3,'DDR4 Spec'!AG33,'DDR4 Spec'!#REF!))) -> 0 | L96: =IF('DDR4 Config'!$O$1=1,'DDR4 Spec'!L33,IF('DDR4 Config'!$O$1=2,'DDR4 Spec'!W33,IF('DDR4 Config'!$O$1=3,'DDR4 Spec'!AH33,'DDR4 Spec'!#REF!))) -> 0 | M96: =IF('DDR4 Config'!$O$1=1,'DDR4 Spec'!M33,IF('DDR4 Config'!$O$1=2,'DDR4 Spec'!X33,IF('DDR4 Config'!$O$1=3,'DDR4 Spec'!AI33,'DDR4 Spec'!#REF!))) -> 0 | N96: =IF('DDR4 Config'!$O$1=1,'DDR4 Spec'!N33,IF('DDR4 Config'!$O$1=2,'DDR4 Spec'!Y33,IF('DDR4 Config'!$O$1=3,'DDR4 Spec'!AJ33,'DDR4 Spec'!#REF!))) -> 0 | O96: =HLOOKUP($O$70,$E$70:$N$129,27) -> 0
C97: 90 | D97: IDD4R | E97: =IF('DDR4 Config'!$O$1=1,'DDR4 Spec'!E34,IF('DDR4 Config'!$O$1=2,'DDR4 Spec'!P34,IF('DDR4 Config'!$O$1=3,'DDR4 Spec'!AA34,'DDR4 Spec'!#REF!))) -> 0 | F97: =IF('DDR4 Config'!$O$1=1,'DDR4 Spec'!F34,IF('DDR4 Config'!$O$1=2,'DDR4 Spec'!Q34,IF('DDR4 Config'!$O$1=3,'DDR4 Spec'!AB34,'DDR4 Spec'!#REF!))) -> 0 | G97: =IF('DDR4 Config'!$O$1=1,'DDR4 Spec'!G34,IF('DDR4 Config'!$O$1=2,'DDR4 Spec'!R34,IF('DDR4 Config'!$O$1=3,'DDR4 Spec'!AC34,'DDR4 Spec'!#REF!))) -> 0 | H97: =IF('DDR4 Config'!$O$1=1,'DDR4 Spec'!H34,IF('DDR4 Config'!$O$1=2,'DDR4 Spec'!S34,IF('DDR4 Config'!$O$1=3,'DDR4 Spec'!AD34,'DDR4 Spec'!#REF!))) -> 0 | I97: =IF('DDR4 Config'!$O$1=1,'DDR4 Spec'!I34,IF('DDR4 Config'!$O$1=2,'DDR4 Spec'!T34,IF('DDR4 Config'!$O$1=3,'DDR4 Spec'!AE34,'DDR4 Spec'!#REF!))) -> 0 | J97: =IF('DDR4 Config'!$O$1=1,'DDR4 Spec'!J34,IF('DDR4 Config'!$O$1=2,'DDR4 Spec'!U34,IF('DDR4 Config'!$O$1=3,'DDR4 Spec'!AF34,'DDR4 Spec'!#REF!))) -> 0 | K97: =IF('DDR4 Config'!$O$1=1,'DDR4 Spec'!K34,IF('DDR4 Config'!$O$1=2,'DDR4 Spec'!V34,IF('DDR4 Config'!$O$1=3,'DDR4 Spec'!AG34,'DDR4 Spec'!#REF!))) -> 0 | L97: =IF('DDR4 Config'!$O$1=1,'DDR4 Spec'!L34,IF('DDR4 Config'!$O$1=2,'DDR4 Spec'!W34,IF('DDR4 Config'!$O$1=3,'DDR4 Spec'!AH34,'DDR4 Spec'!#REF!))) -> 0 | M97: =IF('DDR4 Config'!$O$1=1,'DDR4 Spec'!M34,IF('DDR4 Config'!$O$1=2,'DDR4 Spec'!X34,IF('DDR4 Config'!$O$1=3,'DDR4 Spec'!AI34,'DDR4 Spec'!#REF!))) -> 0 | N97: =IF('DDR4 Config'!$O$1=1,'DDR4 Spec'!N34,IF('DDR4 Config'!$O$1=2,'DDR4 Spec'!Y34,IF('DDR4 Config'!$O$1=3,'DDR4 Spec'!AJ34,'DDR4 Spec'!#REF!))) -> 0 | O97: =HLOOKUP($O$70,$E$70:$N$129,28) -> 0
C98: 91 | E98: =IF('DDR4 Config'!$O$1=1,'DDR4 Spec'!E35,IF('DDR4 Config'!$O$1=2,'DDR4 Spec'!P35,IF('DDR4 Config'!$O$1=3,'DDR4 Spec'!AA35,'DDR4 Spec'!#REF!))) -> 0 | F98: =IF('DDR4 Config'!$O$1=1,'DDR4 Spec'!F35,IF('DDR4 Config'!$O$1=2,'DDR4 Spec'!Q35,IF('DDR4 Config'!$O$1=3,'DDR4 Spec'!AB35,'DDR4 Spec'!#REF!))) -> 0 | G98: =IF('DDR4 Config'!$O$1=1,'DDR4 Spec'!G35,IF('DDR4 Config'!$O$1=2,'DDR4 Spec'!R35,IF('DDR4 Config'!$O$1=3,'DDR4 Spec'!AC35,'DDR4 Spec'!#REF!))) -> 0 | H98: =IF('DDR4 Config'!$O$1=1,'DDR4 Spec'!H35,IF('DDR4 Config'!$O$1=2,'DDR4 Spec'!S35,IF('DDR4 Config'!$O$1=3,'DDR4 Spec'!AD35,'DDR4 Spec'!#REF!))) -> 0 | I98: =IF('DDR4 Config'!$O$1=1,'DDR4 Spec'!I35,IF('DDR4 Config'!$O$1=2,'DDR4 Spec'!T35,IF('DDR4 Config'!$O$1=3,'DDR4 Spec'!AE35,'DDR4 Spec'!#REF!))) -> 0 | J98: =IF('DDR4 Config'!$O$1=1,'DDR4 Spec'!J35,IF('DDR4 Config'!$O$1=2,'DDR4 Spec'!U35,IF('DDR4 Config'!$O$1=3,'DDR4 Spec'!AF35,'DDR4 Spec'!#REF!))) -> 0 | K98: =IF('DDR4 Config'!$O$1=1,'DDR4 Spec'!K35,IF('DDR4 Config'!$O$1=2,'DDR4 Spec'!V35,IF('DDR4 Config'!$O$1=3,'DDR4 Spec'!AG35,'DDR4 Spec'!#REF!))) -> 0 | L98: =IF('DDR4 Config'!$O$1=1,'DDR4 Spec'!L35,IF('DDR4 Config'!$O$1=2,'DDR4 Spec'!W35,IF('DDR4 Config'!$O$1=3,'DDR4 Spec'!AH35,'DDR4 Spec'!#REF!))) -> 0 | M98: =IF('DDR4 Config'!$O$1=1,'DDR4 Spec'!M35,IF('DDR4 Config'!$O$1=2,'DDR4 Spec'!X35,IF('DDR4 Config'!$O$1=3,'DDR4 Spec'!AI35,'DDR4 Spec'!#REF!))) -> 0 | N98: =IF('DDR4 Config'!$O$1=1,'DDR4 Spec'!N35,IF('DDR4 Config'!$O$1=2,'DDR4 Spec'!Y35,IF('DDR4 Config'!$O$1=3,'DDR4 Spec'!AJ35,'DDR4 Spec'!#REF!))) -> 0 | O98: =HLOOKUP($O$70,$E$70:$N$129,29) -> 0
C99: 92 | E99: =IF('DDR4 Config'!$O$1=1,'DDR4 Spec'!E36,IF('DDR4 Config'!$O$1=2,'DDR4 Spec'!P36,IF('DDR4 Config'!$O$1=3,'DDR4 Spec'!AA36,'DDR4 Spec'!#REF!))) -> 0 | F99: =IF('DDR4 Config'!$O$1=1,'DDR4 Spec'!F36,IF('DDR4 Config'!$O$1=2,'DDR4 Spec'!Q36,IF('DDR4 Config'!$O$1=3,'DDR4 Spec'!AB36,'DDR4 Spec'!#REF!))) -> 0 | G99: =IF('DDR4 Config'!$O$1=1,'DDR4 Spec'!G36,IF('DDR4 Config'!$O$1=2,'DDR4 Spec'!R36,IF('DDR4 Config'!$O$1=3,'DDR4 Spec'!AC36,'DDR4 Spec'!#REF!))) -> 0 | H99: =IF('DDR4 Config'!$O$1=1,'DDR4 Spec'!H36,IF('DDR4 Config'!$O$1=2,'DDR4 Spec'!S36,IF('DDR4 Config'!$O$1=3,'DDR4 Spec'!AD36,'DDR4 Spec'!#REF!))) -> 0 | I99: =IF('DDR4 Config'!$O$1=1,'DDR4 Spec'!I36,IF('DDR4 Config'!$O$1=2,'DDR4 Spec'!T36,IF('DDR4 Config'!$O$1=3,'DDR4 Spec'!AE36,'DDR4 Spec'!#REF!))) -> 0 | J99: =IF('DDR4 Config'!$O$1=1,'DDR4 Spec'!J36,IF('DDR4 Config'!$O$1=2,'DDR4 Spec'!U36,IF('DDR4 Config'!$O$1=3,'DDR4 Spec'!AF36,'DDR4 Spec'!#REF!))) -> 0 | K99: =IF('DDR4 Config'!$O$1=1,'DDR4 Spec'!K36,IF('DDR4 Config'!$O$1=2,'DDR4 Spec'!V36,IF('DDR4 Config'!$O$1=3,'DDR4 Spec'!AG36,'DDR4 Spec'!#REF!))) -> 0 | L99: =IF('DDR4 Config'!$O$1=1,'DDR4 Spec'!L36,IF('DDR4 Config'!$O$1=2,'DDR4 Spec'!W36,IF('DDR4 Config'!$O$1=3,'DDR4 Spec'!AH36,'DDR4 Spec'!#REF!))) -> 0 | M99: =IF('DDR4 Config'!$O$1=1,'DDR4 Spec'!M36,IF('DDR4 Config'!$O$1=2,'DDR4 Spec'!X36,IF('DDR4 Config'!$O$1=3,'DDR4 Spec'!AI36,'DDR4 Spec'!#REF!))) -> 0 | N99: =IF('DDR4 Config'!$O$1=1,'DDR4 Spec'!N36,IF('DDR4 Config'!$O$1=2,'DDR4 Spec'!Y36,IF('DDR4 Config'!$O$1=3,'DDR4 Spec'!AJ36,'DDR4 Spec'!#REF!))) -> 0 | O99: =HLOOKUP($O$70,$E$70:$N$129,30) -> 0
C100: =C99+1 -> 93 | D100: IPP4R | E100: =IF('DDR4 Config'!$O$1=1,'DDR4 Spec'!E37,IF('DDR4 Config'!$O$1=2,'DDR4 Spec'!P37,IF('DDR4 Config'!$O$1=3,'DDR4 Spec'!AA37,'DDR4 Spec'!#REF!))) -> 0 | F100: =IF('DDR4 Config'!$O$1=1,'DDR4 Spec'!F37,IF('DDR4 Config'!$O$1=2,'DDR4 Spec'!Q37,IF('DDR4 Config'!$O$1=3,'DDR4 Spec'!AB37,'DDR4 Spec'!#REF!))) -> 0 | G100: =IF('DDR4 Config'!$O$1=1,'DDR4 Spec'!G37,IF('DDR4 Config'!$O$1=2,'DDR4 Spec'!R37,IF('DDR4 Config'!$O$1=3,'DDR4 Spec'!AC37,'DDR4 Spec'!#REF!))) -> 0 | H100: =IF('DDR4 Config'!$O$1=1,'DDR4 Spec'!H37,IF('DDR4 Config'!$O$1=2,'DDR4 Spec'!S37,IF('DDR4 Config'!$O$1=3,'DDR4 Spec'!AD37,'DDR4 Spec'!#REF!))) -> 0 | I100: =IF('DDR4 Config'!$O$1=1,'DDR4 Spec'!I37,IF('DDR4 Config'!$O$1=2,'DDR4 Spec'!T37,IF('DDR4 Config'!$O$1=3,'DDR4 Spec'!AE37,'DDR4 Spec'!#REF!))) -> 0 | J100: =IF('DDR4 Config'!$O$1=1,'DDR4 Spec'!J37,IF('DDR4 Config'!$O$1=2,'DDR4 Spec'!U37,IF('DDR4 Config'!$O$1=3,'DDR4 Spec'!AF37,'DDR4 Spec'!#REF!))) -> 0 | K100: =IF('DDR4 Config'!$O$1=1,'DDR4 Spec'!K37,IF('DDR4 Config'!$O$1=2,'DDR4 Spec'!V37,IF('DDR4 Config'!$O$1=3,'DDR4 Spec'!AG37,'DDR4 Spec'!#REF!))) -> 0 | L100: =IF('DDR4 Config'!$O$1=1,'DDR4 Spec'!L37,IF('DDR4 Config'!$O$1=2,'DDR4 Spec'!W37,IF('DDR4 Config'!$O$1=3,'DDR4 Spec'!AH37,'DDR4 Spec'!#REF!))) -> 0 | M100: =IF('DDR4 Config'!$O$1=1,'DDR4 Spec'!M37,IF('DDR4 Config'!$O$1=2,'DDR4 Spec'!X37,IF('DDR4 Config'!$O$1=3,'DDR4 Spec'!AI37,'DDR4 Spec'!#REF!))) -> 0 | N100: =IF('DDR4 Config'!$O$1=1,'DDR4 Spec'!N37,IF('DDR4 Config'!$O$1=2,'DDR4 Spec'!Y37,IF('DDR4 Config'!$O$1=3,'DDR4 Spec'!AJ37,'DDR4 Spec'!#REF!))) -> 0 | O100: =HLOOKUP($O$70,$E$70:$N$129,31) -> 0
C101: 94 | E101: =IF('DDR4 Config'!$O$1=1,'DDR4 Spec'!E38,IF('DDR4 Config'!$O$1=2,'DDR4 Spec'!P38,IF('DDR4 Config'!$O$1=3,'DDR4 Spec'!AA38,'DDR4 Spec'!#REF!))) -> 0 | F101: =IF('DDR4 Config'!$O$1=1,'DDR4 Spec'!F38,IF('DDR4 Config'!$O$1=2,'DDR4 Spec'!Q38,IF('DDR4 Config'!$O$1=3,'DDR4 Spec'!AB38,'DDR4 Spec'!#REF!))) -> 0 | G101: =IF('DDR4 Config'!$O$1=1,'DDR4 Spec'!G38,IF('DDR4 Config'!$O$1=2,'DDR4 Spec'!R38,IF('DDR4 Config'!$O$1=3,'DDR4 Spec'!AC38,'DDR4 Spec'!#REF!))) -> 0 | H101: =IF('DDR4 Config'!$O$1=1,'DDR4 Spec'!H38,IF('DDR4 Config'!$O$1=2,'DDR4 Spec'!S38,IF('DDR4 Config'!$O$1=3,'DDR4 Spec'!AD38,'DDR4 Spec'!#REF!))) -> 0 | I101: =IF('DDR4 Config'!$O$1=1,'DDR4 Spec'!I38,IF('DDR4 Config'!$O$1=2,'DDR4 Spec'!T38,IF('DDR4 Config'!$O$1=3,'DDR4 Spec'!AE38,'DDR4 Spec'!#REF!))) -> 0 | J101: =IF('DDR4 Config'!$O$1=1,'DDR4 Spec'!J38,IF('DDR4 Config'!$O$1=2,'DDR4 Spec'!U38,IF('DDR4 Config'!$O$1=3,'DDR4 Spec'!AF38,'DDR4 Spec'!#REF!))) -> 0 | K101: =IF('DDR4 Config'!$O$1=1,'DDR4 Spec'!K38,IF('DDR4 Config'!$O$1=2,'DDR4 Spec'!V38,IF('DDR4 Config'!$O$1=3,'DDR4 Spec'!AG38,'DDR4 Spec'!#REF!))) -> 0 | L101: =IF('DDR4 Config'!$O$1=1,'DDR4 Spec'!L38,IF('DDR4 Config'!$O$1=2,'DDR4 Spec'!W38,IF('DDR4 Config'!$O$1=3,'DDR4 Spec'!AH38,'DDR4 Spec'!#REF!))) -> 0 | M101: =IF('DDR4 Config'!$O$1=1,'DDR4 Spec'!M38,IF('DDR4 Config'!$O$1=2,'DDR4 Spec'!X38,IF('DDR4 Config'!$O$1=3,'DDR4 Spec'!AI38,'DDR4 Spec'!#REF!))) -> 0 | N101: =IF('DDR4 Config'!$O$1=1,'DDR4 Spec'!N38,IF('DDR4 Config'!$O$1=2,'DDR4 Spec'!Y38,IF('DDR4 Config'!$O$1=3,'DDR4 Spec'!AJ38,'DDR4 Spec'!#REF!))) -> 0 | O101: =HLOOKUP($O$70,$E$70:$N$129,32) -> 0
C102: 95 | E102: =IF('DDR4 Config'!$O$1=1,'DDR4 Spec'!E39,IF('DDR4 Config'!$O$1=2,'DDR4 Spec'!P39,IF('DDR4 Config'!$O$1=3,'DDR4 Spec'!AA39,'DDR4 Spec'!#REF!))) -> 0 | F102: =IF('DDR4 Config'!$O$1=1,'DDR4 Spec'!F39,IF('DDR4 Config'!$O$1=2,'DDR4 Spec'!Q39,IF('DDR4 Config'!$O$1=3,'DDR4 Spec'!AB39,'DDR4 Spec'!#REF!))) -> 0 | G102: =IF('DDR4 Config'!$O$1=1,'DDR4 Spec'!G39,IF('DDR4 Config'!$O$1=2,'DDR4 Spec'!R39,IF('DDR4 Config'!$O$1=3,'DDR4 Spec'!AC39,'DDR4 Spec'!#REF!))) -> 0 | H102: =IF('DDR4 Config'!$O$1=1,'DDR4 Spec'!H39,IF('DDR4 Config'!$O$1=2,'DDR4 Spec'!S39,IF('DDR4 Config'!$O$1=3,'DDR4 Spec'!AD39,'DDR4 Spec'!#REF!))) -> 0 | I102: =IF('DDR4 Config'!$O$1=1,'DDR4 Spec'!I39,IF('DDR4 Config'!$O$1=2,'DDR4 Spec'!T39,IF('DDR4 Config'!$O$1=3,'DDR4 Spec'!AE39,'DDR4 Spec'!#REF!))) -> 0 | J102: =IF('DDR4 Config'!$O$1=1,'DDR4 Spec'!J39,IF('DDR4 Config'!$O$1=2,'DDR4 Spec'!U39,IF('DDR4 Config'!$O$1=3,'DDR4 Spec'!AF39,'DDR4 Spec'!#REF!))) -> 0 | K102: =IF('DDR4 Config'!$O$1=1,'DDR4 Spec'!K39,IF('DDR4 Config'!$O$1=2,'DDR4 Spec'!V39,IF('DDR4 Config'!$O$1=3,'DDR4 Spec'!AG39,'DDR4 Spec'!#REF!))) -> 0 | L102: =IF('DDR4 Config'!$O$1=1,'DDR4 Spec'!L39,IF('DDR4 Config'!$O$1=2,'DDR4 Spec'!W39,IF('DDR4 Config'!$O$1=3,'DDR4 Spec'!AH39,'DDR4 Spec'!#REF!))) -> 0 | M102: =IF('DDR4 Config'!$O$1=1,'DDR4 Spec'!M39,IF('DDR4 Config'!$O$1=2,'DDR4 Spec'!X39,IF('DDR4 Config'!$O$1=3,'DDR4 Spec'!AI39,'DDR4 Spec'!#REF!))) -> 0 | N102: =IF('DDR4 Config'!$O$1=1,'DDR4 Spec'!N39,IF('DDR4 Config'!$O$1=2,'DDR4 Spec'!Y39,IF('DDR4 Config'!$O$1=3,'DDR4 Spec'!AJ39,'DDR4 Spec'!#REF!))) -> 0 | O102: =HLOOKUP($O$70,$E$70:$N$129,33) -> 0
C103: =C96+1 -> 90 | D103: IDD4W | E103: =IF('DDR4 Config'!$O$1=1,'DDR4 Spec'!E40,IF('DDR4 Config'!$O$1=2,'DDR4 Spec'!P40,IF('DDR4 Config'!$O$1=3,'DDR4 Spec'!AA40,'DDR4 Spec'!#REF!))) -> 0 | F103: =IF('DDR4 Config'!$O$1=1,'DDR4 Spec'!F40,IF('DDR4 Config'!$O$1=2,'DDR4 Spec'!Q40,IF('DDR4 Config'!$O$1=3,'DDR4 Spec'!AB40,'DDR4 Spec'!#REF!))) -> 0 | G103: =IF('DDR4 Config'!$O$1=1,'DDR4 Spec'!G40,IF('DDR4 Config'!$O$1=2,'DDR4 Spec'!R40,IF('DDR4 Config'!$O$1=3,'DDR4 Spec'!AC40,'DDR4 Spec'!#REF!))) -> 0 | H103: =IF('DDR4 Config'!$O$1=1,'DDR4 Spec'!H40,IF('DDR4 Config'!$O$1=2,'DDR4 Spec'!S40,IF('DDR4 Config'!$O$1=3,'DDR4 Spec'!AD40,'DDR4 Spec'!#REF!))) -> 0 | I103: =IF('DDR4 Config'!$O$1=1,'DDR4 Spec'!I40,IF('DDR4 Config'!$O$1=2,'DDR4 Spec'!T40,IF('DDR4 Config'!$O$1=3,'DDR4 Spec'!AE40,'DDR4 Spec'!#REF!))) -> 0 | J103: =IF('DDR4 Config'!$O$1=1,'DDR4 Spec'!J40,IF('DDR4 Config'!$O$1=2,'DDR4 Spec'!U40,IF('DDR4 Config'!$O$1=3,'DDR4 Spec'!AF40,'DDR4 Spec'!#REF!))) -> 0 | K103: =IF('DDR4 Config'!$O$1=1,'DDR4 Spec'!K40,IF('DDR4 Config'!$O$1=2,'DDR4 Spec'!V40,IF('DDR4 Config'!$O$1=3,'DDR4 Spec'!AG40,'DDR4 Spec'!#REF!))) -> 0 | L103: =IF('DDR4 Config'!$O$1=1,'DDR4 Spec'!L40,IF('DDR4 Config'!$O$1=2,'DDR4 Spec'!W40,IF('DDR4 Config'!$O$1=3,'DDR4 Spec'!AH40,'DDR4 Spec'!#REF!))) -> 0 | M103: =IF('DDR4 Config'!$O$1=1,'DDR4 Spec'!M40,IF('DDR4 Config'!$O$1=2,'DDR4 Spec'!X40,IF('DDR4 Config'!$O$1=3,'DDR4 Spec'!AI40,'DDR4 Spec'!#REF!))) -> 0 | N103: =IF('DDR4 Config'!$O$1=1,'DDR4 Spec'!N40,IF('DDR4 Config'!$O$1=2,'DDR4 Spec'!Y40,IF('DDR4 Config'!$O$1=3,'DDR4 Spec'!AJ40,'DDR4 Spec'!#REF!))) -> 0 | O103: =HLOOKUP($O$70,$E$70:$N$129,34) -> 0
C104: =C103+1 -> 91 | E104: =IF('DDR4 Config'!$O$1=1,'DDR4 Spec'!E41,IF('DDR4 Config'!$O$1=2,'DDR4 Spec'!P41,IF('DDR4 Config'!$O$1=3,'DDR4 Spec'!AA41,'DDR4 Spec'!#REF!))) -> 0 | F104: =IF('DDR4 Config'!$O$1=1,'DDR4 Spec'!F41,IF('DDR4 Config'!$O$1=2,'DDR4 Spec'!Q41,IF('DDR4 Config'!$O$1=3,'DDR4 Spec'!AB41,'DDR4 Spec'!#REF!))) -> 0 | G104: =IF('DDR4 Config'!$O$1=1,'DDR4 Spec'!G41,IF('DDR4 Config'!$O$1=2,'DDR4 Spec'!R41,IF('DDR4 Config'!$O$1=3,'DDR4 Spec'!AC41,'DDR4 Spec'!#REF!))) -> 0 | H104: =IF('DDR4 Config'!$O$1=1,'DDR4 Spec'!H41,IF('DDR4 Config'!$O$1=2,'DDR4 Spec'!S41,IF('DDR4 Config'!$O$1=3,'DDR4 Spec'!AD41,'DDR4 Spec'!#REF!))) -> 0 | I104: =IF('DDR4 Config'!$O$1=1,'DDR4 Spec'!I41,IF('DDR4 Config'!$O$1=2,'DDR4 Spec'!T41,IF('DDR4 Config'!$O$1=3,'DDR4 Spec'!AE41,'DDR4 Spec'!#REF!))) -> 0 | J104: =IF('DDR4 Config'!$O$1=1,'DDR4 Spec'!J41,IF('DDR4 Config'!$O$1=2,'DDR4 Spec'!U41,IF('DDR4 Config'!$O$1=3,'DDR4 Spec'!AF41,'DDR4 Spec'!#REF!))) -> 0 | K104: =IF('DDR4 Config'!$O$1=1,'DDR4 Spec'!K41,IF('DDR4 Config'!$O$1=2,'DDR4 Spec'!V41,IF('DDR4 Config'!$O$1=3,'DDR4 Spec'!AG41,'DDR4 Spec'!#REF!))) -> 0 | L104: =IF('DDR4 Config'!$O$1=1,'DDR4 Spec'!L41,IF('DDR4 Config'!$O$1=2,'DDR4 Spec'!W41,IF('DDR4 Config'!$O$1=3,'DDR4 Spec'!AH41,'DDR4 Spec'!#REF!))) -> 0 | M104: =IF('DDR4 Config'!$O$1=1,'DDR4 Spec'!M41,IF('DDR4 Config'!$O$1=2,'DDR4 Spec'!X41,IF('DDR4 Config'!$O$1=3,'DDR4 Spec'!AI41,'DDR4 Spec'!#REF!))) -> 0 | N104: =IF('DDR4 Config'!$O$1=1,'DDR4 Spec'!N41,IF('DDR4 Config'!$O$1=2,'DDR4 Spec'!Y41,IF('DDR4 Config'!$O$1=3,'DDR4 Spec'!AJ41,'DDR4 Spec'!#REF!))) -> 0 | O104: =HLOOKUP($O$70,$E$70:$N$129,35) -> 0
C105: 92 | E105: =IF('DDR4 Config'!$O$1=1,'DDR4 Spec'!E42,IF('DDR4 Config'!$O$1=2,'DDR4 Spec'!P42,IF('DDR4 Config'!$O$1=3,'DDR4 Spec'!AA42,'DDR4 Spec'!#REF!))) -> 0 | F105: =IF('DDR4 Config'!$O$1=1,'DDR4 Spec'!F42,IF('DDR4 Config'!$O$1=2,'DDR4 Spec'!Q42,IF('DDR4 Config'!$O$1=3,'DDR4 Spec'!AB42,'DDR4 Spec'!#REF!))) -> 0 | G105: =IF('DDR4 Config'!$O$1=1,'DDR4 Spec'!G42,IF('DDR4 Config'!$O$1=2,'DDR4 Spec'!R42,IF('DDR4 Config'!$O$1=3,'DDR4 Spec'!AC42,'DDR4 Spec'!#REF!))) -> 0 | H105: =IF('DDR4 Config'!$O$1=1,'DDR4 Spec'!H42,IF('DDR4 Config'!$O$1=2,'DDR4 Spec'!S42,IF('DDR4 Config'!$O$1=3,'DDR4 Spec'!AD42,'DDR4 Spec'!#REF!))) -> 0 | I105: =IF('DDR4 Config'!$O$1=1,'DDR4 Spec'!I42,IF('DDR4 Config'!$O$1=2,'DDR4 Spec'!T42,IF('DDR4 Config'!$O$1=3,'DDR4 Spec'!AE42,'DDR4 Spec'!#REF!))) -> 0 | J105: =IF('DDR4 Config'!$O$1=1,'DDR4 Spec'!J42,IF('DDR4 Config'!$O$1=2,'DDR4 Spec'!U42,IF('DDR4 Config'!$O$1=3,'DDR4 Spec'!AF42,'DDR4 Spec'!#REF!))) -> 0 | K105: =IF('DDR4 Config'!$O$1=1,'DDR4 Spec'!K42,IF('DDR4 Config'!$O$1=2,'DDR4 Spec'!V42,IF('DDR4 Config'!$O$1=3,'DDR4 Spec'!AG42,'DDR4 Spec'!#REF!))) -> 0 | L105: =IF('DDR4 Config'!$O$1=1,'DDR4 Spec'!L42,IF('DDR4 Config'!$O$1=2,'DDR4 Spec'!W42,IF('DDR4 Config'!$O$1=3,'DDR4 Spec'!AH42,'DDR4 Spec'!#REF!))) -> 0 | M105: =IF('DDR4 Config'!$O$1=1,'DDR4 Spec'!M42,IF('DDR4 Config'!$O$1=2,'DDR4 Spec'!X42,IF('DDR4 Config'!$O$1=3,'DDR4 Spec'!AI42,'DDR4 Spec'!#REF!))) -> 0 | N105: =IF('DDR4 Config'!$O$1=1,'DDR4 Spec'!N42,IF('DDR4 Config'!$O$1=2,'DDR4 Spec'!Y42,IF('DDR4 Config'!$O$1=3,'DDR4 Spec'!AJ42,'DDR4 Spec'!#REF!))) -> 0 | O105: =HLOOKUP($O$70,$E$70:$N$129,36) -> 0
C106: =C99+1 -> 93 | D106: IPP4W | E106: =IF('DDR4 Config'!$O$1=1,'DDR4 Spec'!E43,IF('DDR4 Config'!$O$1=2,'DDR4 Spec'!P43,IF('DDR4 Config'!$O$1=3,'DDR4 Spec'!AA43,'DDR4 Spec'!#REF!))) -> 0 | F106: =IF('DDR4 Config'!$O$1=1,'DDR4 Spec'!F43,IF('DDR4 Config'!$O$1=2,'DDR4 Spec'!Q43,IF('DDR4 Config'!$O$1=3,'DDR4 Spec'!AB43,'DDR4 Spec'!#REF!))) -> 0 | G106: =IF('DDR4 Config'!$O$1=1,'DDR4 Spec'!G43,IF('DDR4 Config'!$O$1=2,'DDR4 Spec'!R43,IF('DDR4 Config'!$O$1=3,'DDR4 Spec'!AC43,'DDR4 Spec'!#REF!))) -> 0 | H106: =IF('DDR4 Config'!$O$1=1,'DDR4 Spec'!H43,IF('DDR4 Config'!$O$1=2,'DDR4 Spec'!S43,IF('DDR4 Config'!$O$1=3,'DDR4 Spec'!AD43,'DDR4 Spec'!#REF!))) -> 0 | I106: =IF('DDR4 Config'!$O$1=1,'DDR4 Spec'!I43,IF('DDR4 Config'!$O$1=2,'DDR4 Spec'!T43,IF('DDR4 Config'!$O$1=3,'DDR4 Spec'!AE43,'DDR4 Spec'!#REF!))) -> 0 | J106: =IF('DDR4 Config'!$O$1=1,'DDR4 Spec'!J43,IF('DDR4 Config'!$O$1=2,'DDR4 Spec'!U43,IF('DDR4 Config'!$O$1=3,'DDR4 Spec'!AF43,'DDR4 Spec'!#REF!))) -> 0 | K106: =IF('DDR4 Config'!$O$1=1,'DDR4 Spec'!K43,IF('DDR4 Config'!$O$1=2,'DDR4 Spec'!V43,IF('DDR4 Config'!$O$1=3,'DDR4 Spec'!AG43,'DDR4 Spec'!#REF!))) -> 0 | L106: =IF('DDR4 Config'!$O$1=1,'DDR4 Spec'!L43,IF('DDR4 Config'!$O$1=2,'DDR4 Spec'!W43,IF('DDR4 Config'!$O$1=3,'DDR4 Spec'!AH43,'DDR4 Spec'!#REF!))) -> 0 | M106: =IF('DDR4 Config'!$O$1=1,'DDR4 Spec'!M43,IF('DDR4 Config'!$O$1=2,'DDR4 Spec'!X43,IF('DDR4 Config'!$O$1=3,'DDR4 Spec'!AI43,'DDR4 Spec'!#REF!))) -> 0 | N106: =IF('DDR4 Config'!$O$1=1,'DDR4 Spec'!N43,IF('DDR4 Config'!$O$1=2,'DDR4 Spec'!Y43,IF('DDR4 Config'!$O$1=3,'DDR4 Spec'!AJ43,'DDR4 Spec'!#REF!))) -> 0 | O106: =HLOOKUP($O$70,$E$70:$N$129,37) -> 0
C107: 94 | E107: =IF('DDR4 Config'!$O$1=1,'DDR4 Spec'!E44,IF('DDR4 Config'!$O$1=2,'DDR4 Spec'!P44,IF('DDR4 Config'!$O$1=3,'DDR4 Spec'!AA44,'DDR4 Spec'!#REF!))) -> 0 | F107: =IF('DDR4 Config'!$O$1=1,'DDR4 Spec'!F44,IF('DDR4 Config'!$O$1=2,'DDR4 Spec'!Q44,IF('DDR4 Config'!$O$1=3,'DDR4 Spec'!AB44,'DDR4 Spec'!#REF!))) -> 0 | G107: =IF('DDR4 Config'!$O$1=1,'DDR4 Spec'!G44,IF('DDR4 Config'!$O$1=2,'DDR4 Spec'!R44,IF('DDR4 Config'!$O$1=3,'DDR4 Spec'!AC44,'DDR4 Spec'!#REF!))) -> 0 | H107: =IF('DDR4 Config'!$O$1=1,'DDR4 Spec'!H44,IF('DDR4 Config'!$O$1=2,'DDR4 Spec'!S44,IF('DDR4 Config'!$O$1=3,'DDR4 Spec'!AD44,'DDR4 Spec'!#REF!))) -> 0 | I107: =IF('DDR4 Config'!$O$1=1,'DDR4 Spec'!I44,IF('DDR4 Config'!$O$1=2,'DDR4 Spec'!T44,IF('DDR4 Config'!$O$1=3,'DDR4 Spec'!AE44,'DDR4 Spec'!#REF!))) -> 0 | J107: =IF('DDR4 Config'!$O$1=1,'DDR4 Spec'!J44,IF('DDR4 Config'!$O$1=2,'DDR4 Spec'!U44,IF('DDR4 Config'!$O$1=3,'DDR4 Spec'!AF44,'DDR4 Spec'!#REF!))) -> 0 | K107: =IF('DDR4 Config'!$O$1=1,'DDR4 Spec'!K44,IF('DDR4 Config'!$O$1=2,'DDR4 Spec'!V44,IF('DDR4 Config'!$O$1=3,'DDR4 Spec'!AG44,'DDR4 Spec'!#REF!))) -> 0 | L107: =IF('DDR4 Config'!$O$1=1,'DDR4 Spec'!L44,IF('DDR4 Config'!$O$1=2,'DDR4 Spec'!W44,IF('DDR4 Config'!$O$1=3,'DDR4 Spec'!AH44,'DDR4 Spec'!#REF!))) -> 0 | M107: =IF('DDR4 Config'!$O$1=1,'DDR4 Spec'!M44,IF('DDR4 Config'!$O$1=2,'DDR4 Spec'!X44,IF('DDR4 Config'!$O$1=3,'DDR4 Spec'!AI44,'DDR4 Spec'!#REF!))) -> 0 | N107: =IF('DDR4 Config'!$O$1=1,'DDR4 Spec'!N44,IF('DDR4 Config'!$O$1=2,'DDR4 Spec'!Y44,IF('DDR4 Config'!$O$1=3,'DDR4 Spec'!AJ44,'DDR4 Spec'!#REF!))) -> 0 | O107: =HLOOKUP($O$70,$E$70:$N$129,38) -> 0
C108: 95 | E108: =IF('DDR4 Config'!$O$1=1,'DDR4 Spec'!E45,IF('DDR4 Config'!$O$1=2,'DDR4 Spec'!P45,IF('DDR4 Config'!$O$1=3,'DDR4 Spec'!AA45,'DDR4 Spec'!#REF!))) -> 0 | F108: =IF('DDR4 Config'!$O$1=1,'DDR4 Spec'!F45,IF('DDR4 Config'!$O$1=2,'DDR4 Spec'!Q45,IF('DDR4 Config'!$O$1=3,'DDR4 Spec'!AB45,'DDR4 Spec'!#REF!))) -> 0 | G108: =IF('DDR4 Config'!$O$1=1,'DDR4 Spec'!G45,IF('DDR4 Config'!$O$1=2,'DDR4 Spec'!R45,IF('DDR4 Config'!$O$1=3,'DDR4 Spec'!AC45,'DDR4 Spec'!#REF!))) -> 0 | H108: =IF('DDR4 Config'!$O$1=1,'DDR4 Spec'!H45,IF('DDR4 Config'!$O$1=2,'DDR4 Spec'!S45,IF('DDR4 Config'!$O$1=3,'DDR4 Spec'!AD45,'DDR4 Spec'!#REF!))) -> 0 | I108: =IF('DDR4 Config'!$O$1=1,'DDR4 Spec'!I45,IF('DDR4 Config'!$O$1=2,'DDR4 Spec'!T45,IF('DDR4 Config'!$O$1=3,'DDR4 Spec'!AE45,'DDR4 Spec'!#REF!))) -> 0 | J108: =IF('DDR4 Config'!$O$1=1,'DDR4 Spec'!J45,IF('DDR4 Config'!$O$1=2,'DDR4 Spec'!U45,IF('DDR4 Config'!$O$1=3,'DDR4 Spec'!AF45,'DDR4 Spec'!#REF!))) -> 0 | K108: =IF('DDR4 Config'!$O$1=1,'DDR4 Spec'!K45,IF('DDR4 Config'!$O$1=2,'DDR4 Spec'!V45,IF('DDR4 Config'!$O$1=3,'DDR4 Spec'!AG45,'DDR4 Spec'!#REF!))) -> 0 | L108: =IF('DDR4 Config'!$O$1=1,'DDR4 Spec'!L45,IF('DDR4 Config'!$O$1=2,'DDR4 Spec'!W45,IF('DDR4 Config'!$O$1=3,'DDR4 Spec'!AH45,'DDR4 Spec'!#REF!))) -> 0 | M108: =IF('DDR4 Config'!$O$1=1,'DDR4 Spec'!M45,IF('DDR4 Config'!$O$1=2,'DDR4 Spec'!X45,IF('DDR4 Config'!$O$1=3,'DDR4 Spec'!AI45,'DDR4 Spec'!#REF!))) -> 0 | N108: =IF('DDR4 Config'!$O$1=1,'DDR4 Spec'!N45,IF('DDR4 Config'!$O$1=2,'DDR4 Spec'!Y45,IF('DDR4 Config'!$O$1=3,'DDR4 Spec'!AJ45,'DDR4 Spec'!#REF!))) -> 0 | O108: =HLOOKUP($O$70,$E$70:$N$129,39) -> 0
C109: 96 | D109: =B46 -> IDD5R | E109: =IF('DDR4 Config'!$O$1=1,'DDR4 Spec'!E46,IF('DDR4 Config'!$O$1=2,'DDR4 Spec'!P46,IF('DDR4 Config'!$O$1=3,'DDR4 Spec'!AA46,'DDR4 Spec'!#REF!))) -> 0 | F109: =IF('DDR4 Config'!$O$1=1,'DDR4 Spec'!F46,IF('DDR4 Config'!$O$1=2,'DDR4 Spec'!Q46,IF('DDR4 Config'!$O$1=3,'DDR4 Spec'!AB46,'DDR4 Spec'!#REF!))) -> 0 | G109: =IF('DDR4 Config'!$O$1=1,'DDR4 Spec'!G46,IF('DDR4 Config'!$O$1=2,'DDR4 Spec'!R46,IF('DDR4 Config'!$O$1=3,'DDR4 Spec'!AC46,'DDR4 Spec'!#REF!))) -> 0 | H109: =IF('DDR4 Config'!$O$1=1,'DDR4 Spec'!H46,IF('DDR4 Config'!$O$1=2,'DDR4 Spec'!S46,IF('DDR4 Config'!$O$1=3,'DDR4 Spec'!AD46,'DDR4 Spec'!#REF!))) -> 0 | I109: =IF('DDR4 Config'!$O$1=1,'DDR4 Spec'!I46,IF('DDR4 Config'!$O$1=2,'DDR4 Spec'!T46,IF('DDR4 Config'!$O$1=3,'DDR4 Spec'!AE46,'DDR4 Spec'!#REF!))) -> 0 | J109: =IF('DDR4 Config'!$O$1=1,'DDR4 Spec'!J46,IF('DDR4 Config'!$O$1=2,'DDR4 Spec'!U46,IF('DDR4 Config'!$O$1=3,'DDR4 Spec'!AF46,'DDR4 Spec'!#REF!))) -> 0 | K109: =IF('DDR4 Config'!$O$1=1,'DDR4 Spec'!K46,IF('DDR4 Config'!$O$1=2,'DDR4 Spec'!V46,IF('DDR4 Config'!$O$1=3,'DDR4 Spec'!AG46,'DDR4 Spec'!#REF!))) -> 0 | L109: =IF('DDR4 Config'!$O$1=1,'DDR4 Spec'!L46,IF('DDR4 Config'!$O$1=2,'DDR4 Spec'!W46,IF('DDR4 Config'!$O$1=3,'DDR4 Spec'!AH46,'DDR4 Spec'!#REF!))) -> 0 | M109: =IF('DDR4 Config'!$O$1=1,'DDR4 Spec'!M46,IF('DDR4 Config'!$O$1=2,'DDR4 Spec'!X46,IF('DDR4 Config'!$O$1=3,'DDR4 Spec'!AI46,'DDR4 Spec'!#REF!))) -> 0 | N109: =IF('DDR4 Config'!$O$1=1,'DDR4 Spec'!N46,IF('DDR4 Config'!$O$1=2,'DDR4 Spec'!Y46,IF('DDR4 Config'!$O$1=3,'DDR4 Spec'!AJ46,'DDR4 Spec'!#REF!))) -> 0 | O109: =HLOOKUP($O$70,$E$70:$N$129,40) -> 0
C110: 97 | E110: =IF('DDR4 Config'!$O$1=1,'DDR4 Spec'!E47,IF('DDR4 Config'!$O$1=2,'DDR4 Spec'!P47,IF('DDR4 Config'!$O$1=3,'DDR4 Spec'!AA47,'DDR4 Spec'!#REF!))) -> 0 | F110: =IF('DDR4 Config'!$O$1=1,'DDR4 Spec'!F47,IF('DDR4 Config'!$O$1=2,'DDR4 Spec'!Q47,IF('DDR4 Config'!$O$1=3,'DDR4 Spec'!AB47,'DDR4 Spec'!#REF!))) -> 0 | G110: =IF('DDR4 Config'!$O$1=1,'DDR4 Spec'!G47,IF('DDR4 Config'!$O$1=2,'DDR4 Spec'!R47,IF('DDR4 Config'!$O$1=3,'DDR4 Spec'!AC47,'DDR4 Spec'!#REF!))) -> 0 | H110: =IF('DDR4 Config'!$O$1=1,'DDR4 Spec'!H47,IF('DDR4 Config'!$O$1=2,'DDR4 Spec'!S47,IF('DDR4 Config'!$O$1=3,'DDR4 Spec'!AD47,'DDR4 Spec'!#REF!))) -> 0 | I110: =IF('DDR4 Config'!$O$1=1,'DDR4 Spec'!I47,IF('DDR4 Config'!$O$1=2,'DDR4 Spec'!T47,IF('DDR4 Config'!$O$1=3,'DDR4 Spec'!AE47,'DDR4 Spec'!#REF!))) -> 0 | J110: =IF('DDR4 Config'!$O$1=1,'DDR4 Spec'!J47,IF('DDR4 Config'!$O$1=2,'DDR4 Spec'!U47,IF('DDR4 Config'!$O$1=3,'DDR4 Spec'!AF47,'DDR4 Spec'!#REF!))) -> 0 | K110: =IF('DDR4 Config'!$O$1=1,'DDR4 Spec'!K47,IF('DDR4 Config'!$O$1=2,'DDR4 Spec'!V47,IF('DDR4 Config'!$O$1=3,'DDR4 Spec'!AG47,'DDR4 Spec'!#REF!))) -> 0 | L110: =IF('DDR4 Config'!$O$1=1,'DDR4 Spec'!L47,IF('DDR4 Config'!$O$1=2,'DDR4 Spec'!W47,IF('DDR4 Config'!$O$1=3,'DDR4 Spec'!AH47,'DDR4 Spec'!#REF!))) -> 0 | M110: =IF('DDR4 Config'!$O$1=1,'DDR4 Spec'!M47,IF('DDR4 Config'!$O$1=2,'DDR4 Spec'!X47,IF('DDR4 Config'!$O$1=3,'DDR4 Spec'!AI47,'DDR4 Spec'!#REF!))) -> 0 | N110: =IF('DDR4 Config'!$O$1=1,'DDR4 Spec'!N47,IF('DDR4 Config'!$O$1=2,'DDR4 Spec'!Y47,IF('DDR4 Config'!$O$1=3,'DDR4 Spec'!AJ47,'DDR4 Spec'!#REF!))) -> 0 | O110: =HLOOKUP($O$70,$E$70:$N$129,41) -> 0
C111: 98 | E111: =IF('DDR4 Config'!$O$1=1,'DDR4 Spec'!E48,IF('DDR4 Config'!$O$1=2,'DDR4 Spec'!P48,IF('DDR4 Config'!$O$1=3,'DDR4 Spec'!AA48,'DDR4 Spec'!#REF!))) -> 0 | F111: =IF('DDR4 Config'!$O$1=1,'DDR4 Spec'!F48,IF('DDR4 Config'!$O$1=2,'DDR4 Spec'!Q48,IF('DDR4 Config'!$O$1=3,'DDR4 Spec'!AB48,'DDR4 Spec'!#REF!))) -> 0 | G111: =IF('DDR4 Config'!$O$1=1,'DDR4 Spec'!G48,IF('DDR4 Config'!$O$1=2,'DDR4 Spec'!R48,IF('DDR4 Config'!$O$1=3,'DDR4 Spec'!AC48,'DDR4 Spec'!#REF!))) -> 0 | H111: =IF('DDR4 Config'!$O$1=1,'DDR4 Spec'!H48,IF('DDR4 Config'!$O$1=2,'DDR4 Spec'!S48,IF('DDR4 Config'!$O$1=3,'DDR4 Spec'!AD48,'DDR4 Spec'!#REF!))) -> 0 | I111: =IF('DDR4 Config'!$O$1=1,'DDR4 Spec'!I48,IF('DDR4 Config'!$O$1=2,'DDR4 Spec'!T48,IF('DDR4 Config'!$O$1=3,'DDR4 Spec'!AE48,'DDR4 Spec'!#REF!))) -> 0 | J111: =IF('DDR4 Config'!$O$1=1,'DDR4 Spec'!J48,IF('DDR4 Config'!$O$1=2,'DDR4 Spec'!U48,IF('DDR4 Config'!$O$1=3,'DDR4 Spec'!AF48,'DDR4 Spec'!#REF!))) -> 0 | K111: =IF('DDR4 Config'!$O$1=1,'DDR4 Spec'!K48,IF('DDR4 Config'!$O$1=2,'DDR4 Spec'!V48,IF('DDR4 Config'!$O$1=3,'DDR4 Spec'!AG48,'DDR4 Spec'!#REF!))) -> 0 | L111: =IF('DDR4 Config'!$O$1=1,'DDR4 Spec'!L48,IF('DDR4 Config'!$O$1=2,'DDR4 Spec'!W48,IF('DDR4 Config'!$O$1=3,'DDR4 Spec'!AH48,'DDR4 Spec'!#REF!))) -> 0 | M111: =IF('DDR4 Config'!$O$1=1,'DDR4 Spec'!M48,IF('DDR4 Config'!$O$1=2,'DDR4 Spec'!X48,IF('DDR4 Config'!$O$1=3,'DDR4 Spec'!AI48,'DDR4 Spec'!#REF!))) -> 0 | N111: =IF('DDR4 Config'!$O$1=1,'DDR4 Spec'!N48,IF('DDR4 Config'!$O$1=2,'DDR4 Spec'!Y48,IF('DDR4 Config'!$O$1=3,'DDR4 Spec'!AJ48,'DDR4 Spec'!#REF!))) -> 0 | O111: =HLOOKUP($O$70,$E$70:$N$129,42) -> 0
C112: 99 | D112: =B49 -> IPP5R | E112: =IF('DDR4 Config'!$O$1=1,'DDR4 Spec'!E49,IF('DDR4 Config'!$O$1=2,'DDR4 Spec'!P49,IF('DDR4 Config'!$O$1=3,'DDR4 Spec'!AA49,'DDR4 Spec'!#REF!))) -> 0 | F112: =IF('DDR4 Config'!$O$1=1,'DDR4 Spec'!F49,IF('DDR4 Config'!$O$1=2,'DDR4 Spec'!Q49,IF('DDR4 Config'!$O$1=3,'DDR4 Spec'!AB49,'DDR4 Spec'!#REF!))) -> 0 | G112: =IF('DDR4 Config'!$O$1=1,'DDR4 Spec'!G49,IF('DDR4 Config'!$O$1=2,'DDR4 Spec'!R49,IF('DDR4 Config'!$O$1=3,'DDR4 Spec'!AC49,'DDR4 Spec'!#REF!))) -> 0 | H112: =IF('DDR4 Config'!$O$1=1,'DDR4 Spec'!H49,IF('DDR4 Config'!$O$1=2,'DDR4 Spec'!S49,IF('DDR4 Config'!$O$1=3,'DDR4 Spec'!AD49,'DDR4 Spec'!#REF!))) -> 0 | I112: =IF('DDR4 Config'!$O$1=1,'DDR4 Spec'!I49,IF('DDR4 Config'!$O$1=2,'DDR4 Spec'!T49,IF('DDR4 Config'!$O$1=3,'DDR4 Spec'!AE49,'DDR4 Spec'!#REF!))) -> 0 | J112: =IF('DDR4 Config'!$O$1=1,'DDR4 Spec'!J49,IF('DDR4 Config'!$O$1=2,'DDR4 Spec'!U49,IF('DDR4 Config'!$O$1=3,'DDR4 Spec'!AF49,'DDR4 Spec'!#REF!))) -> 0 | K112: =IF('DDR4 Config'!$O$1=1,'DDR4 Spec'!K49,IF('DDR4 Config'!$O$1=2,'DDR4 Spec'!V49,IF('DDR4 Config'!$O$1=3,'DDR4 Spec'!AG49,'DDR4 Spec'!#REF!))) -> 0 | L112: =IF('DDR4 Config'!$O$1=1,'DDR4 Spec'!L49,IF('DDR4 Config'!$O$1=2,'DDR4 Spec'!W49,IF('DDR4 Config'!$O$1=3,'DDR4 Spec'!AH49,'DDR4 Spec'!#REF!))) -> 0 | M112: =IF('DDR4 Config'!$O$1=1,'DDR4 Spec'!M49,IF('DDR4 Config'!$O$1=2,'DDR4 Spec'!X49,IF('DDR4 Config'!$O$1=3,'DDR4 Spec'!AI49,'DDR4 Spec'!#REF!))) -> 0 | N112: =IF('DDR4 Config'!$O$1=1,'DDR4 Spec'!N49,IF('DDR4 Config'!$O$1=2,'DDR4 Spec'!Y49,IF('DDR4 Config'!$O$1=3,'DDR4 Spec'!AJ49,'DDR4 Spec'!#REF!))) -> 0 | O112: =HLOOKUP($O$70,$E$70:$N$129,43) -> 0
C113: 100 | E113: =IF('DDR4 Config'!$O$1=1,'DDR4 Spec'!E50,IF('DDR4 Config'!$O$1=2,'DDR4 Spec'!P50,IF('DDR4 Config'!$O$1=3,'DDR4 Spec'!AA50,'DDR4 Spec'!#REF!))) -> 0 | F113: =IF('DDR4 Config'!$O$1=1,'DDR4 Spec'!F50,IF('DDR4 Config'!$O$1=2,'DDR4 Spec'!Q50,IF('DDR4 Config'!$O$1=3,'DDR4 Spec'!AB50,'DDR4 Spec'!#REF!))) -> 0 | G113: =IF('DDR4 Config'!$O$1=1,'DDR4 Spec'!G50,IF('DDR4 Config'!$O$1=2,'DDR4 Spec'!R50,IF('DDR4 Config'!$O$1=3,'DDR4 Spec'!AC50,'DDR4 Spec'!#REF!))) -> 0 | H113: =IF('DDR4 Config'!$O$1=1,'DDR4 Spec'!H50,IF('DDR4 Config'!$O$1=2,'DDR4 Spec'!S50,IF('DDR4 Config'!$O$1=3,'DDR4 Spec'!AD50,'DDR4 Spec'!#REF!))) -> 0 | I113: =IF('DDR4 Config'!$O$1=1,'DDR4 Spec'!I50,IF('DDR4 Config'!$O$1=2,'DDR4 Spec'!T50,IF('DDR4 Config'!$O$1=3,'DDR4 Spec'!AE50,'DDR4 Spec'!#REF!))) -> 0 | J113: =IF('DDR4 Config'!$O$1=1,'DDR4 Spec'!J50,IF('DDR4 Config'!$O$1=2,'DDR4 Spec'!U50,IF('DDR4 Config'!$O$1=3,'DDR4 Spec'!AF50,'DDR4 Spec'!#REF!))) -> 0 | K113: =IF('DDR4 Config'!$O$1=1,'DDR4 Spec'!K50,IF('DDR4 Config'!$O$1=2,'DDR4 Spec'!V50,IF('DDR4 Config'!$O$1=3,'DDR4 Spec'!AG50,'DDR4 Spec'!#REF!))) -> 0 | L113: =IF('DDR4 Config'!$O$1=1,'DDR4 Spec'!L50,IF('DDR4 Config'!$O$1=2,'DDR4 Spec'!W50,IF('DDR4 Config'!$O$1=3,'DDR4 Spec'!AH50,'DDR4 Spec'!#REF!))) -> 0 | M113: =IF('DDR4 Config'!$O$1=1,'DDR4 Spec'!M50,IF('DDR4 Config'!$O$1=2,'DDR4 Spec'!X50,IF('DDR4 Config'!$O$1=3,'DDR4 Spec'!AI50,'DDR4 Spec'!#REF!))) -> 0 | N113: =IF('DDR4 Config'!$O$1=1,'DDR4 Spec'!N50,IF('DDR4 Config'!$O$1=2,'DDR4 Spec'!Y50,IF('DDR4 Config'!$O$1=3,'DDR4 Spec'!AJ50,'DDR4 Spec'!#REF!))) -> 0 | O113: =HLOOKUP($O$70,$E$70:$N$129,44) -> 0
C114: 101 | E114: =IF('DDR4 Config'!$O$1=1,'DDR4 Spec'!E51,IF('DDR4 Config'!$O$1=2,'DDR4 Spec'!P51,IF('DDR4 Config'!$O$1=3,'DDR4 Spec'!AA51,'DDR4 Spec'!#REF!))) -> 0 | F114: =IF('DDR4 Config'!$O$1=1,'DDR4 Spec'!F51,IF('DDR4 Config'!$O$1=2,'DDR4 Spec'!Q51,IF('DDR4 Config'!$O$1=3,'DDR4 Spec'!AB51,'DDR4 Spec'!#REF!))) -> 0 | G114: =IF('DDR4 Config'!$O$1=1,'DDR4 Spec'!G51,IF('DDR4 Config'!$O$1=2,'DDR4 Spec'!R51,IF('DDR4 Config'!$O$1=3,'DDR4 Spec'!AC51,'DDR4 Spec'!#REF!))) -> 0 | H114: =IF('DDR4 Config'!$O$1=1,'DDR4 Spec'!H51,IF('DDR4 Config'!$O$1=2,'DDR4 Spec'!S51,IF('DDR4 Config'!$O$1=3,'DDR4 Spec'!AD51,'DDR4 Spec'!#REF!))) -> 0 | I114: =IF('DDR4 Config'!$O$1=1,'DDR4 Spec'!I51,IF('DDR4 Config'!$O$1=2,'DDR4 Spec'!T51,IF('DDR4 Config'!$O$1=3,'DDR4 Spec'!AE51,'DDR4 Spec'!#REF!))) -> 0 | J114: =IF('DDR4 Config'!$O$1=1,'DDR4 Spec'!J51,IF('DDR4 Config'!$O$1=2,'DDR4 Spec'!U51,IF('DDR4 Config'!$O$1=3,'DDR4 Spec'!AF51,'DDR4 Spec'!#REF!))) -> 0 | K114: =IF('DDR4 Config'!$O$1=1,'DDR4 Spec'!K51,IF('DDR4 Config'!$O$1=2,'DDR4 Spec'!V51,IF('DDR4 Config'!$O$1=3,'DDR4 Spec'!AG51,'DDR4 Spec'!#REF!))) -> 0 | L114: =IF('DDR4 Config'!$O$1=1,'DDR4 Spec'!L51,IF('DDR4 Config'!$O$1=2,'DDR4 Spec'!W51,IF('DDR4 Config'!$O$1=3,'DDR4 Spec'!AH51,'DDR4 Spec'!#REF!))) -> 0 | M114: =IF('DDR4 Config'!$O$1=1,'DDR4 Spec'!M51,IF('DDR4 Config'!$O$1=2,'DDR4 Spec'!X51,IF('DDR4 Config'!$O$1=3,'DDR4 Spec'!AI51,'DDR4 Spec'!#REF!))) -> 0 | N114: =IF('DDR4 Config'!$O$1=1,'DDR4 Spec'!N51,IF('DDR4 Config'!$O$1=2,'DDR4 Spec'!Y51,IF('DDR4 Config'!$O$1=3,'DDR4 Spec'!AJ51,'DDR4 Spec'!#REF!))) -> 0 | O114: =HLOOKUP($O$70,$E$70:$N$129,45) -> 0
O115: 46
O116: 46
D117: tCK | E117: =IF('DDR4 Config'!$O$1=1,'DDR4 Spec'!E53,IF('DDR4 Config'!$O$1=2,'DDR4 Spec'!P53,'DDR4 Spec'!AA53)) -> 1.070811361 | F117: =IF('DDR4 Config'!$O$1=1,'DDR4 Spec'!F53,IF('DDR4 Config'!$O$1=2,'DDR4 Spec'!Q53,'DDR4 Spec'!Y53)) -> 0.625 | G117: =IF('DDR4 Config'!$O$1=1,'DDR4 Spec'!G53,IF('DDR4 Config'!$O$1=2,'DDR4 Spec'!R53,'DDR4 Spec'!Z53)) -> 0 | H117: =IF('DDR4 Config'!$O$1=1,'DDR4 Spec'!H53,IF('DDR4 Config'!$O$1=2,'DDR4 Spec'!S53,'DDR4 Spec'!AA53)) -> 1.070811361 | I117: =IF('DDR4 Config'!$O$1=1,'DDR4 Spec'!I53,IF('DDR4 Config'!$O$1=2,'DDR4 Spec'!T53,'DDR4 Spec'!AE53)) -> 0.8333333333 | J117: =IF('DDR4 Config'!$O$1=1,'DDR4 Spec'!J53,IF('DDR4 Config'!$O$1=2,'DDR4 Spec'!U53,'DDR4 Spec'!AF53)) -> 0.7501875469 | K117: =IF('DDR4 Config'!$O$1=1,'DDR4 Spec'!K53,IF('DDR4 Config'!$O$1=2,'DDR4 Spec'!V53,'DDR4 Spec'!AG53)) -> 0.7501875469 | L117: =IF('DDR4 Config'!$O$1=1,'DDR4 Spec'!L53,IF('DDR4 Config'!$O$1=2,'DDR4 Spec'!W53,'DDR4 Spec'!AH53)) -> 0.68189567 | M117: =IF('DDR4 Config'!$O$1=1,'DDR4 Spec'!M53,IF('DDR4 Config'!$O$1=2,'DDR4 Spec'!X53,'DDR4 Spec'!AI53)) -> 0.68189567 | N117: =IF('DDR4 Config'!$O$1=1,'DDR4 Spec'!N53,IF('DDR4 Config'!$O$1=2,'DDR4 Spec'!Y53,'DDR4 Spec'!AJ53)) -> 0.625 | O117: =HLOOKUP($O$70,$E$70:$N$129,48) -> 0.625
D118: tRRD_S | E118: =IF('DDR4 Config'!$O$1=1,'DDR4 Spec'!E54,IF('DDR4 Config'!$O$1=2,'DDR4 Spec'!P54,'DDR4 Spec'!AA54)) -> 4.2 | F118: =IF('DDR4 Config'!$O$1=1,'DDR4 Spec'!F54,IF('DDR4 Config'!$O$1=2,'DDR4 Spec'!Q54,'DDR4 Spec'!Y54)) -> 2.5 | G118: =IF('DDR4 Config'!$O$1=1,'DDR4 Spec'!G54,IF('DDR4 Config'!$O$1=2,'DDR4 Spec'!R54,'DDR4 Spec'!Z54)) -> 0 | H118: =IF('DDR4 Config'!$O$1=1,'DDR4 Spec'!H54,IF('DDR4 Config'!$O$1=2,'DDR4 Spec'!S54,'DDR4 Spec'!AA54)) -> 4.2 | I118: =IF('DDR4 Config'!$O$1=1,'DDR4 Spec'!I54,IF('DDR4 Config'!$O$1=2,'DDR4 Spec'!T54,'DDR4 Spec'!AE54)) -> 3.3 | J118: =IF('DDR4 Config'!$O$1=1,'DDR4 Spec'!J54,IF('DDR4 Config'!$O$1=2,'DDR4 Spec'!U54,'DDR4 Spec'!AF54)) -> 3 | K118: =IF('DDR4 Config'!$O$1=1,'DDR4 Spec'!K54,IF('DDR4 Config'!$O$1=2,'DDR4 Spec'!V54,'DDR4 Spec'!AG54)) -> 3 | L118: =IF('DDR4 Config'!$O$1=1,'DDR4 Spec'!L54,IF('DDR4 Config'!$O$1=2,'DDR4 Spec'!W54,'DDR4 Spec'!AH54)) -> 2.7 | M118: =IF('DDR4 Config'!$O$1=1,'DDR4 Spec'!M54,IF('DDR4 Config'!$O$1=2,'DDR4 Spec'!X54,'DDR4 Spec'!AI54)) -> 2.7 | N118: =IF('DDR4 Config'!$O$1=1,'DDR4 Spec'!N54,IF('DDR4 Config'!$O$1=2,'DDR4 Spec'!Y54,'DDR4 Spec'!AJ54)) -> 2.5 | O118: =HLOOKUP($O$70,$E$70:$N$129,49) -> 2.5
E119: =IF('DDR4 Config'!$O$1=1,'DDR4 Spec'!E55,IF('DDR4 Config'!$O$1=2,'DDR4 Spec'!P55,'DDR4 Spec'!AA55)) -> 4.2 | F119: =IF('DDR4 Config'!$O$1=1,'DDR4 Spec'!F55,IF('DDR4 Config'!$O$1=2,'DDR4 Spec'!Q55,'DDR4 Spec'!Y55)) -> 2.5 | G119: =IF('DDR4 Config'!$O$1=1,'DDR4 Spec'!G55,IF('DDR4 Config'!$O$1=2,'DDR4 Spec'!R55,'DDR4 Spec'!Z55)) -> 0 | H119: =IF('DDR4 Config'!$O$1=1,'DDR4 Spec'!H55,IF('DDR4 Config'!$O$1=2,'DDR4 Spec'!S55,'DDR4 Spec'!AA55)) -> 4.2 | I119: =IF('DDR4 Config'!$O$1=1,'DDR4 Spec'!I55,IF('DDR4 Config'!$O$1=2,'DDR4 Spec'!T55,'DDR4 Spec'!AE55)) -> 3.3 | J119: =IF('DDR4 Config'!$O$1=1,'DDR4 Spec'!J55,IF('DDR4 Config'!$O$1=2,'DDR4 Spec'!U55,'DDR4 Spec'!AF55)) -> 3 | K119: =IF('DDR4 Config'!$O$1=1,'DDR4 Spec'!K55,IF('DDR4 Config'!$O$1=2,'DDR4 Spec'!V55,'DDR4 Spec'!AG55)) -> 3 | L119: =IF('DDR4 Config'!$O$1=1,'DDR4 Spec'!L55,IF('DDR4 Config'!$O$1=2,'DDR4 Spec'!W55,'DDR4 Spec'!AH55)) -> 2.7 | M119: =IF('DDR4 Config'!$O$1=1,'DDR4 Spec'!M55,IF('DDR4 Config'!$O$1=2,'DDR4 Spec'!X55,'DDR4 Spec'!AI55)) -> 2.7 | N119: =IF('DDR4 Config'!$O$1=1,'DDR4 Spec'!N55,IF('DDR4 Config'!$O$1=2,'DDR4 Spec'!Y55,'DDR4 Spec'!AJ55)) -> 2.5 | O119: =HLOOKUP($O$70,$E$70:$N$129,50) -> 2.5
E120: =IF('DDR4 Config'!$O$1=1,'DDR4 Spec'!E56,IF('DDR4 Config'!$O$1=2,'DDR4 Spec'!P56,'DDR4 Spec'!AA56)) -> 5.3 | F120: =IF('DDR4 Config'!$O$1=1,'DDR4 Spec'!F56,IF('DDR4 Config'!$O$1=2,'DDR4 Spec'!Q56,'DDR4 Spec'!Y56)) -> 5.3 | G120: =IF('DDR4 Config'!$O$1=1,'DDR4 Spec'!G56,IF('DDR4 Config'!$O$1=2,'DDR4 Spec'!R56,'DDR4 Spec'!Z56)) -> 0 | H120: =IF('DDR4 Config'!$O$1=1,'DDR4 Spec'!H56,IF('DDR4 Config'!$O$1=2,'DDR4 Spec'!S56,'DDR4 Spec'!AA56)) -> 5.3 | I120: =IF('DDR4 Config'!$O$1=1,'DDR4 Spec'!I56,IF('DDR4 Config'!$O$1=2,'DDR4 Spec'!T56,'DDR4 Spec'!AE56)) -> 5.3 | J120: =IF('DDR4 Config'!$O$1=1,'DDR4 Spec'!J56,IF('DDR4 Config'!$O$1=2,'DDR4 Spec'!U56,'DDR4 Spec'!AF56)) -> 5.3 | K120: =IF('DDR4 Config'!$O$1=1,'DDR4 Spec'!K56,IF('DDR4 Config'!$O$1=2,'DDR4 Spec'!V56,'DDR4 Spec'!AG56)) -> 5.3 | L120: =IF('DDR4 Config'!$O$1=1,'DDR4 Spec'!L56,IF('DDR4 Config'!$O$1=2,'DDR4 Spec'!W56,'DDR4 Spec'!AH56)) -> 5.3 | M120: =IF('DDR4 Config'!$O$1=1,'DDR4 Spec'!M56,IF('DDR4 Config'!$O$1=2,'DDR4 Spec'!X56,'DDR4 Spec'!AI56)) -> 5.3 | N120: =IF('DDR4 Config'!$O$1=1,'DDR4 Spec'!N56,IF('DDR4 Config'!$O$1=2,'DDR4 Spec'!Y56,'DDR4 Spec'!AJ56)) -> 5.3 | O120: =HLOOKUP($O$70,$E$70:$N$129,51) -> 5.3
D121: tRRD_L | E121: =IF('DDR4 Config'!$O$1=1,'DDR4 Spec'!E57,IF('DDR4 Config'!$O$1=2,'DDR4 Spec'!P57,'DDR4 Spec'!AA57)) -> 5.3 | F121: =IF('DDR4 Config'!$O$1=1,'DDR4 Spec'!F57,IF('DDR4 Config'!$O$1=2,'DDR4 Spec'!Q57,'DDR4 Spec'!Y57)) -> 4.9 | G121: =IF('DDR4 Config'!$O$1=1,'DDR4 Spec'!G57,IF('DDR4 Config'!$O$1=2,'DDR4 Spec'!R57,'DDR4 Spec'!Z57)) -> 0 | H121: =IF('DDR4 Config'!$O$1=1,'DDR4 Spec'!H57,IF('DDR4 Config'!$O$1=2,'DDR4 Spec'!S57,'DDR4 Spec'!AA57)) -> 5.3 | I121: =IF('DDR4 Config'!$O$1=1,'DDR4 Spec'!I57,IF('DDR4 Config'!$O$1=2,'DDR4 Spec'!T57,'DDR4 Spec'!AE57)) -> 4.9 | J121: =IF('DDR4 Config'!$O$1=1,'DDR4 Spec'!J57,IF('DDR4 Config'!$O$1=2,'DDR4 Spec'!U57,'DDR4 Spec'!AF57)) -> 4.9 | K121: =IF('DDR4 Config'!$O$1=1,'DDR4 Spec'!K57,IF('DDR4 Config'!$O$1=2,'DDR4 Spec'!V57,'DDR4 Spec'!AG57)) -> 4.9 | L121: =IF('DDR4 Config'!$O$1=1,'DDR4 Spec'!L57,IF('DDR4 Config'!$O$1=2,'DDR4 Spec'!W57,'DDR4 Spec'!AH57)) -> 4.9 | M121: =IF('DDR4 Config'!$O$1=1,'DDR4 Spec'!M57,IF('DDR4 Config'!$O$1=2,'DDR4 Spec'!X57,'DDR4 Spec'!AI57)) -> 4.9 | N121: =IF('DDR4 Config'!$O$1=1,'DDR4 Spec'!N57,IF('DDR4 Config'!$O$1=2,'DDR4 Spec'!Y57,'DDR4 Spec'!AJ57)) -> 4.9 | O121: =HLOOKUP($O$70,$E$70:$N$129,52) -> 4.9
E122: =IF('DDR4 Config'!$O$1=1,'DDR4 Spec'!E58,IF('DDR4 Config'!$O$1=2,'DDR4 Spec'!P58,'DDR4 Spec'!AA58)) -> 5.3 | F122: =IF('DDR4 Config'!$O$1=1,'DDR4 Spec'!F58,IF('DDR4 Config'!$O$1=2,'DDR4 Spec'!Q58,'DDR4 Spec'!Y58)) -> 4.9 | G122: =IF('DDR4 Config'!$O$1=1,'DDR4 Spec'!G58,IF('DDR4 Config'!$O$1=2,'DDR4 Spec'!R58,'DDR4 Spec'!Z58)) -> 0 | H122: =IF('DDR4 Config'!$O$1=1,'DDR4 Spec'!H58,IF('DDR4 Config'!$O$1=2,'DDR4 Spec'!S58,'DDR4 Spec'!AA58)) -> 5.3 | I122: =IF('DDR4 Config'!$O$1=1,'DDR4 Spec'!I58,IF('DDR4 Config'!$O$1=2,'DDR4 Spec'!T58,'DDR4 Spec'!AE58)) -> 4.9 | J122: =IF('DDR4 Config'!$O$1=1,'DDR4 Spec'!J58,IF('DDR4 Config'!$O$1=2,'DDR4 Spec'!U58,'DDR4 Spec'!AF58)) -> 4.9 | K122: =IF('DDR4 Config'!$O$1=1,'DDR4 Spec'!K58,IF('DDR4 Config'!$O$1=2,'DDR4 Spec'!V58,'DDR4 Spec'!AG58)) -> 4.9 | L122: =IF('DDR4 Config'!$O$1=1,'DDR4 Spec'!L58,IF('DDR4 Config'!$O$1=2,'DDR4 Spec'!W58,'DDR4 Spec'!AH58)) -> 4.9 | M122: =IF('DDR4 Config'!$O$1=1,'DDR4 Spec'!M58,IF('DDR4 Config'!$O$1=2,'DDR4 Spec'!X58,'DDR4 Spec'!AI58)) -> 4.9 | N122: =IF('DDR4 Config'!$O$1=1,'DDR4 Spec'!N58,IF('DDR4 Config'!$O$1=2,'DDR4 Spec'!Y58,'DDR4 Spec'!AJ58)) -> 4.9 | O122: =HLOOKUP($O$70,$E$70:$N$129,53) -> 4.9
E123: =IF('DDR4 Config'!$O$1=1,'DDR4 Spec'!E59,IF('DDR4 Config'!$O$1=2,'DDR4 Spec'!P59,'DDR4 Spec'!AA59)) -> 6.4 | F123: =IF('DDR4 Config'!$O$1=1,'DDR4 Spec'!F59,IF('DDR4 Config'!$O$1=2,'DDR4 Spec'!Q59,'DDR4 Spec'!Y59)) -> 6.4 | G123: =IF('DDR4 Config'!$O$1=1,'DDR4 Spec'!G59,IF('DDR4 Config'!$O$1=2,'DDR4 Spec'!R59,'DDR4 Spec'!Z59)) -> 0 | H123: =IF('DDR4 Config'!$O$1=1,'DDR4 Spec'!H59,IF('DDR4 Config'!$O$1=2,'DDR4 Spec'!S59,'DDR4 Spec'!AA59)) -> 6.4 | I123: =IF('DDR4 Config'!$O$1=1,'DDR4 Spec'!I59,IF('DDR4 Config'!$O$1=2,'DDR4 Spec'!T59,'DDR4 Spec'!AE59)) -> 6.4 | J123: =IF('DDR4 Config'!$O$1=1,'DDR4 Spec'!J59,IF('DDR4 Config'!$O$1=2,'DDR4 Spec'!U59,'DDR4 Spec'!AF59)) -> 6.4 | K123: =IF('DDR4 Config'!$O$1=1,'DDR4 Spec'!K59,IF('DDR4 Config'!$O$1=2,'DDR4 Spec'!V59,'DDR4 Spec'!AG59)) -> 6.4 | L123: =IF('DDR4 Config'!$O$1=1,'DDR4 Spec'!L59,IF('DDR4 Config'!$O$1=2,'DDR4 Spec'!W59,'DDR4 Spec'!AH59)) -> 6.4 | M123: =IF('DDR4 Config'!$O$1=1,'DDR4 Spec'!M59,IF('DDR4 Config'!$O$1=2,'DDR4 Spec'!X59,'DDR4 Spec'!AI59)) -> 6.4 | N123: =IF('DDR4 Config'!$O$1=1,'DDR4 Spec'!N59,IF('DDR4 Config'!$O$1=2,'DDR4 Spec'!Y59,'DDR4 Spec'!AJ59)) -> 6.4 | O123: =HLOOKUP($O$70,$E$70:$N$129,54) -> 6.4
D124: tRC | E124: =IF('DDR4 Config'!$O$1=1,'DDR4 Spec'!E60,IF('DDR4 Config'!$O$1=2,'DDR4 Spec'!P60,'DDR4 Spec'!AA60)) -> 47.9 | F124: =IF('DDR4 Config'!$O$1=1,'DDR4 Spec'!F60,IF('DDR4 Config'!$O$1=2,'DDR4 Spec'!Q60,'DDR4 Spec'!Y60)) -> 45.75 | G124: =IF('DDR4 Config'!$O$1=1,'DDR4 Spec'!G60,IF('DDR4 Config'!$O$1=2,'DDR4 Spec'!R60,'DDR4 Spec'!Z60)) -> 0 | H124: =IF('DDR4 Config'!$O$1=1,'DDR4 Spec'!H60,IF('DDR4 Config'!$O$1=2,'DDR4 Spec'!S60,'DDR4 Spec'!AA60)) -> 47.9 | I124: =IF('DDR4 Config'!$O$1=1,'DDR4 Spec'!I60,IF('DDR4 Config'!$O$1=2,'DDR4 Spec'!T60,'DDR4 Spec'!AE60)) -> 45.32 | J124: =IF('DDR4 Config'!$O$1=1,'DDR4 Spec'!J60,IF('DDR4 Config'!$O$1=2,'DDR4 Spec'!U60,'DDR4 Spec'!AF60)) -> 46.16 | K124: =IF('DDR4 Config'!$O$1=1,'DDR4 Spec'!K60,IF('DDR4 Config'!$O$1=2,'DDR4 Spec'!V60,'DDR4 Spec'!AG60)) -> 45.5 | L124: =IF('DDR4 Config'!$O$1=1,'DDR4 Spec'!L60,IF('DDR4 Config'!$O$1=2,'DDR4 Spec'!W60,'DDR4 Spec'!AH60)) -> 46.32 | M124: =IF('DDR4 Config'!$O$1=1,'DDR4 Spec'!M60,IF('DDR4 Config'!$O$1=2,'DDR4 Spec'!X60,'DDR4 Spec'!AI60)) -> 45.64 | N124: =IF('DDR4 Config'!$O$1=1,'DDR4 Spec'!N60,IF('DDR4 Config'!$O$1=2,'DDR4 Spec'!Y60,'DDR4 Spec'!AJ60)) -> 45.75 | O124: =HLOOKUP($O$70,$E$70:$N$129,55) -> 45.75
D125: tRAS | E125: =IF('DDR4 Config'!$O$1=1,'DDR4 Spec'!E61,IF('DDR4 Config'!$O$1=2,'DDR4 Spec'!P61,'DDR4 Spec'!AA61)) -> 34 | F125: =IF('DDR4 Config'!$O$1=1,'DDR4 Spec'!F61,IF('DDR4 Config'!$O$1=2,'DDR4 Spec'!Q61,'DDR4 Spec'!Y61)) -> 32 | G125: =IF('DDR4 Config'!$O$1=1,'DDR4 Spec'!G61,IF('DDR4 Config'!$O$1=2,'DDR4 Spec'!R61,'DDR4 Spec'!Z61)) -> 0 | H125: =IF('DDR4 Config'!$O$1=1,'DDR4 Spec'!H61,IF('DDR4 Config'!$O$1=2,'DDR4 Spec'!S61,'DDR4 Spec'!AA61)) -> 34 | I125: =IF('DDR4 Config'!$O$1=1,'DDR4 Spec'!I61,IF('DDR4 Config'!$O$1=2,'DDR4 Spec'!T61,'DDR4 Spec'!AE61)) -> 32 | J125: =IF('DDR4 Config'!$O$1=1,'DDR4 Spec'!J61,IF('DDR4 Config'!$O$1=2,'DDR4 Spec'!U61,'DDR4 Spec'!AF61)) -> 32 | K125: =IF('DDR4 Config'!$O$1=1,'DDR4 Spec'!K61,IF('DDR4 Config'!$O$1=2,'DDR4 Spec'!V61,'DDR4 Spec'!AG61)) -> 32 | L125: =IF('DDR4 Config'!$O$1=1,'DDR4 Spec'!L61,IF('DDR4 Config'!$O$1=2,'DDR4 Spec'!W61,'DDR4 Spec'!AH61)) -> 32 | M125: =IF('DDR4 Config'!$O$1=1,'DDR4 Spec'!M61,IF('DDR4 Config'!$O$1=2,'DDR4 Spec'!X61,'DDR4 Spec'!AI61)) -> 32 | N125: =IF('DDR4 Config'!$O$1=1,'DDR4 Spec'!N61,IF('DDR4 Config'!$O$1=2,'DDR4 Spec'!Y61,'DDR4 Spec'!AJ61)) -> 32 | O125: =HLOOKUP($O$70,$E$70:$N$129,56) -> 32
D126: tRFC (MIN) | E126: =IF('DDR4 Config'!$O$1=1,'DDR4 Spec'!E62,IF('DDR4 Config'!$O$1=2,'DDR4 Spec'!P62,'DDR4 Spec'!AA62)) -> 350 | F126: =IF('DDR4 Config'!$O$1=1,'DDR4 Spec'!F62,IF('DDR4 Config'!$O$1=2,'DDR4 Spec'!Q62,'DDR4 Spec'!Y62)) -> 350 | G126: =IF('DDR4 Config'!$O$1=1,'DDR4 Spec'!G62,IF('DDR4 Config'!$O$1=2,'DDR4 Spec'!R62,'DDR4 Spec'!Z62)) -> 0 | H126: =IF('DDR4 Config'!$O$1=1,'DDR4 Spec'!H62,IF('DDR4 Config'!$O$1=2,'DDR4 Spec'!S62,'DDR4 Spec'!AA62)) -> 350 | I126: =IF('DDR4 Config'!$O$1=1,'DDR4 Spec'!I62,IF('DDR4 Config'!$O$1=2,'DDR4 Spec'!T62,'DDR4 Spec'!AE62)) -> 350 | J126: =IF('DDR4 Config'!$O$1=1,'DDR4 Spec'!J62,IF('DDR4 Config'!$O$1=2,'DDR4 Spec'!U62,'DDR4 Spec'!AF62)) -> 350 | K126: =IF('DDR4 Config'!$O$1=1,'DDR4 Spec'!K62,IF('DDR4 Config'!$O$1=2,'DDR4 Spec'!V62,'DDR4 Spec'!AG62)) -> 350 | L126: =IF('DDR4 Config'!$O$1=1,'DDR4 Spec'!L62,IF('DDR4 Config'!$O$1=2,'DDR4 Spec'!W62,'DDR4 Spec'!AH62)) -> 350 | M126: =IF('DDR4 Config'!$O$1=1,'DDR4 Spec'!M62,IF('DDR4 Config'!$O$1=2,'DDR4 Spec'!X62,'DDR4 Spec'!AI62)) -> 350 | N126: =IF('DDR4 Config'!$O$1=1,'DDR4 Spec'!N62,IF('DDR4 Config'!$O$1=2,'DDR4 Spec'!Y62,'DDR4 Spec'!AJ62)) -> 350 | O126: =HLOOKUP($O$70,$E$70:$N$129,57) -> 350
D127: tREFI | E127: =IF('DDR4 Config'!$O$1=1,'DDR4 Spec'!E63,IF('DDR4 Config'!$O$1=2,'DDR4 Spec'!P63,'DDR4 Spec'!AA63)) -> 7.8 | F127: =IF('DDR4 Config'!$O$1=1,'DDR4 Spec'!F63,IF('DDR4 Config'!$O$1=2,'DDR4 Spec'!Q63,'DDR4 Spec'!Y63)) -> 7.8 | G127: =IF('DDR4 Config'!$O$1=1,'DDR4 Spec'!G63,IF('DDR4 Config'!$O$1=2,'DDR4 Spec'!R63,'DDR4 Spec'!Z63)) -> 0 | H127: =IF('DDR4 Config'!$O$1=1,'DDR4 Spec'!H63,IF('DDR4 Config'!$O$1=2,'DDR4 Spec'!S63,'DDR4 Spec'!AA63)) -> 7.8 | I127: =IF('DDR4 Config'!$O$1=1,'DDR4 Spec'!I63,IF('DDR4 Config'!$O$1=2,'DDR4 Spec'!T63,'DDR4 Spec'!AE63)) -> 7.8 | J127: =IF('DDR4 Config'!$O$1=1,'DDR4 Spec'!J63,IF('DDR4 Config'!$O$1=2,'DDR4 Spec'!U63,'DDR4 Spec'!AF63)) -> 7.8 | K127: =IF('DDR4 Config'!$O$1=1,'DDR4 Spec'!K63,IF('DDR4 Config'!$O$1=2,'DDR4 Spec'!V63,'DDR4 Spec'!AG63)) -> 7.8 | L127: =IF('DDR4 Config'!$O$1=1,'DDR4 Spec'!L63,IF('DDR4 Config'!$O$1=2,'DDR4 Spec'!W63,'DDR4 Spec'!AH63)) -> 7.8 | M127: =IF('DDR4 Config'!$O$1=1,'DDR4 Spec'!M63,IF('DDR4 Config'!$O$1=2,'DDR4 Spec'!X63,'DDR4 Spec'!AI63)) -> 7.8 | N127: =IF('DDR4 Config'!$O$1=1,'DDR4 Spec'!N63,IF('DDR4 Config'!$O$1=2,'DDR4 Spec'!Y63,'DDR4 Spec'!AJ63)) -> 7.8 | O127: =HLOOKUP($O$70,$E$70:$N$129,58) -> 7.8
D128: tCK (MIN) | E128: =IF('DDR4 Config'!$O$1=1,'DDR4 Spec'!E64,IF('DDR4 Config'!$O$1=2,'DDR4 Spec'!P64,'DDR4 Spec'!AA64)) -> 1.070811361 | F128: =IF('DDR4 Config'!$O$1=1,'DDR4 Spec'!F64,IF('DDR4 Config'!$O$1=2,'DDR4 Spec'!Q64,'DDR4 Spec'!Y64)) -> 0.625 | G128: =IF('DDR4 Config'!$O$1=1,'DDR4 Spec'!G64,IF('DDR4 Config'!$O$1=2,'DDR4 Spec'!R64,'DDR4 Spec'!Z64)) -> 0 | H128: =IF('DDR4 Config'!$O$1=1,'DDR4 Spec'!H64,IF('DDR4 Config'!$O$1=2,'DDR4 Spec'!S64,'DDR4 Spec'!AA64)) -> 1.070811361 | I128: =IF('DDR4 Config'!$O$1=1,'DDR4 Spec'!I64,IF('DDR4 Config'!$O$1=2,'DDR4 Spec'!T64,'DDR4 Spec'!AE64)) -> 0.8333333333 | J128: =IF('DDR4 Config'!$O$1=1,'DDR4 Spec'!J64,IF('DDR4 Config'!$O$1=2,'DDR4 Spec'!U64,'DDR4 Spec'!AF64)) -> 0.7501875469 | K128: =IF('DDR4 Config'!$O$1=1,'DDR4 Spec'!K64,IF('DDR4 Config'!$O$1=2,'DDR4 Spec'!V64,'DDR4 Spec'!AG64)) -> 0.7501875469 | L128: =IF('DDR4 Config'!$O$1=1,'DDR4 Spec'!L64,IF('DDR4 Config'!$O$1=2,'DDR4 Spec'!W64,'DDR4 Spec'!AH64)) -> 0.68189567 | M128: =IF('DDR4 Config'!$O$1=1,'DDR4 Spec'!M64,IF('DDR4 Config'!$O$1=2,'DDR4 Spec'!X64,'DDR4 Spec'!AI64)) -> 0.68189567 | N128: =IF('DDR4 Config'!$O$1=1,'DDR4 Spec'!N64,IF('DDR4 Config'!$O$1=2,'DDR4 Spec'!Y64,'DDR4 Spec'!AJ64)) -> 0.625 | O128: =HLOOKUP($O$70,$E$70:$N$129,59) -> 0.625
D129: tCK (MAX) | E129: =IF('DDR4 Config'!$O$1=1,'DDR4 Spec'!E65,IF('DDR4 Config'!$O$1=2,'DDR4 Spec'!P65,'DDR4 Spec'!AA65)) -> 1.9 | F129: =IF('DDR4 Config'!$O$1=1,'DDR4 Spec'!F65,IF('DDR4 Config'!$O$1=2,'DDR4 Spec'!Q65,'DDR4 Spec'!Y65)) -> 1.9 | G129: =IF('DDR4 Config'!$O$1=1,'DDR4 Spec'!G65,IF('DDR4 Config'!$O$1=2,'DDR4 Spec'!R65,'DDR4 Spec'!Z65)) -> 0 | H129: =IF('DDR4 Config'!$O$1=1,'DDR4 Spec'!H65,IF('DDR4 Config'!$O$1=2,'DDR4 Spec'!S65,'DDR4 Spec'!AA65)) -> 1.9 | I129: =IF('DDR4 Config'!$O$1=1,'DDR4 Spec'!I65,IF('DDR4 Config'!$O$1=2,'DDR4 Spec'!T65,'DDR4 Spec'!AE65)) -> 1.9 | J129: =IF('DDR4 Config'!$O$1=1,'DDR4 Spec'!J65,IF('DDR4 Config'!$O$1=2,'DDR4 Spec'!U65,'DDR4 Spec'!AF65)) -> 1.9 | K129: =IF('DDR4 Config'!$O$1=1,'DDR4 Spec'!K65,IF('DDR4 Config'!$O$1=2,'DDR4 Spec'!V65,'DDR4 Spec'!AG65)) -> 1.9 | L129: =IF('DDR4 Config'!$O$1=1,'DDR4 Spec'!L65,IF('DDR4 Config'!$O$1=2,'DDR4 Spec'!W65,'DDR4 Spec'!AH65)) -> 1.9 | M129: =IF('DDR4 Config'!$O$1=1,'DDR4 Spec'!M65,IF('DDR4 Config'!$O$1=2,'DDR4 Spec'!X65,'DDR4 Spec'!AI65)) -> 1.9 | N129: =IF('DDR4 Config'!$O$1=1,'DDR4 Spec'!N65,IF('DDR4 Config'!$O$1=2,'DDR4 Spec'!Y65,'DDR4 Spec'!AJ65)) -> 1.9 | O129: =HLOOKUP($O$70,$E$70:$N$129,60) -> 1.9
B131: Parameter | C131: Condition
B132: VDD,max | C132: Maximum VDD | D132: =O71 -> 1.26
B133: VDD,min | C133: Minimum VDD | D133: =O72 -> 1.14
B134: VPP,max | C134: Maximum VPP | D134: =O73 -> 2.75
B135: VPP,min | C135: Minimum VPP | D135: =O74 -> 2.375
B137: IDD0 | C137: Maximum Active Precharge Current | D137: =IF('DDR4 Config'!S1=3,'DDR4 Spec'!O78, IF('DDR4 Config'!S1=2, 'DDR4 Spec'!O77, IF('DDR4 Config'!S1=1, 'DDR4 Spec'!O76,"error") ) ) -> 0
B138: IPP0 | C138: Maximum Active Word line Boost | D138: =IF('DDR4 Config'!S1=3,'DDR4 Spec'!O81, IF('DDR4 Config'!S1=2, 'DDR4 Spec'!O80, IF('DDR4 Config'!S1=1, 'DDR4 Spec'!O79,"error") ) ) -> 0
B139: IDD2P | C139: Maximum Precharge Power-Down Standby Current | D139: =IF('DDR4 Config'!S1=3,'DDR4 Spec'!O84, IF('DDR4 Config'!S1=2, 'DDR4 Spec'!O83, IF('DDR4 Config'!S1=1, 'DDR4 Spec'!O82,"error") ) ) -> 0
B140: IDD2N | C140: Maximum Precharge Standby Current | D140: =IF('DDR4 Config'!S1=3,'DDR4 Spec'!O87, IF('DDR4 Config'!S1=2, 'DDR4 Spec'!O86, IF('DDR4 Config'!S1=1, 'DDR4 Spec'!O85,"error") ) ) -> 0
B142: IDD3P | C142: Maximum Active Power-Down Standby Current | D142: =IF('DDR4 Config'!S1=3,'DDR4 Spec'!O90, IF('DDR4 Config'!S1=2, 'DDR4 Spec'!O89, IF('DDR4 Config'!S1=1, 'DDR4 Spec'!O88,"error") ) ) -> 0
B143: IDD3N | C143: Maximum Active Standby Current | D143: =IF('DDR4 Config'!S1=3,'DDR4 Spec'!O93, IF('DDR4 Config'!S1=2, 'DDR4 Spec'!O92, IF('DDR4 Config'!S1=1, 'DDR4 Spec'!O91,"error") ) ) -> 0
B144: IPPSB | C144: Maximum Standby Word line Boost | D144: =IF('DDR4 Config'!S1=3,'DDR4 Spec'!O96, IF('DDR4 Config'!S1=2, 'DDR4 Spec'!O95, IF('DDR4 Config'!S1=1, 'DDR4 Spec'!O94,"error") ) ) -> 0
B145: IDD4R | C145: Maximum Read Burst Current | D145: =IF('DDR4 Config'!S1=3,'DDR4 Spec'!O99, IF('DDR4 Config'!S1=2, 'DDR4 Spec'!O98, IF('DDR4 Config'!S1=1, 'DDR4 Spec'!O97,"error") ) ) -> 0
B146: IPP4R | C146: Maximum Read Burst Current | D146: =IF('DDR4 Config'!S1=3,'DDR4 Spec'!O102, IF('DDR4 Config'!S1=2, 'DDR4 Spec'!O101, IF('DDR4 Config'!S1=1, 'DDR4 Spec'!O100,"error") ) ) -> 0
B147: IDD4W | C147: Maximum Write BurstCurrent | D147: =IF('DDR4 Config'!S1=3,'DDR4 Spec'!O105, IF('DDR4 Config'!S1=2, 'DDR4 Spec'!O104, IF('DDR4 Config'!S1=1, 'DDR4 Spec'!O103,"error") ) ) -> 0
B148: IPP4W | C148: Maximum Write BurstCurrent | D148: =IF('DDR4 Config'!S1=3,'DDR4 Spec'!O108, IF('DDR4 Config'!S1=2, 'DDR4 Spec'!O107, IF('DDR4 Config'!S1=1, 'DDR4 Spec'!O106,"error") ) ) -> 0
B149: =B46 -> IDD5R | C149: =C46 -> Maximum distriuted refresh current | D149: =IF('DDR4 Config'!S1=3,'DDR4 Spec'!O111, IF('DDR4 Config'!S1=2, 'DDR4 Spec'!O110, IF('DDR4 Config'!S1=1, 'DDR4 Spec'!O109,"error") ) ) -> 0
B150: =B49 -> IPP5R | C150: =C49 -> Maximum distriuted refresh current | D150: =IF('DDR4 Config'!S1=3,'DDR4 Spec'!O114, IF('DDR4 Config'!S1=2, 'DDR4 Spec'!O113, IF('DDR4 Config'!S1=1, 'DDR4 Spec'!O112,"error") ) ) -> 0
B152: tCKavg | C152: tCK used for current measurements | D152: =O117 -> 0.625
B153: tRRD_s | C153: Minimum activate-to-activate timing (different BG) | D153: =IF('DDR4 Config'!S1=3,'DDR4 Spec'!O120, IF('DDR4 Config'!S1=2, 'DDR4 Spec'!O119, IF('DDR4 Config'!S1=1, 'DDR4 Spec'!O118,"error") ) ) -> 2.5
B154: tRRD_L | C154: Minimum activate-to-activate timing (same BG) | D154: =IF('DDR4 Config'!S1=3,'DDR4 Spec'!O123, IF('DDR4 Config'!S1=2, 'DDR4 Spec'!O122, IF('DDR4 Config'!S1=1, 'DDR4 Spec'!O121,"error") ) ) -> 4.9
B155: tRC | C155: Minimum activate-to-activate timing (Same bank) | D155: =O124 -> 45.75
B156: tRAS | C156: tRAS used for IDD0 Calcualtion | D156: 32
B157: tRFC(min) | C157: Minimum refresh to refresh cycle time | D157: 350
B158: tREFI | C158: Average periodic refresh cycle time | D158: 7.8
B159: tCK(min) | C159: Minimum tCK cycle rate | D159: 0.625
B160: tCK(max) | C160: Maximum tCK cycle rate | D160: 1.9
B164: Initial numbers are for reference only and must be verified with existing DRAM data sheets for accuracy prior to using the spreadsheet.

Sheet DDR4 Config
O1: 3 | P1: 10 | R1: 1 | S1: =U1 -> 1 | T1: <== | U1: 1 | V1: 2 | W1: =V1 -> 2
O2: Density | P2: Speed Grade | Q2: DBI | R2: DBI | S2: Strobes | T2: DQs per DRAM | U2: Config | V2: Package | W2: Package
O3: 4Gb | P3: ='DDR4 Spec'!E6 -> -107E | Q3: Off | R3: 1 | S3: 1 | T3: x4 | U3: 4 | V3: 1 | W3: SDP
O4: 8Gb | P4: ='DDR4 Spec'!F6 -> -093 | Q4: On | R4: 2 | S4: 1 | T4: x8 | U4: 8 | V4: 2 | W4: DDP2R
B5: DDR4 SDRAM Configuration | O5: 16Gb | P5: ='DDR4 Spec'!G6 -> -093E | S5: 2 | T5: x16 | U5: 16
P6: ='DDR4 Spec'!H6 -> -083
C7: DRAM Die Density | D7: =INDEX(O3:O5,O1) -> 16Gb | P7: ='DDR4 Spec'!I6 -> -083E
B8: MT/s | C8: DRAM Width (Number of DQs per ) | D8: =INDEX(U3:U5,U1) -> 4 | P8: ='DDR4 Spec'!J6 -> -075
B9: =IF('DDR4 Config'!D9 = "-107E", 1866, IF('DDR4 Config'!D9 = "-093", 2133, IF('DDR4 Config'!D9 = "-093E", 2133, IF('DDR4 Config'!D9 = "-083", 2400, IF('DDR4 Config'!D9 = "-083E", 2400, IF('DDR4 Config'!D9 = "-075", 2666, IF('DDR4 Config'!D9 = "-075E", 2666, IF('DDR4 Config'!D9 = "-068", 2933, IF('DDR4 Config'!D9 = "-068E",2933, IF('DDR4 Config'!D9 = "-062E", 3200, 0)))))))))) -> 3200 | C9: Speed Grade | D9: =INDEX(P3:P12,P1) -> -062E | P9: ='DDR4 Spec'!K6 -> -075E
C10: DBI Mode enabled | D10: =INDEX(R3:R5,R1) -> 1 | P10: ='DDR4 Spec'!L6 -> -068
C11: Package (only used for "Module Calc" tab) | D11: =INDEX(V3:V5,V1) -> 2 | P11: ='DDR4 Spec'!M6 -> -068E
P12: ='DDR4 Spec'!N6 -> -062E
B14: Parameter | C14: Condition | D14: Value | E14: Units
C15: Maximum VCC | D15: ='DDR4 Spec'!D132 -> 1.26 | E15: V
C16: Minimum VCC | D16: ='DDR4 Spec'!D133 -> 1.14 | E16: V
C17: Maximum VPP | D17: ='DDR4 Spec'!D134 -> 2.75 | E17: V
C18: Minimum VPP | D18: ='DDR4 Spec'!D135 -> 2.375 | E18: V
C20: Number of DQ strobes (DQS) per DRAM | D20: =2*INDEX(S3:S5,S1) -> 2
C21: Number of data mask (DM) per DRAM | D21: =INDEX(S3:S5,S1) -> 1
B23: IDD0 | C23: Maximum VDD active precharge current | D23: ='DDR4 Spec'!D137 -> 0 | E23: mA
B24: IPP0 | C24: Maximum VPP active precharge current | D24: ='DDR4 Spec'!D138 -> 0 | E24: mA
B25: IDD2P | C25: Maximum precharge power-down standby current | D25: ='DDR4 Spec'!D139 -> 0 | E25: mA
B26: IDD2N | C26: Maximum precharge standby current | D26: ='DDR4 Spec'!D140 -> 0 | E26: mA
B27: IDD3P | C27: Maximum active power-down standby current | D27: ='DDR4 Spec'!D142 -> 0 | E27: mA
B28: IDD3N | C28: Maximum active standby current | D28: ='DDR4 Spec'!D143 -> 0 | E28: mA
B29: IDD3N_1BNK | C29: Maximum active standby current with one bank open (Calculated) | D29: =(D28-D26)/IF(D8=16,8,16)+D26 -> 0 | E29: mA
B30: IPP3N | C30: Maximum VPP standby current | D30: ='DDR4 Spec'!D144 -> 0 | E30: mA
B31: IDD4R | C31: Maximum read burst current | D31: ='DDR4 Spec'!D145 -> 0 | E31: mA
B32: IPP4R | C32: Maximum VPP read burst current | D32: ='DDR4 Spec'!D146 -> 0 | E32: mA
B33: IDD4W | C33: Maximum write burst current | D33: ='DDR4 Spec'!D147 -> 0 | E33: mA
B34: IPP4W | C34: Maximum VPP write burst current | D34: ='DDR4 Spec'!D148 -> 0 | E34: mA
B35: IDD5R | C35: Maximum distributed refresh current | D35: ='DDR4 Spec'!D149 -> 0 | E35: mA
B36: IPP5R | C36: Maximum distributed refresh Ipp current | D36: ='DDR4 Spec'!D150 -> 0 | E36: mA
B37: IDD5B | C37: Maximum burst refresh current (calculated from IDD5R | D37: =(D35-D26)*((D46*1000)/D45)+D26 -> 0 | E37: mA
B38: IPP5B | C38: Maximum burst refresh Ipp current (calculated from IDD5R) | D38: =(D36-D30)*((D46*1000)/D45)+D30 -> 0 | E38: mA
B40: tCKavg | C40: tCK used for current measurements (see current notes) | D40: ='DDR4 Spec'!D152 -> 0.625 | E40: ns
B41: tRRD_S | C41: Minimum activate-to-activate timing (different BG) | D41: ='DDR4 Spec'!D153 -> 2.5 | E41: ns
B42: tRRD_L | C42: Minimum activate-to-activate timing (same BG) | D42: ='DDR4 Spec'!D154 -> 4.9 | E42: ns
B43: tRC | C43: Spec minimum activate-to-activate timing (same bank) | D43: ='DDR4 Spec'!D155 -> 45.75 | E43: ns
B44: tRAS | C44: tRAS used for IDD0 calculation | D44: ='DDR4 Spec'!D156 -> 32 | E44: ns
B45: tRFC (MIN) | C45: Spec minimum refresh-to-refresh cycle time | D45: ='DDR4 Spec'!D157 -> 350 | E45: ns
B46: tREFI | C46: Average periodic refresh cycle time | D46: ='DDR4 Spec'!D158 -> 7.8 | E46: µs
B47: tCK (MIN) | C47: Minimum tCK cycle rate | D47: ='DDR4 Spec'!D159 -> 0.625 | E47: ns
B48: tCK (MAX) | C48: Maximum tCK cycle rate | D48: ='DDR4 Spec'!D160 -> 1.9 | E48: ns

Sheet System Config
X1: 2 | BA1: 1 | BB1: 7 | BC1: 3 | BD1: 8
C2: 2 | M2: DRAM Usage Conditions in the System Environment | BA2: I/O driver | BB2: RTTu2-RD | BC2: ODT write | BD2: RTTu2-WR
B3: 1 | C3: Google Stress 4Rx4 (DDP2R) LRDIMM | BA3: 34 | BB3: 34 | BC3: 80 | BD3: 34
B4: 2 | C4: Google Stress 2Rx4/2Rx8 RDIMM/UDIMM/SODIMM | M4: Values that require input are shown in dark green. These will be dependent on how the system accesses the DRAM. | R4: Values that require input are shown in white field or in drop box. These will be dependent on how the system accesses the DRAM. | BA4: 48 | BB4: 40 | BC4: 120 | BD4: 40
B5: 3 | C5: Google Stress 1Rx4/1Rx8 RDIMM/UDIMM/SODIMM | M5: Calculated values in light green; do not make entries in these slots | R5: READ I/O Power | Z5: WRITE I/O Power | BB5: 48 | BC5: 240 | BD5: 48
B6: 4 | C6: Google Stress 1Rx16 UDIMM/SODIMM | BB6: 60 | BD6: 60
B7: 5 | C7: User-Defined | M7: System VDD | N7: 1.2 | O7: V | P7: =IF(N7<'DDR4 Config'!D16,"ERROR, VCC too Low",IF(N7>'DDR4 Config'!D15,"ERROR, VCC too High","")) ->  | BB7: 80 | BD7: 80
J8: CLK default can be written over, Spare formula -> | M8: System VPP | N8: 2.5 | O8: V | P8: =IF(N8<'DDR4 Config'!D18,"ERROR, VPP too Low",IF(N8>'DDR4 Config'!D17,"ERROR, VPP too High","")) ->  | BB8: 120 | BD8: 120
L9: =IF('DDR4 Config'!D9 = "-107E", 1000000/1071, IF('DDR4 Config'!D9 = "-093", 1000000/937, IF('DDR4 Config'!D9 = "-093E", 1000000/937, IF('DDR4 Config'!D9 = "-083", 1000000/833, IF('DDR4 Config'!D9 = "-083E", 1000000/833, IF('DDR4 Config'!D9 = "-075", 1000000/750, IF('DDR4 Config'!D9 = "-075E", 1000000/750, IF('DDR4 Config'!D9 = "-068", 1000000/682, IF('DDR4 Config'!D9 = "-068E", 1000000/682, IF('DDR4 Config'!D9 = "-062E", 1000000/625, 0)))))))))) -> 1600 | M9: System CK frequency (data rate /2) | N9: =IF('DDR4 Config'!D9 = "-107E", 1000000/1071, IF('DDR4 Config'!D9 = "-093", 1000000/937, IF('DDR4 Config'!D9 = "-093E", 1000000/937, IF('DDR4 Config'!D9 = "-083", 1000000/833, IF('DDR4 Config'!D9 = "-083E", 1000000/833, IF('DDR4 Config'!D9 = "-075", 1000000/750, IF('DDR4 Config'!D9 = "-075E", 1000000/750, IF('DDR4 Config'!D9 = "-068", 1000000/682, IF('DDR4 Config'!D9 = "-068E", 1000000/682, IF('DDR4 Config'!D9 = "-062E", 1000000/625, 0)))))))))) -> 1600 | O9: MHz | P9: =IF(N9+0.1<1000/'DDR4 Config'!D48,"ERROR, frequency too low",IF(N9-0.5> 1000 /'DDR4 Config'!D47,"ERROR, frequency too high", IF('DDR4 Config'!D9 = "-107E","DDR4-1866 Base", IF('DDR4 Config'!D9 = "-093", "DDR4-2133 Base", IF('DDR4 Config'!D9 = "-093E", "DDR4-2133 Base", IF('DDR4 Config'!D9 = "-083", "DDR4-2400 Base", IF('DDR4 Config'!D9 = "-083E", "DDR4-2400 Base", IF('DDR4 Config'!D9 = "-075", "DDR4-2666 Base", IF('DDR4 Config'!D9 = "-075E", "DDR4-2666 Base", IF('DDR4 Config'!D9 = "-068", "DDR4-2933 Base", IF('DDR4 Config'!D9 = "-068E","DDR4-2933 Base", IF('DDR4 Config'!D9 = "-062E", "DDR4-3200 Base", " K")))))))))) )) -> DDR4-3200 Base | BB9: 240 | BD9: 240
M10: Burst length | N10: 8 | P10: must be either BC 4 or BL8 | BB10: 0 | BD10: 0
L12: PdqRD | M12: DDR4 SDRAM output power per individual DQ on this DRAM during READs from this DRAM | N12: =IF(V20= "na",0, V20) +IF(V21= "na",0, V21) -> 8.557669539 | O12: mW | P12: This value is the DRAM I/O power plus module series resistor power per DQ. The calculator to the right will estimate and populate the entries to the left
I13: Select DIMM usage conditions or user-defined conditions from drop-down box below. GS conditions are for 1DPC only | L13: PdqWR | M13: DDR4 SDRAM termination power per individual DQ during WRITEs to this DRAM | N13: =IF(AD20= "na",0, AD20) +IF(AD21= "na",0, AD21) -> 4.396499084 | O13: mW
L14: PdqRDoth | M14: DDR4 SDRAM termination power per individual DQ during READs from other DRAM Rank* | N14: =IF( X15 = 0, 0,X20+ X21) -> 1.196850601 | O14: mW | P14: This value is the termination power plus module series resistor power per DQ. The calculator to the right will estimate and populate the entries to the left | S14: Enter values in dark blue boxes below | X14: 0 = Disabled | AA14: Enter values in dark blue boxes below | AF14: 0 = Disabled | AI14: IRZC | AJ14: =1*AB19/AB15 -> 4.152249135 | AL14: IRTTpu1 | AM14: =1000*((AB17-0.001*AD19)/AD15) -> 4.152249135 | AO14: IRTTpu1 | AP14: =1000*((AB17-0.001*AF19)/AF15) -> 
L15: PdqWRoth | M15: DDR4 SDRAM termination power per individual DQ during WRITEs to other DRAM Rank* | N15: =IF( AF15 = 0, 0,AF20+ AF21) -> 0 | O15: mW | S15: RTTuC= | T15: 50 | U15: Rz1= | V15: =INDEX(BA3:BA4,BA1) -> 34 | W15: RTTu2= | X15: =INDEX(BB3:BB11,BB1) -> 240 | AA15: RzC= | AB15: 34 | AC15: RTTu1= | AD15: =INDEX(BC3:BC5,BC1) -> 240 | AE15: RTTu2= | AF15: =INDEX(BD3:BD11,BD1) -> 0 | AL15: IRTTpd1 | AM15: =1*AD19/AD16 -> 13.56401384 | AO15: IRTTpd1 | AP15: =1*AF19/AF16 -> 0
B16: Google Stress 4Rx4 (DDP2R) LRDIMM | C16: Google Stress 2RX4/2Rx8 RDIMM | D16: Google Stress 1Rx4/1Rx8 RDIMM | E16: Google Stress 1RX16 UDIMM/SODIMM | F16: Enter User Defined Usage conditions -> | I16: =INDEX($B16:$G16,1,$C$2) -> Google Stress 2RX4/2Rx8 RDIMM | J16: User Defined Usage Conditions | N16: =IF($C$2=5,J16,I16) -> Google Stress 2RX4/2Rx8 RDIMM | P16: <- Pulled from DIMM usage conditions table to the left | U16: Rs1= | V16: 15 | W16: Rs2= | X16: 15 | AC16: Rs1= | AD16: =V16 -> 15 | AE16: Rs2= | AF16: =X16 -> 15 | AL16: IRS1 | AM16: =1*(AD19-AB19)/AD17 ->  | AO16: IRS1 | AP16: =1*(AF19-AB19)/AF17 -> 
B17: 0.048 | C17: 0.048 | D17: 0.048 | E17: 0.048 | F17: - | I17: =INDEX($B17:$G17,1,$C$2) -> 0.048 | L17: BNK_PRE% | M17: The percentage of time that all banks on the DRAM are in a precharged state (per RANK) | N17: =IF($C$2=5,J17,I17) -> 0.048 | P17: =IF(SUM(N21+N23)*8/N10>1,"Data Bus utilization is too high","") ->  | S17: VDDq= | T17: 1.2 | AA17: VDDq= | AB17: =T17 -> 1.2
B18: 0 | C18: 0 | D18: 0 | E18: 0 | F18: - | I18: =INDEX($B18:$G18,1,$C$2) -> 0 | L18: CKE_LO_PRE% | M18: The percentage of the all bank precharge time for which CKE is held LOW | N18: =IF($C$2=5,J18,I18) -> 0 | S18: Calculated values in green boxes below | AA18: Calculated values in green boxes below
B19: 0 | C19: 0 | D19: 0 | E19: 0 | F19: - | I19: =INDEX($B19:$G19,1,$C$2) -> 0 | L19: CKE_LO_ACT% | M19: The percentage of the at least one bank active time for which CKE is held LOW | N19: =IF($C$2=5,J19,I19) -> 0 | P19: =IF(1-N19<N21+N23,"ERROR, CKE HI must be greater than READ and WRITE output cycles","") ->  | S19: N3= (mV) | T19: =IF(X15>0, IF(V15>0, IF(T15>0, 1000* (T17 *(V15+V16) )/(V15+V16+((X15+X16)* T15)/(X15+X16+ T15)),"RTTC<1"),"Rz1<1"), IF(V15>0, IF(T15>0, 1000* (T17 *(V15+V16) )/(V15+V16+T15),"RTTC<1"),"Rz1<1")) -> 647.5537101 | U19: N1= (mV) | V19: =IF(X15>0, IF(T15>0, IF(V15>0, 1000* (T17 *V15 )/(V15+V16+((X15+X16)* T15)/(X15+X16+ T15)),"RZ<1"), T15/T15), IF(T15>0, IF(V15>0, 1000* (T17 *V15 )/(V15+V16+T15),"RZ<1"), T15/T15)) -> 449.3229825 | W19: N2= (mV) | X19: =IF(V15>0, IF(X15>0, 1000* (T19*0.001+ (T17-T19*0.001)*X16/(X15+X16)),0), "RZ<1") -> 680.0505506 | AA19: N3= (mV) | AB19: =IF(AD15>0, IF(AF15>0, IF(AB15>0,1000*AB17*AB15/(AB15+(AD15+AD16)*(AF15+AF16)/(AD15+AD16+AF15+AF16)),"RZc<1"), IF(AB15>0,1000*AB17*AB15/(AB15+AD15+AD16), "RZc<1" ) ), " Rtt1<1") -> 141.1764706 | AC19: N1= (mV) | AD19: =IF(AD15>0, AB19+(1000*AB17-AB19)*AD16/(AD15+AD16),"Rtt1<1") -> 203.4602076 | AE19: N2= (mV) | AF19: =IF(AD15>0, IF(AF15>0, AB19+(1000*AB17-AB19)*AF16/(AF15+AF16),0),"Rtt1<1") -> 0
B20: 0 | C20: 0 | D20: 0 | E20: 0 | F20: - | I20: 0 | L20: PH% | M20: Page hit rate | N20: 0 | S20: RTTPUC = (mW) | T20: =IF(V15>0, IF(T15>0, 0.001*(1000*T17 - T19)*(1000*T17 - T19)/T15,"RTTC<1"), "RZ1<1") -> 6.103938065 | U20: Rz = (mW) | V20: =IF(X15>0, IF(T15>0, IF(V15>0, 1000* ( (T17 *V15 )/(V15+V16+((X15+X16)* T15)/(X15+X16+ T15)) )* ( (T17 *V15 )/(V15+V16+((X15+X16)* T15)/(X15+X16+ T15)))/ V15,"RZ<1"), T15/T15), IF(T15>0, IF(V15>0, 1000* ((T17 *V15 )/(V15+V16+ T15) * (T17 *V15 )/(V15+V16+ T15) / V15),"RZ<1"), T15/T15)) -> 5.937974782 | W20: RTTd2 = (mW) | X20: =IF(V15>0, IF(X15>0, 1000* ((T17-T19*0.001)*X15/(X15+X16)) * ((T17-T19*0.001)*X15/(X15+X16))/X15,0), "RZ<1") -> 1.126447625 | AA20: RzC = (mW) | AB20: =IF(AD15>0, IF(AB15>0, 0.001* (AB19/(AB15)) * (AB19/(AB15)) *AB15, "RZc<1"), "Rtt1<1") -> 0.5861998779 | AC20: RTTPUd1 = (mW) | AD20: =IF(AD15>0,1000*((AB17-0.001*AD19 )*(AB17-0.001*AD19)/AD15),"Rtt1<1") -> 4.137881491 | AE20: RTTPUd2 = (mW) | AF20: =IF(AD15>0,IF(AF15>0,1000*((AB17-0.001*AF19 )*(AB17-0.001*AF19)/AF15),0),"Rtt1<1") -> 0
B21: 0.15 | C21: 0.27 | D21: 0.46 | E21: 0.32 | F21: - | I21: 0.27 | L21: RDsch% | M21: The percentage of clock cycles which are outputting read data from the DRAM (per RANK) | N21: 0.27 | P21: =IF(SUM(N21+N23)*8/N10>1,"Data Bus utilization is too high","") ->  | U21: Rs1 = (mW) | V21: =IF(V15>0,IF(V16>0,1000*(T19*0.001/(V15+V16))*(T19*0.001/(V15+V16))*V16,0),"Rz<1") -> 2.619694757 | W21: Rs2= (mW) | X21: =IF(V15>0, IF(X15>0, IF(X16>0, 1000* ((T17-T19*0.001)*X16/(X15+X16)) * ((T17-T19*0.001)*X16/(X15+X16))/X16,0),"NoRTT2"), "RZ<1") -> 0.07040297653 | AC21: Rs1= (mW) | AD21: =IF(AD15>0,IF(AD16>0,1000*((0.001*AD19-0.001*AB19)*(0.001*AD19-0.001*AB19)/AD16),0), "Rtt1<1") -> 0.2586175932 | AE21: Rs2= (mW) | AF21: =IF(AD15>0,IF(AF15>0,IF(AF16>0,1000*((0.001*AF19-0.001*AB19)*(0.001*AF19-0.001*AB19)/AF16),0),"NoRTT2"),"Rtt1<1") -> NoRTT2
B22: 0.5 | C22: 0.5 | D22: 0.5 | E22: 0.5 | F22: - | I22: 0.5 | L22: RD Data % low | M22: Percentage of bits to toggle low each Read strobe edge | N22: 0.5 | P22: Adjust accordingly; suggest using 50%
B23: 0.07 | C23: 0.13 | D23: 0.22 | E23: 0.15 | F23: - | I23: 0.13 | L23: WRsch% | M23: The percentage of clock cycles which are inputting write data to the DRAM (per RANK) | N23: 0.13 | P23: =IF(SUM(N21+N23)*8/N10>1,"Data Bus utilization is too high","") -> 
B24: 0.5 | C24: 0.5 | D24: 0.5 | E24: 0.5 | F24: - | I24: 0.5 | L24: WR Data % low | M24: Percentage of bits to toggle low each Write strobe edge | N24: 0.5 | P24: Adjust accordingly; suggest using 50%
B25: 0.15 | C25: 0.27 | D25: 0 | E25: 0 | F25: - | I25: 0.27 | L25: termRDsch% | M25: The percentage of clock cycles which are terminating read data to another DRAM Rank* | N25: 0.27 | P25: * must be 0% for a 1-rank system
B26: 0.07 | C26: 0.13 | D26: 0 | E26: 0 | F26: - | I26: 0.13 | L26: termWRsch% | M26: The percentage of clock cycles which are terminating write data to another DRAM Rank* | N26: 0.13 | P26: * must be 0% for a 1-rank system
B27: 124 | C27: 124 | D27: 124 | E27: 124 | F27: - | I27: 124 | L27: System tRC | M27: Actual system tRC | N27: =IF($C$2=5,J27,I27) -> 124 | O27: ns | P27: Needed to derate ACT power (calculated from JEDEC IDD0/3N/2N patterns which use spec min tRC)
L28: tRRDsch* | M28: The average time between ACT commands to this DRAM (includes ACT to same or different banks in the same DRAM device) | N28: =INT(N40*10000/N9)/10 -> 6.2 | O28: ns | P28: This time is calculated from page hit rate read/write bus utilization. No entry is necessary.
M35: Calculated values in light green; do not make entries in these slots
M39: Average clocks between colum | N39: =N10/2/(N23+N21) -> 10
M40: Average Clocks between Rows | N40: =N39/(1-N20) -> 10

Sheet Power Calcs
B5: =CONCATENATE("System Derating for ",E34,"Gb"," DDR4 SDRAM (x",E35,", ",E36," Speed Grade)", ","," ", IF( 'DDR4 Config'!D$10= 1, "DBI not enabled", IF('DDR4 Config'!D$10=2, "DBI enabled", "DBI selection is wrong"))) -> System Derating for 32Gb DDR4 SDRAM (x4, -062E Speed Grade), DBI not enabled
B7: Power is calculated after after scaling for VDD. Next, some powers are scaled for frequency effects to derate from test condition to use condition. Finally, these numbers are scaled for actual system usage. All parameters are calculated and require no user input. See TN-40-07 for detailed explanations and formulas for each of these parameters
C10: Maximum Power Based on Data Sheet Test Conditions and Maximum Limits when in this state | I10: Power Derated for System Usage Conditions Input into This Model | O10: Power Scaled for Actual System Conditions (DRAM Usage, CK Frequency, and VCC)
C11: Parameter | D11: VDD | E11: VPP | F11: Total | I11: Parameter | J11: VDD | K11: VPP | L11: Total | O11: Parameter | P11: VDD | Q11: VPP | R11: Total
B12: Background power used during precharge power-down | C12: Pds(PRE_PDN) | D12: =+'DDR4 Config'!D25*'DDR4 Config'!D$15 -> 0 | E12: =+'DDR4 Config'!D30*'DDR4 Config'!D$17 -> 0 | F12: =D12+E12 -> 0 | G12: mW | I12: Psch(PRE_PDN) | J12: =D12*'System Config'!N17*'System Config'!N18 -> 0 | K12: =E12*'System Config'!N17*'System Config'!N18 -> 0 | L12: =F12*'System Config'!N17*'System Config'!N18 -> 0 | M12: mW | O12: Psys(PRE_PDN) | P12: =J12 * 'System Config'!N7 /'DDR4 Config'!D15 -> 0 | Q12: =K12 * 'System Config'!N8 /'DDR4 Config'!D17 -> 0 | R12: =P12+Q12 -> 0 | S12: mW
B13: Background power used during idle standby | C13: Pds(PRE_STBY) | D13: =+'DDR4 Config'!D26*'DDR4 Config'!D$15 -> 0 | E13: =+'DDR4 Config'!D30*'DDR4 Config'!D$17 -> 0 | F13: =D13+E13 -> 0 | G13: mW | I13: Psch(PRE_STBY) | J13: =D13*'System Config'!N17*(1-'System Config'!N18) -> 0 | K13: =E13*'System Config'!N17*(1-'System Config'!N18) -> 0 | L13: =F13*'System Config'!N17*(1-'System Config'!N18) -> 0 | M13: mW | O13: Psys(PRE_STBY) | P13: =J13 * 'System Config'!N7 /'DDR4 Config'!D15 * 'System Config'!N$9/1000*'DDR4 Config'!D$40 -> 0 | Q13: =K13 * 'System Config'!N8 /'DDR4 Config'!D17 * 'System Config'!N$9/1000*'DDR4 Config'!D$40 -> 0 | R13: 0 | S13: mW
B14: Background power used during active power-down | C14: Pds(ACT_PDN) | D14: =+'DDR4 Config'!D27*'DDR4 Config'!D$15 -> 0 | E14: =+'DDR4 Config'!D30*'DDR4 Config'!D$17 -> 0 | F14: 0 | G14: mW | I14: Psch(ACT_PDN) | J14: =D14*(1-'System Config'!N17)*'System Config'!N19 -> 0 | K14: =E14*(1-'System Config'!N17)*'System Config'!N19 -> 0 | L14: =F14*(1-'System Config'!N17)*'System Config'!N19 -> 0 | M14: mW | O14: Psys(ACT_PDN) | P14: =J14*'System Config'!N7/'DDR4 Config'!D15*'System Config'!N$9/1000*'DDR4 Config'!D$40 -> 0 | Q14: =K14 * 'System Config'!N8 /'DDR4 Config'!D17 *'System Config'!N$9/1000*'DDR4 Config'!D$40 -> 0 | R14: 0 | S14: mW
B15: Background power used during active standby | C15: Pds(ACT_STBY) | D15: =+'DDR4 Config'!D28*'DDR4 Config'!D$15 -> 0 | E15: =+'DDR4 Config'!D30*'DDR4 Config'!D$17 -> 0 | F15: 0 | G15: mW | I15: Psch(ACT_STBY) | J15: =D15*(1-'System Config'!N17)*(1-'System Config'!N19) -> 0 | K15: =E15*(1-'System Config'!N17)*(1-'System Config'!N19) -> 0 | L15: =F15*(1-'System Config'!N17)*(1-'System Config'!N19) -> 0 | M15: mW | O15: Psys(ACT_STBY) | P15: =J15*'System Config'!N7/'DDR4 Config'!D15*'System Config'!N$9/1000*'DDR4 Config'!D$40 -> 0 | Q15: =K15 * 'System Config'!N8 /'DDR4 Config'!D17 *'System Config'!N$9/1000*'DDR4 Config'!D$40 -> 0 | R15: 0 | S15: mW
B16: Refresh power | C16: Pds(REF) | D16: =('DDR4 Config'!D37-'DDR4 Config'!D28)*'DDR4 Config'!D15 -> 0 | E16: =+ ( ('DDR4 Config'!D37 -'DDR4 Config'!D30)*'DDR4 Config'!D45/'DDR4 Config'!D46/1000)*'DDR4 Config'!D17 -> 0 | F16: 0 | G16: mW | I16: Psch(REF) | J16: =D16*'DDR4 Config'!D45/('DDR4 Config'!D46*1000) -> 0 | K16: =E16*'DDR4 Config'!D45/('DDR4 Config'!D46*1000) -> 0 | L16: =F16 -> 0 | M16: mW | O16: Psys(REF) | P16: =J16*'System Config'!N7/'DDR4 Config'!D15 -> 0 | Q16: =K16 * 'System Config'!N8 /'DDR4 Config'!D17 -> 0 | R16: 0 | S16: mW
B17: DRAM power for ACT/PRE commands | C17: Pds(ACT) | D17: =('DDR4 Config'!D23-('DDR4 Config'!D29*'DDR4 Config'!D44/'DDR4 Config'!D43+'DDR4 Config'!D26*('DDR4 Config'!D43-'DDR4 Config'!D44)/'DDR4 Config'!D43))*'DDR4 Config'!D$15 -> 0 | E17: =IF('DDR4 Config'!D24> 'DDR4 Config'!D30, ('DDR4 Config'!D24-('DDR4 Config'!D30*'DDR4 Config'!D44/'DDR4 Config'!D43+'DDR4 Config'!D30*('DDR4 Config'!D43-'DDR4 Config'!D44)/'DDR4 Config'!D43))*'DDR4 Config'!D$15, ('DDR4 Config'!D24-('DDR4 Config'!D30 *(0.8) *'DDR4 Config'!D44/'DDR4 Config'!D43+'DDR4 Config'!D30 *(0.8) *('DDR4 Config'!D43-'DDR4 Config'!D44)/'DDR4 Config'!D43))*'DDR4 Config'!D$15) -> 0 | F17: 0 | G17: mW | I17: Psch(ACT) | J17: =+D17*('System Config'!N27/'System Config'!N28)*('DDR4 Config'!D43/'System Config'!N27) -> 0 | K17: =+E17*'DDR4 Config'!D43/'System Config'!N28 -> 0 | L17: =+F17*'DDR4 Config'!D43/'System Config'!N28 -> 0 | M17: mW | O17: Psys(ACT) | P17: =J17*'System Config'!N7/'DDR4 Config'!D15 -> 0 | Q17: =K17 * 'System Config'!N8 /'DDR4 Config'!D17 -> 0 | R17: 0 | S17: mW
B18: DRAM write power | C18: Pds(WR) | D18: =('DDR4 Config'!D33-'DDR4 Config'!D$28)*'DDR4 Config'!D$15*'System Config'!N10/8 -> 0 | E18: =IF( ('DDR4 Config'!D32-'DDR4 Config'!D$30)>0, 'DDR4 Config'!D32-'DDR4 Config'!D$30, 0) *'DDR4 Config'!D$17*'System Config'!N10/8 -> 0 | F18: 0 | G18: mW | I18: Psch(WR) | J18: =+D18*'System Config'!N23 -> 0 | K18: =+E18*'System Config'!N23 -> 0 | L18: =+F18*'System Config'!N23 -> 0 | M18: mW | O18: Psys(WR) | P18: =J18*'System Config'!N7/'DDR4 Config'!D15 *'System Config'!N$9/1000*'DDR4 Config'!D$40 -> 0 | Q18: =K18*'System Config'!N7/'DDR4 Config'!D15 *'System Config'!N$9/1000*'DDR4 Config'!D$40 -> 0 | R18: 0 | S18: mW
B19: DRAM read power | C19: Pds(RD) | D19: =+('DDR4 Config'!D31-'DDR4 Config'!D$28)*'DDR4 Config'!D$15*'System Config'!N10/8 -> 0 | E19: =IF( ('DDR4 Config'!D34-'DDR4 Config'!D$30)>0, 'DDR4 Config'!D34-'DDR4 Config'!D$30, 0) *'DDR4 Config'!D$17*'System Config'!N10/8 -> 0 | F19: 0 | G19: mW | I19: Psch(RD) | J19: =+D19*'System Config'!N21 -> 0 | K19: =+E19*'System Config'!N21 -> 0 | L19: =+F19*'System Config'!N21 -> 0 | M19: mW | O19: Psys(RD) | P19: =J19*'System Config'!N7/'DDR4 Config'!D15 *'System Config'!N$9/1000*'DDR4 Config'!D$40 -> 0 | Q19: =K19*'System Config'!N7/'DDR4 Config'!D15 *'System Config'!N$9/1000*'DDR4 Config'!D$40 -> 0 | R19: 0 | S19: mW
B20: DQ output driver power when driving data bus during READ | C20: Pds(DQ) | D20: =IF('DDR4 Config'!D$10 = 1,'System Config'!N12*('DDR4 Config'!D$8+'DDR4 Config'!D20), IF('DDR4 Config'!D$10 = 2,'System Config'!N12*(('DDR4 Config'!D$8+1)/2+'DDR4 Config'!D20), "error")) -> 51.34601723 | E20: 0 | F20: 51.34601723 | G20: mW | I20: Psch(DQ) | J20: =+D20*'System Config'!N21*'System Config'!N22 -> 6.931712327 | K20: =+E20*'System Config'!N21 -> 0 | L20: =+F20*'System Config'!N21 -> 13.86342465 | M20: mW | O20: Psys(DQ) | P20: =J20 -> 6.931712327 | Q20: =K20 -> 0 | R20: 6.931712327 | S20: mW
B21: Term power for writes | C21: Pds(termW) | D21: =IF( 'DDR4 Config'!D$10 =1, ('System Config'!N13*('DDR4 Config'!D$8+'DDR4 Config'!D$20+'DDR4 Config'!D$21)), IF( 'DDR4 Config'!D$10 =2,('System Config'!N13*(('DDR4 Config'!D$8+1)/2+'DDR4 Config'!D$20+'DDR4 Config'!D$21)), "error")) -> 30.77549359 | E21: 0 | F21: 30.77549359 | G21: mW | I21: Psch(termW) | J21: =+D21*'System Config'!N23*'System Config'!N24 -> 2.000407083 | K21: =+E21*'System Config'!N23 -> 0 | L21: =+F21*'System Config'!N23 -> 4.000814166 | M21: mW | O21: Psys(termW) | P21: =J21 -> 2.000407083 | Q21: 0 | R21: 2.000407083 | S21: mW
B22: Term power for reads from another rank | C22: Pds(termRoth) | D22: =IF('DDR4 Config'!D$10=1,('DDR4 Config'!D$15/'System Config'!N7)* ('System Config'!N14*('DDR4 Config'!D$8+'DDR4 Config'!D$20)), IF('DDR4 Config'!D$10=2, ('DDR4 Config'!D$15/'System Config'!N7)* ('System Config'!N14*('DDR4 Config'!D$8+1+'DDR4 Config'!D$20)), "error")) -> 7.540158787 | E22: 0 | F22: 7.540158787 | G22: mW | I22: Psch(termRoth) | J22: =+D22*'System Config'!N25*'System Config'!N22 -> 1.017921436 | K22: =+E22*'System Config'!N25 -> 0 | L22: =+F22*'System Config'!N25 -> 2.035842872 | M22: mW | O22: Psys(termRoth) | P22: =J22 -> 1.017921436 | Q22: 0 | R22: 1.017921436 | S22: mW
B23: Term power for writes from another rank | C23: Pds(termWoth) | D23: =IF('DDR4 Config'!D$10=1,('DDR4 Config'!D$15/'System Config'!N7)*('System Config'!N15*('DDR4 Config'!D$8+'DDR4 Config'!D$20+'DDR4 Config'!D$21)), IF('DDR4 Config'!D$10=2, ('DDR4 Config'!D$15/'System Config'!N7)*('System Config'!N14*('DDR4 Config'!D$8+1+'DDR4 Config'!D$20+'DDR4 Config'!D$21)), "error")) -> 0 | E23: 0 | F23: 0 | G23: mW | I23: Psch(termWoth) | J23: =+D23*'System Config'!N26*'System Config'!N24 -> 0 | K23: =+E23*'System Config'!N26 -> 0 | L23: =+F23*'System Config'!N26 -> 0 | M23: mW | O23: Psys(termWoth) | P23: =J23 -> 0 | Q23: 0 | R23: 0 | S23: mW
O25: Total DRAM Power Consumed | R25: =SUM(R12:R21) -> 8.93211941 | S25: mW
O26: 2nd rank DRAM Power Consumed | R26: =SUM(R22:R23) -> 1.017921436 | S26: mW
B30: VCC | D30: ='System Config'!M8 -> System VPP | E30: ='System Config'!N8 -> 2.5
B31: FREQ | D31: ='System Config'!M9 -> System CK frequency (data rate /2) | E31: ='System Config'!N9 -> 1600
B34: Package Density | D34: Package Density | E34: ='Module Calc'!D7 -> 32
B35: IO | D35: ='DDR4 Config'!C8 -> DRAM Width (Number of DQs per ) | E35: ='DDR4 Config'!D8 -> 4
B36: Speed Grade | D36: ='DDR4 Config'!C9 -> Speed Grade | E36: ='DDR4 Config'!D9 -> -062E

Sheet Summary
A5: =CONCATENATE('DDR4 Config'!D7," DDR4 SDRAM with ",'DDR4 Config'!D8," DQs and a ",'DDR4 Config'!D9," Speed Grade", ","," ", IF( 'DDR4 Config'!D$10= 1, "DBI not enabled", IF('DDR4 Config'!D$10=2, "DBI enabled", "DBI selection is wrong"))) -> 16Gb DDR4 SDRAM with 4 DQs and a -062E Speed Grade, DBI not enabled
C7: =CONCATENATE(A49," ",A50," ",A51," All parameters are calculated and require no user input.") -> System is operating at 1600 MHz clock with VDD = 1.2V and VPP=2.5V. Read bandwidth is 432 MT/s with write bandwidth of 208 MT/s. The DRAM terminates 640 MT/s. ACT commands are separated by 6.2ns on average. All parameters are calculated and require no user input.
B8: Psys Power Consumption Summary
D9: Total | E9: VDD | F9: VPP
B10: ACT | D10: ='Power Calcs'!R17 -> 0 | E10: ='Power Calcs'!P17 -> 0 | F10: ='Power Calcs'!Q17 -> 0 | G10: mW
C11: Activate Power | D11: =D10 -> 0 | E11: =E10 -> 0 | F11: =F10 -> 0 | G11: mW | J11: VDD Activate Power | K11: =$E$11 -> 0
B12: RD | D12: ='Power Calcs'!R19 -> 0 | E12: ='Power Calcs'!P19 -> 0 | F12: ='Power Calcs'!Q19 -> 0 | G12: mW | J12: VPP Activate Power | K12: =$F$11 -> 0
B13: WR | D13: ='Power Calcs'!R18 -> 0 | E13: ='Power Calcs'!P18 -> 0 | F13: ='Power Calcs'!Q18 -> 0 | G13: mW | J13: VDD RD/WR/Term Power | K13: =$E$16 -> 8.93211941
B14: READ I/O | D14: ='Power Calcs'!R20 -> 6.931712327 | E14: ='Power Calcs'!P20 -> 6.931712327 | F14: ='Power Calcs'!Q20 -> 0 | G14: mW | J14: VPP RD/WR/Term Power | K14: =$F$16 -> 0
B15: Write ODT | D15: ='Power Calcs'!R21 -> 2.000407083 | E15: ='Power Calcs'!P21 -> 2.000407083 | F15: ='Power Calcs'!Q21 -> 0 | G15: mW | J15: VDD Background Power | K15: =$E$22 -> 0
C16: RD/WR/Term Power | D16: =+D12+D13+D14+D15 -> 8.93211941 | E16: =+E12+E13+E14+E15 -> 8.93211941 | F16: =+F12+F13+F14+F15 -> 0 | G16: mW | J16: VPP Background Power | K16: =$F$22 -> 0
B17: ACT_STBY | D17: ='Power Calcs'!R15 -> 0 | E17: ='Power Calcs'!P15 -> 0 | F17: ='Power Calcs'!Q15 -> 0 | G17: mW
B18: PRE_STBY | D18: ='Power Calcs'!R13 -> 0 | E18: ='Power Calcs'!P13 -> 0 | F18: ='Power Calcs'!Q13 -> 0 | G18: mW
B19: ACT_PDN | D19: ='Power Calcs'!R14 -> 0 | E19: ='Power Calcs'!P14 -> 0 | F19: ='Power Calcs'!Q14 -> 0 | G19: mW
B20: PRE_PDN | D20: ='Power Calcs'!R12 -> 0 | E20: ='Power Calcs'!P12 -> 0 | F20: ='Power Calcs'!Q12 -> 0 | G20: mW
B21: REF | D21: ='Power Calcs'!R16 -> 0 | E21: ='Power Calcs'!P16 -> 0 | F21: ='Power Calcs'!Q16 -> 0 | G21: mW
C22: Background Power | D22: =SUM(D17:D21) -> 0 | E22: =SUM(E17:E21) -> 0 | F22: =SUM(F17:F21) -> 0 | G22: mW
B23: Total DDR4 SDRAM Power | D23: =+D16+D11+D22 -> 8.93211941 | E23: =+E16+E11+E22 -> 8.93211941 | F23: =+F16+F11+F22 -> 0 | G23: mW
B24: TERM 2nd rank | D24: =+'Power Calcs'!R22+'Power Calcs'!R23 -> 1.017921436 | E24: =+'Power Calcs'!P22+'Power Calcs'!P23 -> 1.017921436 | F24: =+'Power Calcs'!Q22+'Power Calcs'!Q23 -> 0 | G24: mW
E31: VDD | F31: VPP
C32: =$B$10 -> ACT | D32: =$D$10 -> 0 | E32: =$E$10 -> 0 | F32: =$F$10 -> 0
C33: =$B$12 -> RD | D33: =$D$12 -> 0 | E33: =$E$12 -> 0 | F33: =$F$12 -> 0
C34: =$B$13 -> WR | D34: =$D$13 -> 0 | E34: =$E$13 -> 0 | F34: =$F$13 -> 0
C35: =$B$14 -> READ I/O | D35: =$D$14 -> 6.931712327 | E35: =$E$14 -> 6.931712327 | F35: =$F$14 -> 0
C36: =$B$15 -> Write ODT | D36: =$D$15 -> 2.000407083 | E36: =$E$15 -> 2.000407083 | F36: =$F$15 -> 0
C37: =$B$17 -> ACT_STBY | D37: =$D$17 -> 0 | E37: =$E$17 -> 0 | F37: =$F$17 -> 0
C38: =$B$18 -> PRE_STBY | D38: =$D$18 -> 0 | E38: =$E$18 -> 0 | F38: =$F$18 -> 0
C39: =$B$19 -> ACT_PDN | D39: =$D$19 -> 0 | E39: =$E$19 -> 0 | F39: =$F$19 -> 0
C40: =$B$20 -> PRE_PDN | D40: =$D$20 -> 0 | E40: =$E$20 -> 0 | F40: =$F$20 -> 0
C41: =$B$21 -> REF | D41: =$D$21 -> 0 | E41: =$E$21 -> 0 | F41: =$F$21 -> 0
C42: =$B$24 -> TERM 2nd rank | D42: =$D$24 -> 1.017921436 | E42: =$E$24 -> 1.017921436 | F42: =$F$24 -> 0
A49: =CONCATENATE("System is operating at ",'System Config'!N9," MHz clock with VDD = ",'System Config'!N7,"V"," and VPP=",'System Config'!N8,"V.") -> System is operating at 1600 MHz clock with VDD = 1.2V and VPP=2.5V.
A50: =CONCATENATE("Read bandwidth is ",B52," MT/s with write bandwidth of ",B53," MT/s. The DRAM terminates ",B54," MT/s.") -> Read bandwidth is 432 MT/s with write bandwidth of 208 MT/s. The DRAM terminates 640 MT/s.
A51: =CONCATENATE("ACT commands are separated by ",'System Config'!N28,"ns on average.") -> ACT commands are separated by 6.2ns on average.
B52: =INT('System Config'!N9*'System Config'!N21*'DDR4 Config'!D8/8*20+0.999)/10 -> 432 | C52: MB/sec
A53: Read Bandwidth | B53: =INT('System Config'!N9*'System Config'!N23*'DDR4 Config'!D8/8*20+0.99)/10 -> 208 | C53: MB/sec
A54: Write Bandwidth | B54: =INT('System Config'!N9*('System Config'!N26+'System Config'!N25)*'DDR4 Config'!D8/8*20+0.99)/10 -> 640 | C54: MB/sec
A55: Term

Sheet Module Calc
S1: 2 | T1: 1 | U1: 1
B3: Total Module Rank Quantity | D3: =INDEX(S4:S6,S1) -> 2
B4: Module Type | D4: =INDEX(T4:T7,T1) -> RDIMM | I4: DIMM Power Calculation | S4: 1 | T4: RDIMM | U4: yes
B5: ECC | D5: =INDEX(U4:U5,U1) -> yes | I5: DDR4 Config | J5: Package | K5: DIMM Type | L5: Data Rate MT/s | M5: Device Power (mW) | P5: Total # Ranks | Q5: Average DIMM Power (W) | S5: 2 | T5: UDIMM | U5: no
B6: Package Config | D6: =CONCATENATE("x",'DDR4 Config'!D8) -> x4 | M6: Total Power | N6: Background Power | O6: Power Terminate | S6: 4 | T6: SODIMM
B7: Package Density (Gb) | D7: =IF(D8="SDP",IF('DDR4 Config'!D7="4Gb",4,IF('DDR4 Config'!D7="8Gb",8,16)),IF('DDR4 Config'!D7="4Gb",4,IF('DDR4 Config'!D7="8Gb",8,16))*2) -> 32 | T7: LRDIMM
B8: Package Type | D8: =INDEX('DDR4 Config'!W3:W5,'DDR4 Config'!W1) -> DDP2R | I8: =D6 -> x4 | J8: =D8 -> DDP2R | K8: =D4 -> RDIMM | L8: ='DDR4 Config'!B9 -> 3200 | M8: =D31 -> 8.93211941 | N8: =D32 -> 0 | O8: =D33 -> 1.017921436 | P8: =D3 -> 2 | Q8: =(D9+D12)*IF(D3=4,2,P8)*(M8+O8)/1000+D11 -> 0.8582014705
B9: Non-ECC Packages per rank | D9: =(64*D3/'DDR4 Config'!D8)/D3 -> 16 | I9: Important - Make sure the "System Config" tab usage conditions are configured correctly for your DIMM
B10: Module Density (GB) | D10: =IF(D8="SDP",(D7*D9*D3)/8,(D7*D9*(D3/2))/8) -> 64 | I10: =IF(D20=0,"WARNING: Make sure 'DDR4 Spec' tab is populated","") -> WARNING: Make sure 'DDR4 Spec' tab is populated
B11: Non-DRAM Component Power | D11: =IF(D4="LRDIMM",2.75,IF(D4="RDIMM",0.5,0)) -> 0.5 | I11: =IF(AND(OR(D4="LRDIMM",D4="RDIMM"),D5="no"),"WARNING: ECC must be set to 'yes' for LRDIMM/RDIMM","") -> 
B12: ECC Packages per rank | D12: =IF(D6="x16",0,IF(D5="no",0,D9/8)) -> 2 | I12: =IF(AND(D3=4,D8="SDP"),"WARNING: Cannot have 4 ranks if package=SDP","") -> 
I13: =IF(AND(D3<>4,D8="DDP2R"),"WARNING: Module ranks must be 4 if package=DDP","") -> WARNING: Module ranks must be 4 if package=DDP
B16: From "Summary" Tab
B17: =CONCATENATE(D7, "Gb ", "DDR4 ",'DDR4 Config'!D8," DQs ",'DDR4 Config'!D9," Speed ",) -> 32Gb DDR4 4 DQs -062E Speed
D18: Total
B19: ACT | D19: =Summary!D10 -> 0
B20: Activate Power | D20: =D19 -> 0
B21: RD | D21: =Summary!D12 -> 0
B22: WR | D22: =Summary!D13 -> 0
B23: READ I/O | D23: =Summary!D14 -> 6.931712327
B24: Write ODT | D24: =Summary!D15 -> 2.000407083
B25: RD/WR/Term Power | D25: =+D21+D22+D23+D24 -> 8.93211941
B26: ACT_STBY | D26: =Summary!D17 -> 0
B27: PRE_STBY | D27: =Summary!D18 -> 0
B28: ACT_PDN | D28: =Summary!D19 -> 0
B29: PRE_PDN | D29: =Summary!D20 -> 0
B30: REF | D30: =Summary!D21 -> 0
B31: DDR4 SDRAM Power | D31: =+D25+D20+D32 -> 8.93211941
B32: Background Power | D32: =SUM(D26:D30) -> 0
B33: TERM 2nd rank | D33: =Summary!D24 -> 1.017921436

Sheet Module Config (OLD) (hidden)
P1: 1 | Q1: 1 | R1: 1
B2: Rank Quantity | D2: 1
B3: Module Type | D3: RDIMM | P3: 1 | Q3: RDIMM | R3: SDP
B4: Die Config | D4: =CONCATENATE("x",'DDR4 Config'!D8) -> x4 | P4: 2 | Q4: UDIMM
B5: Die Density | D5: ='DDR4 Config'!D7 -> 16Gb | P5: 4 | Q5: SODIMM
Q6: LRDIMM
S7: DDR4 Config | T7: DIMM | U7: Data Rate MT/s | V7: Power Total PR (mW) | W7: Power standby (mW) | X7: Power Terminate (mW) | Y7: Ranks | Z7: DIMM Power (W)
B8: Packages per rank | S8: =CONCATENATE("x",'DDR4 Config'!D8) -> x4 | T8: =D3 -> RDIMM | U8: ='System Config'!N9 -> 1600 | V8: =C23 -> 8.93211941 | W8: =C24 -> 0 | X8: =C25 -> 1.017921436 | Y8: =D2 -> 1
A9: =CONCATENATE('DDR4 Config'!D7," DDR4 ",'DDR4 Config'!D8," DQs ",'DDR4 Config'!D9," Speed ",) -> 16Gb DDR4 4 DQs -062E Speed | F9: DDR4 | G9: condition | H9: stack | I9: Data Rate MT/s | J9: Power Total PR (mW) | K9: Power standby (mW) | L9: Power Terminate (mW) | M9: Rank | N9: RDIMM power (W)
C10: Total | F10: x4 | H10: SDP | J10: 281.191191 | K10: 86.22740012 | L10: 27.38775546 | M10: dual | N10: =IF(F10="x4", (1*18*J10+(IF(M10="single",0,1)*1*18*K10) +IF(M10="dual",L10*18,0))/1000+0.5,"na") -> 7.606514238
A11: ACT | C11: =Summary!D10 -> 0 | F11: x4 | H11: SDP | M11: dual | N11: =IF(F11="x4", (1*18*J11+(IF(M11="single",0,1)*1*18*K11) +IF(M11="dual",L11*18,0))/1000+0.5,"na") -> 
A12: Activate Power | C12: =C11 -> 0 | F12: x4 | H12: SDP | M12: dual | N12: =IF(F12="x4", (1*18*J12+(IF(M12="single",0,1)*1*18*K12) +IF(M12="dual",L12*18,0))/1000+0.5,"na") -> 
A13: RD | C13: =Summary!D12 -> 0 | F13: x4 | H13: SDP | M13: dual | N13: =IF(F13="x4", (1*18*J13+(IF(M13="single",0,1)*1*18*K13) +IF(M13="dual",L13*18,0))/1000+0.5,"na") -> 
A14: WR | C14: =Summary!D13 -> 0
A15: READ I/O | C15: =Summary!D14 -> 6.931712327
A16: Write ODT | C16: =Summary!D15 -> 2.000407083
A17: RD/WR/Term Power | C17: =+C13+C14+C15+C16 -> 8.93211941
A18: ACT_STBY | C18: =Summary!D17 -> 0
A19: PRE_STBY | C19: =Summary!D18 -> 0
A20: ACT_PDN | C20: =Summary!D19 -> 0
A21: PRE_PDN | C21: =Summary!D20 -> 0
A22: REF | C22: =Summary!D21 -> 0
A23: DDR4 SDRAM Power | C23: =+C17+C12+C24 -> 8.93211941 | F23: DDR4 | G23: condition | H23: stack | I23: Number of pkg per Rank | J23: Data Rate MT/s | K23: Power Total PR (mW) | L23: Power standby (mW) | M23: Power Terminate (mW) | N23: Rank | O23: UDIMM power (W)
A24: Background Power | C24: =SUM(C18:C22) -> 0 | N24: single | O24: =(1*I24*K24+(IF(N24="single",0,1)*1*I24*L24) +IF(N24="dual",M24*I24,0))/1000+0 -> 0
A25: TERM 2nd rank | C25: =Summary!D24 -> 1.017921436 | N25: single | O25: 0
N26: dual | O26: 0
N27: dual | O27: 0
N28: dual | O28: 0
N29: dual | O29: 0
